{"text_format":"1","workbook":"xlsx","n_sheets":10,"sheets":["Page démarrage","Données de base - Mon programme","Budget - Mon programme","Tableau d'analyse - Mon program","Feuil1","gain permis","Données de base","Budget","PÂTURAGE INTENSIF","Tableau sensibilité"],"not_rendered":{"charts":2,"images":5,"macros":1,"external_links":0,"defined_names":18,"comments":7,"pivot_tables":0},"unopened":[],"bounds":{"document_bytes":16777216,"sheet_cells":100000,"rows_first":2000,"rows_last":500,"rows_between":2000,"halvings":0,"cell_chars":16384,"cell_head_chars":4096},"cells_cut":0,"cells_raw":0,"read":"whole","date_system":"1900"}

{"sheet":"Page démarrage","index":0,"n_rows":0,"n_cols":0,"rows_kept":0,"cut":false,"hidden":false,"merged":[[2,1,2,8]]}

{"sheet":"Données de base - Mon programme","index":1,"n_rows":76,"n_cols":35,"rows_kept":76,"cut":false,"hidden":false,"merged":[[73,4,73,6],[73,7,73,8],[11,1,11,8],[59,3,59,6],[63,6,63,8],[70,4,70,8],[71,7,71,8],[72,4,72,5],[72,7,72,8],[7,2,7,8],[0,1,0,8],[2,1,2,8],[4,2,4,8],[5,2,5,8],[6,2,6,8],[1,1,1,8]]}
[null,"DONNÉES DE BASE POUR ESTIMER LE PRIX DE LA VIANDE DE BOUVILLON"]
[null,"PROGRAMME ALIMENTAIRE PERSONNEL"]
[null,"Mise en garde des auteurs :\n\nCe calculateur a été conçu pour tester différents scénarios en estimant le prix minimum et le prix cible de la viande de bouvillon produite par de petits élevages. Pour l’option « MON PROGRAMME », il faut s’assurer que vos programmes alimentaires sont adaptés aux performances possibles pour le type de bouvillon visé (race, sexe, poids, gain visé, environnement, etc.). \n\nCet outil n’a pas été conçu pour vérifier la cohérence des données retenues par l’utilisateur. Comme points de référence, des données ou des commentaires ont été insérés dans différentes cellules afin de faciliter la compréhension et l’utilisation du calculateur. Les données servant à poser les différentes hypothèses retenues doivent être adaptées à chaque situation, et l’utilisation des résultats de ce budget est sous la responsabilité de l’utilisateur. \n\nÉric Lepage et Véronique Poulin, agronomes, MAPAQ, 2018"]
[]
[null,"Client :","Yvan  Dubœuf"]
[null,"Budget adapté par :","Jean Untel"]
[null,"Date :","2018-03-01"]
[null,"Scénario :","10 bouvillons "]
[]
[]
[]
[]
[null,null,null,null,null,null,null,null,null,null,null,null,null,null,null,null,null,null,null,null,null,null,"phase 1","phase 2","phase 3","phase 4"]
[null,null,null,null,null,null,null,null,null,null,null,null,null,null,null,null,null,2,null,"mâle",null,"durée",{"$f":"C26-C25","v":61}]
[null,"DONNÉES TECHNIQUES",null,null,null,null,null,null,null,null,null,null,null,null,null,null,null,null,null,"femelle"]
[]
[null,"A. ANIMAUX"]
[]
[null,"Sexe",null,null,null,null,null,null,null,null,null,null,null,null,null,null,300,1]
[null,"Poids d’abattage visé",500,"kg             ou",{"$f":"C20*2.2","v":1100}," lb",null,null,null,null,null,null,null,null,null,null,350,2]
[null,"Alimentation",null,null,null,null,null,null,null,null,null,null,null,null,null,null,400,3]
[null,"Phase 1",null,null,null,null,null,null,null,null,null,null,null,null,null,null,450,4]
[null,"Âge en mois",10,null,null,null,null,null,null,null,null,null,null,null,null,null,500,5]
[null,"Poids au début de l’engraissement",300,"kg             ou",{"$f":"C24*2.2","v":660}," lb",null,null,null,null,null,null,null,null,null,null,550,6]
[null,"Date de début","2017-11-01",null,null,null,null,null,null,null,null,null,null,null,null,null,600,7]
[null,"Date de fin ","2018-01-01"]
[null,"Durée de la phase ",{"$f":"C26-C25","v":61},"jours",null,null,null,null,null,null,null,"gmq",null,null,null,null,null,"Pâturage H.E.",5,5,5,5,null,"nombre de jour au pâuurage",null,null,null,"pâturage","logement","totale="]
[null,"Type d’alimentation","mon programme",null,{"$f":"IF(AND(S27=6,C24<350),\"N.B. ration disponible à partir de 350 kg\",\"\")","v":""},null,null,null,null,null,null,2,{"$f":"IF($S$27=2,VLOOKUP($C$24,'gain permis'!$A$3:$E$9,2,TRUE),IF($S$27=3,VLOOKUP($C$24,'gain permis'!$A$10:$E$16,2,TRUE),IF($S$27=4,VLOOKUP($C$24,'gain permis'!$A$17:$E$23,2,TRUE),IF($S$27=5,VLOOKUP($C$24,'gain permis'!$A$24:$E$30,2,TRUE),IF($S$27=6,VLOOKUP($C$24,'gain permis'!$A$31:$E$37,2,TRUE),\"\")))))","v":0.7},null,null,null,null,"Pâturage H.E.+ avoine",null,null,null,null,null,{"$f":"IF(OR(S27=2,S27=3),C27,0)","v":0},{"$f":"IF(OR(T27=2,T27=3),C34,0)","v":0},{"$f":"IF(OR(U27=2,U27=3),C42,0)","v":0},{"$f":"IF(OR(V27=2,V27=3),C50,0)","v":0},{"$f":"SUM(X28:AA28)","v":0},{"$f":"(C27+C34+C42+C50)-AB28","v":229},{"$f":"AB28+AC28","v":229}]
[null,"Gain moyen quotidien (GMQ) permis",0.8,"kg/j          ou",{"$f":"C29*2.2","v":1.7600000000000002}," lb/j",null,null,null,null,null,{"$f":"E29/2.2","v":0.8},{"$f":"IF($S$27=2,VLOOKUP($C$24,'gain permis'!$A$3:$E$9,3,TRUE),IF($S$27=3,VLOOKUP($C$24,'gain permis'!$A$10:$E$16,3,TRUE),IF($S$27=4,VLOOKUP($C$24,'gain permis'!$A$17:$E$23,3,TRUE),IF($S$27=5,VLOOKUP($C$24,'gain permis'!$A$24:$E$30,3,TRUE),IF($S$27=6,VLOOKUP($C$24,'gain permis'!$A$31:$E$37,3,TRUE),\"\")))))","v":0},{"$f":"VLOOKUP(L29,$Q$35:$R$45,2,TRUE)","v":5},null,null,null,"Fourrage H.E.",null,null,null,null,null,{"$f":"IF(X28=0,0,Budget!D32/M75)","v":0},{"$f":"IF(Y28=0,0,Budget!D42/M75)","v":0},{"$f":"IF(Z28=0,0,Budget!D52/$M$75)","v":0},{"$f":"IF(AA28=0,0,Budget!D63/$M$75)","v":0},{"$f":"IF(AB28=0,\"\",((X28*X29)+(Y28*Y29)+(Z28*Z29)+(AA28*AA29))/(X28+Y28+Z28+AA28))","v":""}]
[null,"Poids à la fin",{"$f":"C24+C27*C29","v":348.8}," kg           ou",{"$f":"C30*2.2","v":767.36000000000013}," lb",{"$f":"IF(C30>C20,\" poids d'abattage dépassée, ajuster votre date\",\"\")","v":""},null,null,null,null,null,{"$f":"IF($S$27=2,VLOOKUP($C$24,'gain permis'!$A$3:$E$9,4,TRUE),IF($S$27=3,VLOOKUP($C$24,'gain permis'!$A$10:$E$16,4,TRUE),IF($S$27=4,VLOOKUP($C$24,'gain permis'!$A$17:$E$23,4,TRUE),IF($S$27=5,VLOOKUP($C$24,'gain permis'!$A$24:$E$30,4,TRUE),IF($S$27=6,VLOOKUP($C$24,'gain permis'!$A$31:$E$37,4,TRUE),\"\")))))","v":0},null,null,null,null,"Fourrage H.E. + avoine"]
[null,"Phase 2",null,null,null,null,null,null,null,null,null,null,{"$f":"IF($S$27=2,VLOOKUP($C$24,'gain permis'!$A$3:$E$9,5,TRUE),IF($S$27=3,VLOOKUP($C$24,'gain permis'!$A$10:$E$16,5,TRUE),IF($S$27=4,VLOOKUP($C$24,'gain permis'!$A$17:$E$23,5,TRUE),IF($S$27=5,VLOOKUP($C$24,'gain permis'!$A$24:$E$30,5,TRUE),IF($S$27=6,VLOOKUP($C$24,'gain permis'!$A$31:$E$37,5,TRUE),\"\")))))","v":0},null,null,null,null,"Ensilage maïs+Fourrage H.E.(<40%grain)"]
[null,"Date de début ",{"$f":"C26","v":"2018-01-01"}]
[null,"Date de fin ","2018-04-07",null,null,null,null,null,null,null,null,null,null,null,null,null,null,null,null,null,null,null,null,null,null,null,null,null,null,null,2,null,null,null,1]
[null,"Durée de la phase ",{"$f":"IF(OR(C32=0,C33=0),0,C33-C32)","v":96},"jours",null,null,null,null,null,null,null,null,null,null,null,null,null,2]
[null,"Type d’alimentation","mon programme",null,null,null,null,null,null,null,null,2,{"$f":"IF($T$27=2,VLOOKUP($C$36,'gain permis'!$A$3:$E$9,2,TRUE),IF($T$27=3,VLOOKUP($C$36,'gain permis'!$A$10:$E$16,2,TRUE),IF($T$27=4,VLOOKUP($C$36,'gain permis'!$A$17:$E$23,2,TRUE),IF($T$27=5,VLOOKUP($C$36,'gain permis'!$A$24:$E$30,2,TRUE),IF($T$27=6,VLOOKUP($C$36,'gain permis'!$A$31:$E$37,2,TRUE),\"\")))))","v":0.7},null,null,null,0.5,{"$f":"R34","v":2}]
[null,"Poids au début de l’engraissement",{"$f":"C30","v":348.8}," kg           ou",{"$f":"C36*2.2","v":767.36000000000013}," lb",null,null,null,null,null,{"$f":"E37/2.2","v":0.8},{"$f":"IF($T$27=2,VLOOKUP($C$36,'gain permis'!$A$3:$E$9,3,TRUE),IF($T$27=3,VLOOKUP($C$36,'gain permis'!$A$10:$E$16,3,TRUE),IF($T$27=4,VLOOKUP($C$36,'gain permis'!$A$17:$E$23,3,TRUE),IF($T$27=5,VLOOKUP($C$36,'gain permis'!$A$24:$E$30,3,TRUE),IF($T$27=6,VLOOKUP($C$36,'gain permis'!$A$31:$E$37,3,TRUE),\"\")))))","v":0},{"$f":"VLOOKUP(L36,$Q$35:$R$45,2,TRUE)","v":5},null,null,0.6,{"$f":"R35+1","v":3}]
[null,"GMQ visé",0.8,"kg/j          ou",{"$f":"C37*2.2","v":1.7600000000000002}," lb/j",null,null,null,null,null,null,{"$f":"IF($T$27=2,VLOOKUP($C$36,'gain permis'!$A$3:$E$9,4,TRUE),IF($T$27=3,VLOOKUP($C$36,'gain permis'!$A$10:$E$16,4,TRUE),IF($T$27=4,VLOOKUP($C$36,'gain permis'!$A$17:$E$23,4,TRUE),IF($T$27=5,VLOOKUP($C$36,'gain permis'!$A$24:$E$30,4,TRUE),IF($T$27=6,VLOOKUP($C$36,'gain permis'!$A$31:$E$37,4,TRUE),\"\")))))","v":0},null,null,null,0.7,{"$f":"R36+1","v":4}]
[null,"Poids à la fin",{"$f":"C36+C34*C37","v":425.6}," kg           ou",{"$f":"C38*2.2","v":936.32000000000016}," lb",{"$f":"IF(C38>C20,\" poids d'abattage dépassée, ajuster votre date\",\"\")","v":""},null,null,null,null,null,{"$f":"IF($T$27=2,VLOOKUP($C$36,'gain permis'!$A$3:$E$9,5,TRUE),IF($T$27=3,VLOOKUP($C$36,'gain permis'!$A$10:$E$16,5,TRUE),IF($T$27=4,VLOOKUP($C$36,'gain permis'!$A$17:$E$23,5,TRUE),IF($T$27=5,VLOOKUP($C$36,'gain permis'!$A$24:$E$30,5,TRUE),IF($T$27=6,VLOOKUP($C$36,'gain permis'!$A$31:$E$37,5,TRUE),\"\")))))","v":0},null,null,null,0.8,5]
[null,"Phase 3",null,null,null,null,null,null,null,null,null,null,null,null,null,null,0.9,6]
[null,"Date de début ",{"$f":"C33","v":"2018-04-07"},null,null,null,null,null,null,null,null,null,null,null,null,null,1,7]
[null,"Date de fin ","2018-06-18",null,null,null,null,null,null,null,null,null,null,null,null,null,1.1000000000000001,8]
[null,"Durée de la phase ",{"$f":"IF(OR(C40=0,C41=0),0,C41-C40)","v":72},null,null,null,null,null,null,null,null,null,null,null,null,null,1.2,9]
[null,"Type d’alimentation","mon programme",null,null,null,null,null,null,null,null,4,{"$f":"IF($U$27=2,VLOOKUP($C$44,'gain permis'!$A$3:$E$9,2,TRUE),IF($U$27=3,VLOOKUP($C$44,'gain permis'!$A$10:$E$16,2,TRUE),IF($U$27=4,VLOOKUP($C$44,'gain permis'!$A$17:$E$23,2,TRUE),IF($U$27=5,VLOOKUP($C$44,'gain permis'!$A$24:$E$30,2,TRUE),IF($U$27=6,VLOOKUP($C$44,'gain permis'!$A$31:$E$37,2,TRUE),\"\")))))","v":0.9},null,null,null,1.3,10]
[null,"Poids au début de l’engraissement",{"$f":"C38","v":425.6}," kg           ou",{"$f":"C44*2.2","v":936.32000000000016}," lb",null,null,null,null,null,{"$f":"E45/2.2","v":0.8},{"$f":"IF($U$27=2,VLOOKUP($C$44,'gain permis'!$A$3:$E$9,3,TRUE),IF($U$27=3,VLOOKUP($C$44,'gain permis'!$A$10:$E$16,3,TRUE),IF($U$27=4,VLOOKUP($C$44,'gain permis'!$A$17:$E$23,3,TRUE),IF($U$27=5,VLOOKUP($C$44,'gain permis'!$A$24:$E$30,3,TRUE),IF($U$27=6,VLOOKUP($C$44,'gain permis'!$A$31:$E$37,3,TRUE),\"\")))))","v":1},{"$f":"VLOOKUP(L44,$Q$35:$R$45,2,TRUE)","v":5},null,null,1.4,11]
[null,"GMQ visé",0.8,"kg/j          ou",{"$f":"C45*2.2","v":1.7600000000000002}," lb/j",null,null,null,null,null,null,{"$f":"IF($U$27=2,VLOOKUP($C$44,'gain permis'!$A$3:$E$9,4,TRUE),IF($U$27=3,VLOOKUP($C$44,'gain permis'!$A$10:$E$16,4,TRUE),IF($U$27=4,VLOOKUP($C$44,'gain permis'!$A$17:$E$23,4,TRUE),IF($U$27=5,VLOOKUP($C$44,'gain permis'!$A$24:$E$30,4,TRUE),IF($U$27=6,VLOOKUP($C$44,'gain permis'!$A$31:$E$37,4,TRUE),\"\")))))","v":0},null,null,null,1.5,12]
[null,"Poids à la fin",{"$f":"C44+C42*C45","v":483.20000000000005}," kg           ou",{"$f":"C46*2.2","v":1063.0400000000002}," lb",{"$f":"IF(C46>C20,\" poids d'abattage dépassé, ajuster votre date\",\"\")","v":""},null,null,null,null,null,{"$f":"IF($U$27=2,VLOOKUP($C$44,'gain permis'!$A$3:$E$9,5,TRUE),IF($U$27=3,VLOOKUP($C$44,'gain permis'!$A$10:$E$16,5,TRUE),IF($U$27=4,VLOOKUP($C$44,'gain permis'!$A$17:$E$23,5,TRUE),IF($U$27=5,VLOOKUP($C$44,'gain permis'!$A$24:$E$30,5,TRUE),IF($U$27=6,VLOOKUP($C$44,'gain permis'!$A$31:$E$37,5,TRUE),\"\")))))","v":0}]
[null,"Phase 4"]
[null,"Date de début ",{"$f":"C41","v":"2018-06-18"}]
[null,"Date  de fin ",null,{"$f":"IF(AND(C46>C20,C50<>0),\"svp inscrire la même date que celle du début\",\"\")","v":""}]
[null,"Durée de la phase ",{"$f":"IF(OR(C48=0,C49=0),0,C49-C48)","v":0}]
[null,"Type d’alimentation","mon programme",null,null,null,null,null,null,null,null,3,{"$f":"IF($V$27=2,VLOOKUP($C$52,'gain permis'!$A$3:$E$9,2,TRUE),IF($V$27=3,VLOOKUP($C$52,'gain permis'!$A$10:$E$16,2,TRUE),IF($V$27=4,VLOOKUP($C$52,'gain permis'!$A$17:$E$23,2,TRUE),IF($V$27=5,VLOOKUP($C$52,'gain permis'!$A$24:$E$30,2,TRUE),IF($V$27=6,VLOOKUP($C$52,'gain permis'!$A$31:$E$37,2,TRUE),\"\")))))","v":0.9}]
[null,"Poids au début de l’engraissement",{"$f":"C46","v":483.20000000000005}," kg           ou",{"$f":"C52*2.2","v":1063.0400000000002}," lb",null,null,null,null,null,{"$f":"E53/2.2","v":0.8},{"$f":"IF($V$27=2,VLOOKUP($C$52,'gain permis'!$A$3:$E$9,3,TRUE),IF($V$27=3,VLOOKUP($C$52,'gain permis'!$A$10:$E$16,3,TRUE),IF($V$27=4,VLOOKUP($C$52,'gain permis'!$A$17:$E$23,3,TRUE),IF($V$27=5,VLOOKUP($C$52,'gain permis'!$A$24:$E$30,3,TRUE),IF($V$27=6,VLOOKUP($C$52,'gain permis'!$A$31:$E$37,3,TRUE),\"\")))))","v":1},{"$f":"VLOOKUP(L52,$Q$35:$R$45,2,TRUE)","v":5}]
[null,"GMQ visé",0.8,"kg/j          ou",{"$f":"C53*2.2","v":1.7600000000000002}," lb/j",null,null,null,null,null,null,{"$f":"IF($V$27=2,VLOOKUP($C$52,'gain permis'!$A$3:$E$9,4,TRUE),IF($V$27=3,VLOOKUP($C$52,'gain permis'!$A$10:$E$16,4,TRUE),IF($V$27=4,VLOOKUP($C$52,'gain permis'!$A$17:$E$23,4,TRUE),IF($V$27=5,VLOOKUP($C$52,'gain permis'!$A$24:$E$30,4,TRUE),IF($V$27=6,VLOOKUP($C$52,'gain permis'!$A$31:$E$37,4,TRUE),\"\")))))","v":1.1000000000000001}]
[null,"Poids à la fin",{"$f":"C52+C50*C53","v":483.20000000000005}," kg           ou",{"$f":"IF(C54=\"\",\"\",C54*2.2)","v":1063.0400000000002}," lb",{"$f":"IF(C54>C20,\" poids d'abattage dépassée, ajuster votre date\",\"\")","v":""},null,null,null,null,null,{"$f":"IF($V$27=2,VLOOKUP($C$52,'gain permis'!$A$3:$E$9,5,TRUE),IF($V$27=3,VLOOKUP($C$52,'gain permis'!$A$10:$E$16,5,TRUE),IF($V$27=4,VLOOKUP($C$52,'gain permis'!$A$17:$E$23,5,TRUE),IF($V$27=5,VLOOKUP($C$52,'gain permis'!$A$24:$E$30,5,TRUE),IF($V$27=6,VLOOKUP($C$52,'gain permis'!$A$31:$E$37,5,TRUE),\"\")))))","v":0}]
[]
[]
[null,"Abattage"]
[null,"Âge à l’abattage en mois",{"$f":"C23+(C27+C34+C42+C50)/30","v":17.633333333333333}]
[null,"GMQ de l’engraissement",{"$f":"(C54-C24)/(C27+C34+C42+C50)","v":0.80000000000000016}," kg/j         ou",{"$f":"C59*2.2","v":1.7600000000000005}," lb/j"]
[null,"Poids à la ferme (eb kg)",{"$f":"C54","v":483.20000000000005},"Poids après la perte ",null,null,null,null,null,null,null,1]
[null,"Freinte pré-abattage",0.04,{"$f":"C60*(1-C61)","v":463.87200000000001},"kg       ou",{"$f":"D61*2.2","v":1020.5184000000002},"lb"]
[null,"Rendement de la carcasse",0.54,{"$f":"D61*C62","v":250.49088000000003},"kg       ou",{"$f":"D62*2.2","v":551.07993600000009},"lb"]
[null,"Perte lors du ressuyage, maturation",0.04,{"$f":"D62*(1-C63)","v":240.47124480000002},"kg       ou",{"$f":"D63*2.2","v":529.03673856000012},"lb",null,null,null,null,3]
[null,"Perte à la découpe",0.3458,{"$f":"D63*(1-C64)","v":157.31628834816001},"kg       ou",{"$f":"D64*2.2","v":346.09583436595204},"lb  = poids en viande maigre"]
[null,"Perte due à des problèmes de qualité",0.02,null,null,null,null,null,null,null,null,2]
[]
[null,"B- CHAMPS",{"$f":"IF(AE33=5,\"SVP utilisez la feuille BUDGET PERSONNALISÉ pour la suite\",\"\")","v":""}]
[]
[null,"Hectares disponibles",8]
[null,"Prairie, tonne m.s./ha",3500]
[null,"Maïs-ensilage, tonne m.s./ha",12,null,"Estimateur du rendement des pâturages"]
[null,null,null,null,"% de la productivité des prairies",null,null,0.9,null,null,null,3,"en bande",4,"à forfait, $/tête/saison",null,{"$f":"IF(N72=2,(C75/C73)*0.2,\"\")","v":""},"\"$/t"]
[null,"Pâturage, tonne m.s./ha",3.8250000000000002,null,"Mode de paissance",null,null,{"$f":"IF(L72=2,0.85,IF(L72=3,0.75,IF(L72=4,\"non recommandé\",\"\")))","v":0.75},null,null,null,null,"en rotation",null,"à forfait,$/tête/jour",null,{"$f":"C75/M75","v":1.2698412698412698E-4},"\"$/t"]
[null,"Pâturage: forfait ou à la ferme",null,null,"Rendement, tonnes m.s./ha",null,null,{"$f":"IF(L72=4,\"\",C70*H72*H73)","v":2362.5},null,null,null,null,"en continu",null,"à la ferme",null,{"$f":"IF(N72=4,C75*0.2,\"\")","v":0.4},"\"$/t"]
[null,{"$f":"IF(N72=2,\"Coût du pâturage à forfait, $/tête/saison\",IF(N72=3,\"Coût du pâturage à forfait, $/tête/j\",IF(N72=4,\"Coût de production à la ferme, $/t m.s.\",\"\")))","v":"Coût de production à la ferme, $/t m.s."},2,null,null,null,null,null,null,null,null,null,{"$f":"H74*1000/C76","v":15750},"kg/j"]
[null,"Durée",150]

{"sheet":"Budget - Mon programme","index":2,"n_rows":186,"n_cols":62,"rows_kept":186,"cut":false,"hidden":false,"merged":[[167,5,167,6],[168,5,168,6],[0,1,0,9],[2,3,2,9],[3,3,3,9],[4,3,4,9],[5,3,5,9],[16,4,16,5],[1,1,1,8]]}
[null,"BUDGET ESTIMANT LES PRIX CIBLE ET MINIMUM DE LA VIANDE DE BOUVILLON"]
[null,"PROGRAMME ALIMENTAIRE PERSONNEL"]
[null,"Client:",null,{"$f":"'Données de base - Mon programme'!C5","v":"Yvan  Dubœuf"}]
[null,"Budget adapté par:",null,{"$f":"'Données de base - Mon programme'!C6","v":"Jean Untel"}]
[null,"Date:",null,{"$f":"'Données de base - Mon programme'!C7","v":"2018-03-01"}]
[null,"Scénario:",null,{"$f":"'Données de base - Mon programme'!C8","v":"10 bouvillons "}]
[]
[null,"ÉLEVAGE"]
[null,"A. Valeur estimée du veau ",null,null,null,null,null,null,null,null,null,null,null,null,null,null,null,null,null,null,null,null,null,null,null,null,null,null,null,null,null,null,null,null,null,null,null,null,null,null,null,null,null,null,null,null,null,null,null,null,null,null,null,null,null,null,null,null,null,null,null,"type"]
[]
[null,null,null,null,null,null,null,null,"$/bouvillon","($/kg de viande)"]
[]
[null,"Coût de production du veau à la ferme",null,2,"/livre ou",{"$f":"D13*2.2","v":4.4000000000000004},"/kg =",{"$f":"F13*'Données de base - Mon programme'!C24","v":1320}]
[]
[null,"Poids à l’encan",null,0.05,"perte de poids","pour un poids de vente",{"$f":"'Données de base - Mon programme'!C24*(1-D15)","v":285},"kg"]
[]
[null,"Bouvillon (sexe, poids) :",null,{"$f":"IF('Données de base - Mon programme'!R14=2,\"Mâle\",IF('Données de base - Mon programme'!R14=3,\"Femelle\",\"\"))","v":"Mâle"},{"$f":"CONCATENATE(G15*2.2,\" lb ou \",G15,\" kg\")","v":"627 lb ou 285 kg"}]
[null,{"$f":" CONCATENATE(\"Prix au \",TEXT('Données de base'!C25,\"AAAA/MM/JJ\"))","v":"Prix au 2017/11/01"},null,2.25,"/livre"]
[null,"Prix de vente à l’encan",null,{"$f":"D18*2.2","v":4.95},"/kg",null,{"$f":"D19*G15","v":1410.75}]
[null,"    Frais de transport",null,30,"/animal",null,{"$f":"D20","v":30}]
[null,"    Frais de vente",null,22,"/animal",null,{"$f":"D21","v":22}]
[null,"Valeur nette estimée du veau ",null,null,null,null,{"$f":"G19-G20-G21","v":1358.75}]
[null,null,null,null,null,null,null,null,null,null,null,null,1,"valeur à l'encan"]
[null,"Valeur estimée du veau pour les calculs ",null,"option :",null,null,null,null,{"$f":"IF(L24=1,G22,H13)","v":1320},{"$f":"I24/'Données de base - Mon programme'!$D$64","v":8.390739534095033},null,2,2,"coût de production"]
[]
[null,"Nombre de bouvillons par lot (volume de la production annuelle)",null,10]
[]
[null,"B. Alimentation"]
[null,{"$f":"CONCATENATE(\"   PHASE 1 : Durée de \",'Données de base - Mon programme'!C27,\" jours\",\" et GMQ de \",ROUNDUP('Données de base - Mon programme'!C29,2), \" kg/jour avec un poids moyen de \",('Données de base - Mon programme'!C24+'Données de base - Mon programme'!C30)/2,\" kg\")","v":"   PHASE 1 : Durée de 61 jours et GMQ de 0,8 kg/jour avec un poids moyen de 324,4 kg"}]
[null,null,"MS","Quantité","Perte","Prix",null,"Quantité"]
[null,"Aliments","%","(MS kg/j)","(%)","($/t TQS)",null,"(t TQS)","$/bouvillon","($/kg de viande)"]
[null,null,1,5,4.4999999999999998E-2,100,null,{"$f":"IF(D32=\"\",0,'Données de base - Mon programme'!$C$27*((D32/C32)/(1-E32))/1000)","v":0.3193717277486911},{"$f":"H32*F32","v":31.937172774869111},{"$f":"I32/'Données de base - Mon programme'!$D$64","v":0.20301249864342258}]
[null,null,1,2,2.5000000000000001E-2,180,null,{"$f":"IF(D33=\"\",0,'Données de base - Mon programme'!$C$27*((D33/C33)/(1-E33))/1000)","v":0.12512820512820513},{"$f":"H33*F33","v":22.523076923076925},{"$f":"I33/'Données de base - Mon programme'!$D$64","v":0.14317066058176142}]
[null,null,1,null,0,null,null,{"$f":"IF(D34=\"\",0,'Données de base - Mon programme'!$C$27*((D34/C34)/(1-E34))/1000)","v":0},{"$f":"H34*F34","v":0},{"$f":"I34/'Données de base - Mon programme'!$D$64","v":0}]
[null,null,1,0.1,2.5000000000000001E-2,1500,null,{"$f":"IF(D35=\"\",0,'Données de base - Mon programme'!$C$27*((D35/C35)/(1-E35))/1000)","v":6.2564102564102572E-3},{"$f":"H35*F35","v":9.384615384615385},{"$f":"I35/'Données de base - Mon programme'!$D$64","v":5.9654441909067255E-2}]
[null,null,1,null,2.5000000000000001E-2,null,null,{"$f":"IF(D36=\"\",0,'Données de base - Mon programme'!$C$27*((D36/C36)/(1-E36))/1000)","v":0},{"$f":"H36*F36","v":0},{"$f":"I36/'Données de base - Mon programme'!$D$64","v":0}]
[null,"Coût total des aliments pour la période",null,null,null,null,null,null,{"$f":"SUM(I32:I36)","v":63.844865082561427},{"$f":"SUM(J32:J36)","v":0.40583760113425127}]
[]
[null,{"$f":"CONCATENATE(\"   PHASE 2 : Durée de \",'Données de base - Mon programme'!C34,\" jours\",\" et GMQ de \",ROUNDUP('Données de base - Mon programme'!C37,2), \" kg/jour avec un poids moyen de \",('Données de base - Mon programme'!C36+'Données de base - Mon programme'!C38)/2,\" kg\")","v":"   PHASE 2 : Durée de 96 jours et GMQ de 0,8 kg/jour avec un poids moyen de 387,2 kg"}]
[null,null,"MS","Quantité","Perte","Prix",null,"Quantité"]
[null,"Aliments","%","(MS kg/j)","(%)","($/t TQS)",null,"(t TQS)","$/bouvillon","($/kg de viande)"]
[null,null,0.55000000000000004,5,4.4999999999999998E-2,100,null,{"$f":"IF(D42=\"\",0,'Données de base - Mon programme'!$C$34*((D42/C42)/(1-E42))/1000)","v":0.91385054735840077},{"$f":"H42*F42","v":91.385054735840072},{"$f":"I42/'Données de base - Mon programme'!$D$64","v":0.58090014514958466}]
[null,null,0.86,2,2.5000000000000001E-2,180,null,{"$f":"IF(D43=\"\",0,'Données de base - Mon programme'!$C$34*((D43/C43)/(1-E43))/1000)","v":0.22898032200357785},{"$f":"H43*F43","v":41.216457960644014},{"$f":"I43/'Données de base - Mon programme'!$D$64","v":0.26199739641344066}]
[null,null,0.87,null,0,null,null,{"$f":"IF(D44=\"\",0,'Données de base - Mon programme'!$C$34*((D44/C44)/(1-E44))/1000)","v":0},{"$f":"H44*F44","v":0},{"$f":"I44/'Données de base - Mon programme'!$D$64","v":0}]
[null,null,0.98,0.1,2.5000000000000001E-2,1500,null,{"$f":"IF(D45=\"\",0,'Données de base - Mon programme'!$C$34*((D45/C45)/(1-E45))/1000)","v":1.0047095761381476E-2},{"$f":"H45*F45","v":15.070643642072215},{"$f":"I45/'Données de base - Mon programme'!$D$64","v":9.5798367736207035E-2}]
[null,null,0.98,null,2.5000000000000001E-2,null,null,{"$f":"IF(D46=\"\",0,'Données de base - Mon programme'!$C$34*((D46/C46)/(1-E46))/1000)","v":0},{"$f":"H46*F46","v":0},{"$f":"I46/'Données de base - Mon programme'!$D$64","v":0}]
[null,"Coût total des aliments pour la période",null,null,null,null,null,null,{"$f":"SUM(I42:I46)","v":147.67215633855631},{"$f":"SUM(J42:J46)","v":0.93869590929923241}]
[]
[null,{"$f":"CONCATENATE(\"   PHASE 3 : Durée de \",'Données de base - Mon programme'!C42,\" jours\",\" et GMQ de \",ROUNDUP('Données de base - Mon programme'!C45,2), \" kg/jour avec un poids moyen de \",('Données de base - Mon programme'!C44+'Données de base - Mon programme'!C46)/2,\" kg\")","v":"   PHASE 3 : Durée de 72 jours et GMQ de 0,8 kg/jour avec un poids moyen de 454,4 kg"}]
[null,null,"MS","Quantité","Perte","Prix",null,"Quantité"]
[null,"Aliments","%","(MS kg/j)","(%)","($/t TQS)",null,"(t TQS)","$/bouvillon","($/kg de viande)"]
[null,null,0.2,5,0,18,null,{"$f":"IF(D52=\"\",0,'Données de base - Mon programme'!$C$42*(D52/C52/(1-E52))/1000)","v":1.8},{"$f":"H52*F52","v":32.4},{"$f":"I52/'Données de base - Mon programme'!$D$64","v":0.20595451583687807}]
[null,null,0.5,2,0.05,null,null,{"$f":"IF(D53=\"\",0,'Données de base - Mon programme'!$C$42*(D53/C53/(1-E53))/1000)","v":0.30315789473684207},{"$f":"H53*F53","v":0},{"$f":"I53/'Données de base - Mon programme'!$D$64","v":0}]
[null,null,0.87,null,2.5000000000000001E-2,null,null,{"$f":"IF(D54=\"\",0,'Données de base - Mon programme'!$C$42*(D54/C54/(1-E54))/1000)","v":0},{"$f":"H54*F54","v":0},{"$f":"I54/'Données de base - Mon programme'!$D$64","v":0}]
[null,null,0.98,0.1,2.5000000000000001E-2,1500,null,{"$f":"IF(D55=\"\",0,'Données de base - Mon programme'!$C$42*(D55/C55/(1-E55))/1000)","v":7.5353218210361065E-3},{"$f":"H55*F55","v":11.30298273155416},{"$f":"I55/'Données de base - Mon programme'!$D$64","v":7.1848775802155262E-2}]
[null,null,0.98,null,2.5000000000000001E-2,null,null,{"$f":"IF(D56=\"\",0,'Données de base - Mon programme'!$C$42*(D56/C56/(1-E56))/1000)","v":0},{"$f":"H56*F56","v":0},{"$f":"I56/'Données de base - Mon programme'!$D$64","v":0}]
[null,"Coût total des aliments pour la période",null,null,null,null,null,null,{"$f":"SUM(I52:I56)","v":43.702982731554158},{"$f":"SUM(J52:J56)","v":0.27780329163903333}]
[]
[]
[null,{"$f":"CONCATENATE(\"   PHASE 4 : Durée de \",'Données de base - Mon programme'!C50,\" jours\",\" et GMQ de \",ROUNDUP('Données de base - Mon programme'!C53,2), \" kg/jour avec un poids moyen de \",('Données de base - Mon programme'!C52+'Données de base - Mon programme'!C54)/2,\" kg\")","v":"   PHASE 4 : Durée de 0 jours et GMQ de 0,8 kg/jour avec un poids moyen de 483,2 kg"}]
[null,null,"MS","Quantité","Perte","Prix",null,"Quantité"]
[null,null,"%","(MS kg/j)","(%)","($/t TQS)",null,"(t TQS)","$/bouvillon","($/kg de viande)"]
[null,null,0.2,5,0,18,null,{"$f":"IF(D63=\"\",0,'Données de base - Mon programme'!$C$50*(D63/C63/(1-E63))/1000)","v":0},{"$f":"H63*F63","v":0},{"$f":"I63/'Données de base - Mon programme'!$D$64","v":0}]
[null,null,0.5,2,0.05,null,null,{"$f":"IF(D64=\"\",0,'Données de base - Mon programme'!$C$50*(D64/C64/(1-E64))/1000)","v":0},{"$f":"H64*F64","v":0},{"$f":"I64/'Données de base - Mon programme'!$D$64","v":0}]
[null,null,0.87,null,2.5000000000000001E-2,null,null,{"$f":"IF(D65=\"\",0,'Données de base - Mon programme'!$C$50*(D65/C65/(1-E65))/1000)","v":0},{"$f":"H65*F65","v":0},{"$f":"I65/'Données de base - Mon programme'!$D$64","v":0}]
[null,null,0.98,0.1,2.5000000000000001E-2,1500,null,{"$f":"IF(D66=\"\",0,'Données de base - Mon programme'!$C$50*(D66/C66/(1-E66))/1000)","v":0},{"$f":"H66*F66","v":0},{"$f":"I66/'Données de base - Mon programme'!$D$64","v":0}]
[null,null,0.98,null,2.5000000000000001E-2,null,null,{"$f":"IF(D67=\"\",0,'Données de base - Mon programme'!$C$50*(D67/C67/(1-E67))/1000)","v":0},{"$f":"H67*F67","v":0},{"$f":"I67/'Données de base - Mon programme'!$D$64","v":0}]
[null,"Coût total des aliments pour la période",null,null,null,null,null,null,{"$f":"SUM(I63:I67)","v":0},{"$f":"SUM(J63:J67)","v":0}]
[]
[null,"Coût total des aliments ",null,null,null,null,null,null,{"$f":"I68+I57+I47+I37","v":255.22000415267189},{"$f":"I70/'Données de base - Mon programme'!$D$64","v":1.6223368020725171}]
[]
[null,"C. Autres coûts"]
[]
[null,"Médicaments, vermifuge et vétérinaire",null,1,null,null,10,null,{"$f":"D74*G74","v":10},{"$f":"I74/'Données de base - Mon programme'!$D$64","v":6.3566208591629036E-2}]
[null,"Litière (kg/jour)",null,1.75,"kg/j",{"$f":"CONCATENATE('Données de base - Mon programme'!AC28,\" j\")","v":"229 j"},130,"/ t",{"$f":"G75*(D75*'Données de base'!AC28)/1000","v":79.17},{"$f":"I75/'Données de base - Mon programme'!$D$64","v":0.50325367341992711}]
[null,"Autres frais liés aux animaux",null,1,null,null,5,null,{"$f":"G76*D76","v":5},{"$f":"I76/'Données de base - Mon programme'!$D$64","v":3.1783104295814518E-2}]
[null,"Fumier ($/tête)",null,0.02,"m3/tête/jour",{"$f":"F75","v":"229 j"},1.88,"$/m3",{"$f":"'Données de base'!AC28*D77*G77","v":13.0848},{"$f":"I77/'Données de base - Mon programme'!$D$64","v":8.3175112617974764E-2}]
[null,"Rejets",null,0.02,"par élevage",null,{"$f":"I24+(I70+I74+I75+I76+I77)/2","v":1501.2374020763359},null,{"$f":"(G78*D78)","v":30.02474804152672},{"$f":"I78/'Données de base - Mon programme'!$D$64","v":0.19085593969187928}]
[null,"Perte par mortalité",null,1.4E-2,"par élevage",null,{"$f":"(G78)","v":1501.2374020763359},null,{"$f":"D79*G79","v":21.017323629068702},{"$f":"I79/'Données de base - Mon programme'!$D$64","v":0.1335991577843155}]
[null,"Frais pour l’élimination des animaux morts",null,{"$f":"D79","v":1.4E-2},null,null,80,null,{"$f":"G80*D80","v":1.1200000000000001},{"$f":"I80/'Données de base - Mon programme'!$D$64","v":7.1194153622624531E-3}]
[null,"Assurance animaux ",null,{"$f":"G79+I79+I80","v":1523.3747257054044},null,null,5.5,"/1000 $",{"$f":"G81*D81/1000","v":8.3785609913797252},{"$f":"I81/'Données de base - Mon programme'!$D$64","v":5.325933556757298E-2}]
[null,"Logement - réparation, taxes, assurances (30 ans)                   ","m2/tête",4.5,265,"$/m2",2.8000000000000001E-2,"/1000$/élevage",{"$f":"D82*E82*G82*(('Données de base'!AB28+'Données de base'!AC28)/365)","v":31.834849315068492},{"$f":"I82/'Données de base - Mon programme'!$D$64","v":0.20236206720447225}]
[null,"Main-d’œuvre pour la phase 1, (heure/jour/lot)",null,1.25,{"$f":"'Données de base - Mon programme'!C27","v":61},15,"/ h         payé",0.25,{"$f":"(D83*E83*F83*H83)/$D$26","v":28.59375},{"$f":"I83/'Données de base - Mon programme'!$D$64","v":0.18175962769168927}]
[null,"Main-d’œuvre pour la phase 2, (heure/jour/lot)",null,1.25,{"$f":"'Données de base - Mon programme'!C34","v":96},15,"/ h         payé",0.25,{"$f":"(D84*E84*F84*H84)/$D$26","v":45},{"$f":"I84/'Données de base - Mon programme'!$D$64","v":0.28604793866233064}]
[null,"Main-d’œuvre pour la phase 3, (heure/jour/lot)",null,0.75,{"$f":"'Données de base - Mon programme'!C42","v":72},15,"/ h         payé",0,0,{"$f":"I85/'Données de base - Mon programme'!$D$64","v":0}]
[null,"Main-d’œuvre pour la phase 4, (heure/jour/lot)",null,0.75,{"$f":"'Données de base - Mon programme'!C50","v":0},15,"/ h         payé",0,0,{"$f":"I86/'Données de base - Mon programme'!$D$64","v":0}]
[null,"Intérêt sur emprunt à moyen ou long terme ",null,5,"%        emprunt ",2000,"/2     montant=",{"$f":"D87*F87/100/2","v":50},{"$f":"H87/D26","v":5},{"$f":"I87/'Données de base - Mon programme'!$D$64","v":3.1783104295814518E-2}]
[null,"Intérêt sur ouverture de crédit",null,1,{"$f":"G79+I79+I80+I81+I82+I83+I84+I85+I86","v":1637.1818860118528},null,4.2000000000000003E-2,{"$f":" CONCATENATE('Données de base'!AD28,\"/365 j\")","v":"348/365 j"},{"$f":"D88*E88*G88","v":68.761639212497826},{"$f":"I88/'Données de base - Mon programme'!$D$64","v":0.43709167012839756}]
[null,"Total des coûts ",null,null,null,null,null,null,{"$f":"SUM(I74:I88)","v":346.98567118954145},{"$f":"SUM(J74:J88)","v":2.2056563553140802}]
[]
[null,"Total des frais variables",null,null,null,null,null,null,{"$f":"I24+I70+I89","v":1922.2056753422135},{"$f":"I91/'Données de base - Mon programme'!$D$64","v":12.21873269148163}]
[]
[]
[null,"D. Frais généraux"]
[null,null,null,null,null,null,null,null,"$/bouvillon","($/kg de viande)"]
[null,"Téléphone et électricité",null,100,null,{"$f":"$D$26","v":10},"têtes",null,{"$f":"D96/F96","v":10},{"$f":"I96/'Données de base - Mon programme'!$D$64","v":6.3566208591629036E-2}]
[null,"Frais professionnels (comptable, UPA, consultant, association, etc.)",null,400,null,{"$f":"$D$26","v":10},"têtes",null,{"$f":"D97/F97","v":40},{"$f":"I97/'Données de base - Mon programme'!$D$64","v":0.25426483436651615}]
[null,"Divers (fournitures de bureau ou autres)",null,100,null,{"$f":"$D$26","v":10},"têtes",null,{"$f":"D98/F98","v":10},{"$f":"I98/'Données de base - Mon programme'!$D$64","v":6.3566208591629036E-2}]
[null,null,null,null,null,{"$f":"$D$26","v":10},"têtes",null,{"$f":"D99/F99","v":0},{"$f":"I99/'Données de base - Mon programme'!$D$64","v":0}]
[null,null,null,null,null,null,null,null,{"$f":"SUM(I96:I99)","v":60},{"$f":"I100/'Données de base - Mon programme'!$D$64","v":0.38139725154977422}]
[]
[null,"E. Revenus à déduire"]
[null,null,null,null,null,null,null,null,null,null,null,null,null,null,null,{"$f":"I123/#REF!","v":{"$error":"#REF!"}},{"$f":"P103/2.2","v":{"$error":"#REF!"}}]
[null,"Moins :",null,null,null,null,null,null,"$/bouvillon","($/kg de viande)"]
[null,"Revenus nets des rejets",null,{"$f":"D78","v":0.02},{"$f":"('Données de base - Mon programme'!C60+'Données de base - Mon programme'!C24)/2","v":391.6},"kg poids moyen",4,"/kg",{"$f":"(D105*E105*G105)-(D105*(G20+G21))","v":30.288000000000004},{"$f":"I105/'Données de base - Mon programme'!$D$64","v":0.19252933258232605}]
[null,"Compensation nette de l’ASRA pour les rejets",null,{"$f":"D105","v":0.02},{"$f":"IF('Données de base - Mon programme'!$C$24>340,$E$105-'Données de base - Mon programme'!C24,$E$105-340)","v":51.600000000000023},"kg gain animal rejeté",{"$f":"0.3302-0.0731","v":0.2571},"/kg",{"$f":"IF((E107*D26)<(1500/2.2),\"\",(D106*E106*G106))","v":0.2653272000000001},{"$f":"I106/'Données de base - Mon programme'!$D$64","v":1.6865844140232882E-3}]
[null,"Compensation nette de l’ASRA pour les bouvillons",null,{"$f":"1-D106","v":0.98},{"$f":"IF('Données de base - Mon programme'!$C$24>340,'Données de base'!$C$60-'Données de base'!C24,'Données de base - Mon programme'!$C$60-340)","v":143.20000000000005},"kg gain bouvillon",0.25700000000000001,"/kg",{"$f":"IF((E107*D26)<(1500/2.2),\"\",(D107*E107*G107))","v":36.066352000000009},{"$f":"I107/'Données de base - Mon programme'!$D$64","v":0.22926012543711177}]
[null,null,null,null,null,null,",",null,{"$f":"SUM(I105:I107)","v":66.619679200000007},{"$f":"I108/'Données de base - Mon programme'!$D$64","v":0.42347604243346104}]
[]
[]
[null,"Valeur du bouvillon avant l’amortissement et la rémunération du travail de l’exploitant :",null,null,null,null,null,null,{"$f":"I91+I100-I108","v":1915.5859961422134},{"$f":"I111/'Données de base - Mon programme'!$D$64","v":12.176653900597943}]
[]
[null,"F. Amortissement des bâtiments et des équipements d’élevage",null,null,null,null,null,null,"$/bouvillon","($/kg de viande)"]
[]
[null,"Logement : bâtiment ou enclos d’hivernage",null,{"$f":"E82*D82","v":1192.5},"valeur de remplacement",0.03,{"$f":"'Données de base - Mon programme'!AD28","v":229},"/365 j",{"$f":"D115*F115*G115/365","v":22.445136986301371},{"$f":"I115/'Données de base - Mon programme'!$D$64","v":0.14267522595389209}]
[null,"Équipement",null,3000,"valeur de remplacement",0.06,{"$f":"G115","v":229},"/365 j",{"$f":"(D116*F116*G116/365)/D26","v":11.293150684931508},{"$f":"I116/'Données de base - Mon programme'!$D$64","v":7.178627720950545E-2}]
[null,null,null,null,null,null,null,null,{"$f":"SUM(I115:I116)","v":33.738287671232882},{"$f":"I117/'Données de base - Mon programme'!$D$64","v":0.21446150316339757}]
[]
[null,"G. Travail de l’exploitant ",null,null,null,null,null,null,null,null,null,null,null,null,null,"prix - base carcasse"]
[null,null,null,null,null,null,null,null,"$/bouvillon","($/kg de viande)",null,null,null,null,null,"$/kg","$/lb"]
[null,"Travail non rémunéré (heures)",null,null,{"$f":"((D83*E83*(1-H83))+(D84*E84*(1-H84))+(D85*E85*(1-H85))+(D86*E86*(1-H86)))/D26","v":20.118749999999999},"heures non payées",15,"/h",{"$f":"E121*G121","v":301.78125},{"$f":"I121/'Données de base - Mon programme'!$D$64","v":1.918308988654255},null,null,null,null,null,{"$f":"#REF!/#REF!","v":{"$error":"#REF!"}},{"$f":"P121/2.2","v":{"$error":"#REF!"}}]
[]
[null,"Prix cible du bouvillon avant la mise en marché (avant la rémunération de l’avoir du propriétaire)",null,null,null,null,null,null,{"$f":"I111+I121+I117","v":2251.1055338134461},{"$f":"I123/'Données de base - Mon programme'!$D$64","v":14.309424392415595}]
[]
[]
[null,"H. Frais de transformation et de mise en marché"]
[null,null,null,null,null,null,null,null,"$/bouvillon","($/kg de viande)"]
[null,"Transport vers l’abattoir",null,null,50,"/voyage",1,"animal/voyage",{"$f":"E128/G128","v":50},{"$f":"I128/'Données de base - Mon programme'!$D$64","v":0.31783104295814518}]
[null,"Frais d’abattage",null,null,100,"/animal",null,null,{"$f":"E129","v":100},{"$f":"I129/'Données de base - Mon programme'!$D$64","v":0.63566208591629036}]
[null,"Frais de réfrigération (vieillissement)",null,null,null,"/jour/carcasse",14,"jours",{"$f":"E130*G130","v":0},{"$f":"I130/'Données de base - Mon programme'!$D$64","v":0}]
[null,"Frais de vente ( communication, transport )",null,null,null,null,{"$f":"D26","v":10},null,{"$f":"E131/G131","v":0},{"$f":"I131/'Données de base - Mon programme'!$D$64","v":0},null,{"$f":"(#REF!-(D150*(1-G150)*(E150-E149-E148)))/(#REF!*(1-#REF!))","v":{"$error":"#REF!"}},null,null,null,{"$f":"I163/#REF!","v":{"$error":"#REF!"}},{"$f":"P131/2.2","v":{"$error":"#REF!"}}]
[null,"Frais de découpe, d’emballage, d’étiquetage",null,"kg de carcasse",{"$f":"'Données de base - Mon programme'!D62","v":250.49088000000003},0.85,"$/kg de carcasse",null,{"$f":"E132*F132","v":212.91724800000003},{"$f":"I132/'Données de base - Mon programme'!$D$64","v":1.3534342199123612}]
[null,"Transport de la viande (retour)",null,null,null,50,{"$f":"G128","v":1},"animal/voyage",{"$f":"F133/G133","v":50},{"$f":"I133/'Données de base - Mon programme'!$D$64","v":0.31783104295814518}]
[null,"Frais de congélation",null,null,{"$f":"'Données de base - Mon programme'!D64","v":157.31628834816001},0,"/kg de viande",null,{"$f":"E134*F134","v":0},{"$f":"I134/'Données de base - Mon programme'!$D$64","v":0}]
[null,"Frais de livraison et autres",null,null,{"$f":"'Données de base - Mon programme'!D64","v":157.31628834816001},0,"/kg de viande",null,{"$f":"F135*E135","v":0},{"$f":"I135/'Données de base - Mon programme'!$D$64","v":0}]
[null,"Frais de promotion",null,null,null,0,{"$f":"D26","v":10},"animal/an",{"$f":"F136/G136","v":0},{"$f":"I136/'Données de base - Mon programme'!$D$64","v":0}]
[null,"Frais de location d'un kiosque ou autre",null,null,null,0,{"$f":"D26","v":10},"animal/an",{"$f":"F137/G137","v":0},{"$f":"I137/'Données de base - Mon programme'!$D$64","v":0}]
[null,"Frais de permis",null,null,null,300,{"$f":"D26","v":10},"animal/an",30,{"$f":"I138/'Données de base - Mon programme'!$D$64","v":0.19069862577488711}]
[null,"Réparation, taxes, assurances des équipements",null,5.1900000000000002E-2,"%/an              valeur",5000,{"$f":"D26","v":10},"animal/an",{"$f":"(F139*D139)/G139","v":25.95},{"$f":"I139/'Données de base - Mon programme'!$D$64","v":0.16495431129527735}]
[null,"Réparation, taxes, assurances des bâtiments",null,0.04,"%/an              valeur",0,{"$f":"D26","v":10},"animal/an",{"$f":"(F140*D140)/G140","v":0},{"$f":"I140/'Données de base - Mon programme'!$D$64","v":0}]
[null,"Intérêt sur emprunt à moyen ou long terme ",null,5,"%        emprunt ",5000,"/2     montant=",{"$f":"D141*F141/100/2","v":125},{"$f":"H141/D26","v":12.5},{"$f":"I141/'Données de base - Mon programme'!$D$64","v":7.9457760739536296E-2}]
[null,"Main-d’œuvre:    ",null,250,"heures",null,null,null,null,{"$f":"I142/'Données de base - Mon programme'!$D$64","v":0}]
[null,"Salaire payé  (lot, heures)",null,0.4,{"$f":"D142*D143","v":100},15,"/ h ",null,{"$f":"E143*F143/D26","v":150},{"$f":"I143/'Données de base - Mon programme'!$D$64","v":0.95349312887443549}]
[null,"Propriétaire  (lot, heures)",null,{"$f":"(1-D143)","v":0.6},{"$f":"D142*D144","v":150},null,null,null,{"$f":"E144*F144/D26","v":0},{"$f":"I144/'Données de base - Mon programme'!$D$64","v":0}]
[null,null,null,null,null,null,null,null,{"$f":"SUM(I128:I144)","v":631.36724800000002},{"$f":"I145/'Données de base - Mon programme'!$D$64","v":4.0133622184290783}]
[]
[null,"Frais dus à des problèmes de qualité",null,{"$f":"'Données de base - Mon programme'!C65","v":0.02},null,{"$f":"I123+I145","v":2882.4727818134461},null,null,{"$f":"F147*D147","v":57.649455636268925},{"$f":"I147/'Données de base - Mon programme'!$D$64","v":0.36645573221689348}]
[null,"Récupération, transport, etc. (kg)",null,{"$f":"'Données de base - Mon programme'!D64*'Budget - Mon programme'!D147","v":3.1463257669632005},0.22,"/kg",null,null,{"$f":"D148*E148","v":0.69219166873190408},{"$f":"I148/'Données de base - Mon programme'!$D$64","v":4.4000000000000003E-3}]
[null,"Création de produits transformés (kg)",null,{"$f":"D148","v":3.1463257669632005},5.2,"/kg",null,null,{"$f":"D149*E149","v":16.360893988208645},{"$f":"I149/'Données de base - Mon programme'!$D$64","v":0.10400000000000002}]
[null,"Moins la vente de produits transformés (kg)",null,{"$f":"D148","v":3.1463257669632005},null,"/kg avec un poucentage de perte de",0.1,null,{"$f":"D150*E150*(1-G150)","v":0},{"$f":"I150/'Données de base - Mon programme'!$D$64","v":0}]
[null,null,null,null,null,null,null,null,{"$f":"I147+I148+I149-I150","v":74.702541293209464},{"$f":"I151/'Données de base - Mon programme'!$D$64","v":0.47485573221689342}]
[null,null,null,null,null,null,null,null,null,{"$f":"I152/'Données de base - Mon programme'!$D$64","v":0}]
[null,"Frais de mise en marché avant l’amortissement et la rémunération du travail du propriétaire",null,null,null,null,null,null,{"$f":"I145+I151","v":706.06978929320951},{"$f":"I153/'Données de base - Mon programme'!$D$64","v":4.4882179506459714}]
[]
[null,"Amortissement des bâtiments et des équipements liés à la mise en marché"]
[null,"  Bâtiment",null,0.03,"%/an              valeur",{"$f":"F140","v":0},{"$f":"D26","v":10},"animal/an",{"$f":"(F156*D156)/G156","v":0},{"$f":"I156/'Données de base - Mon programme'!$D$64","v":0}]
[null,"  Équipement",null,6.3299999999999995E-2,"%/an              valeur",{"$f":"F139","v":5000},{"$f":"D26","v":10},"animal/an",{"$f":"((F157*D157)/G157)","v":31.65},{"$f":"I157/'Données de base - Mon programme'!$D$64","v":0.20118705019250588}]
[null,null,null,null,null,null,null,null,{"$f":"I156+I157","v":31.65},{"$f":"I158/'Données de base - Mon programme'!$D$64","v":0.20118705019250588}]
[null,"Travail de l’exploitant ",null,null,null,null,null,null,null,{"$f":"I159/'Données de base - Mon programme'!$D$64","v":0}]
[null,"Travail non rémunéré (heures)",null,null,{"$f":"E144/D26","v":15},"heures non payées",15,"/h",{"$f":"(E160*G160)","v":225},{"$f":"I160/'Données de base - Mon programme'!$D$64","v":1.4302396933116532}]
[null,null,null,null,null,null,null,null,null,{"$f":"I161/'Données de base - Mon programme'!$D$64","v":0}]
[null,null,null,null,null,null,null,null,null,{"$f":"I162/'Données de base - Mon programme'!$D$64","v":0}]
[null,"Prix cible du bouvillon en découpe avant la rémunération de l’avoir du propriétaire",null,null,null,null,null,null,{"$f":"I123+I153+I158+I160","v":3213.8253231066556},{"$f":"I163/'Données de base - Mon programme'!$D$64","v":20.429069086565725}]
[null,"    (Le prix cible tient compte de l’amortissement ainsi que de la rémunération du travail et de l’avoir du propriétaire)"]
[]
[]
[null,"I. Remboursement en capital annuel"]
[null,"  Emprunt pour l’élevage",null,null,10000,"Pourcentage attribué à l’atelier bouvillon viande = ",null,0.1,{"$f":"(E168*H168)/D26","v":100},{"$f":"I168/'Données de base - Mon programme'!$D$64","v":0.63566208591629036}]
[null,"  Emprunt pour la transformation et la mise en marché",null,null,1000,"Pourcentage attribué à l’atelier bouvillon viande = ",null,1,{"$f":"(E169*H169)/D26","v":100},{"$f":"I169/'Données de base - Mon programme'!$D$64","v":0.63566208591629036}]
[null,null,null,null,null,null,null,null,{"$f":"I168+I169","v":200},{"$f":"I170/'Données de base - Mon programme'!$D$64","v":1.2713241718325807}]
[null,null,null,null,null,null,null,null,null,{"$f":"I171/'Données de base - Mon programme'!$D$64","v":0}]
[null,"Prix minimum du bouvillon en découpe ",null,null,null,null,null,null,{"$f":"I163-I158-I117+I170","v":3348.4370354354228},{"$f":"I172/'Données de base - Mon programme'!$D$64","v":21.284744705042403}]
[null,"    (Le prix minimum inclut les annuités, mais il exclut l’amortissement et la rémunération de l’avoir du propriétaire)"]
[]
[]
[]
[]
[null,null,null,null,null,null,null,null,null,null,null,null,null,null,null,null,null,null,null,null,"Veau",{"$f":"J24/$J$172","v":0.39421377377889094}]
[null,null,null,null,null,null,null,null,null,null,null,null,null,null,null,null,null,null,null,null,"Alimentation",{"$f":"J70/$J$172","v":7.6220637106734102E-2}]
[null,null,null,null,null,null,null,null,null,null,null,null,null,null,null,null,null,null,null,null,"Autres coûts variables + fixes + intérêts Court Terme- revenus ASRA",{"$f":"(J74+J75+J76+J77++J78+J79+J80+J81+J82+J88+J100-J108)/$J$172","v":7.8177441958528951E-2}]
[null,null,null,null,null,null,null,null,null,null,null,null,null,null,null,null,null,null,null,null,"Travail de production",{"$f":"(J83+J84+J85+J86+J121)/J172","v":0.1121045419183721}]
[null,null,null,null,null,null,null,null,null,null,null,null,null,null,null,null,null,null,null,null,"Mise en marché",{"$f":"(SUM(J128:J140))/$J$172","v":0.14002570245106299}]
[null,null,null,null,null,null,null,null,null,null,null,null,null,null,null,null,null,null,null,null,"Travail de mise en marché",{"$f":"(J143+J160)/$J$172","v":0.1119925493690031}]
[null,null,null,null,null,null,null,null,null,null,null,null,null,null,null,null,null,null,null,null,"Problème de qualité",{"$f":"J151/$J$172","v":2.230967478338601E-2}]
[null,null,null,null,null,null,null,null,null,null,null,null,null,null,null,null,null,null,null,null,"Annuité (capital + intérêts)",{"$f":"(J87+J141+J170)/J172","v":6.495567863402181E-2}]
[null,null,null,null,null,null,null,null,null,null,null,null,null,null,null,null,null,null,null,null,null,{"$f":"SUM(V178:V185)","v":0.99999999999999989}]

{"sheet":"Tableau d'analyse - Mon program","index":3,"n_rows":59,"n_cols":15,"rows_kept":59,"cut":false,"hidden":false,"merged":[[1,1,1,6],[0,1,0,6],[40,1,41,1],[40,3,40,4],[40,5,40,6],[28,1,29,1],[52,2,52,6],[9,3,9,4],[9,5,9,6],[18,2,19,2],[18,3,18,4],[18,5,18,6],[28,3,28,4],[28,5,28,6],[28,2,29,2]]}
[null,"TABLEAU D’ANALYSE DE SENSIBILITÉ"]
[null,"PROGRAMME ALIMENTAIRE PERSONNEL"]
[]
[null,"Client",null,{"$f":"'Données de base - Mon programme'!C5","v":"Yvan  Dubœuf"}]
[null,"Budget adapté par",null,{"$f":"'Données de base - Mon programme'!C6","v":"Jean Untel"}]
[null,"Date",null,{"$f":"'Données de base - Mon programme'!C7","v":"2018-03-01"}]
[null,"Scénario",null,{"$f":"'Données de base - Mon programme'!C8","v":"10 bouvillons "}]
[]
[null,"Effet du taux de rémunération du travail du propriétaire ($/h)"]
[null,null,"Salaire du proprio","Prix cible",null,"Prix minimum"]
[null,"$/heure","$/lot","$/bouvillon","$/kg de viande","$/bouvillon","$/kg de viande"]
[null,null,{"$f":"('Budget - Mon programme'!$E$160+'Budget - Mon programme'!$E$121)*'Budget - Mon programme'!$D$26*B12","v":0},{"$f":"'Budget - Mon programme'!I163-'Budget - Mon programme'!$I$160+('Budget - Mon programme'!$E$160*'Tableau d''analyse - Mon program'!B12)-'Budget - Mon programme'!$I$121+('Budget - Mon programme'!$E$121*'Tableau d''analyse - Mon program'!B12)","v":2687.0440731066556},{"$f":"D12/'Données de base - Mon programme'!$D$64","v":17.080520404599817},{"$f":"'Budget - Mon programme'!$I$172-'Budget - Mon programme'!$I$160+('Budget - Mon programme'!$E$160*'Tableau d''analyse - Mon program'!B12)-'Budget - Mon programme'!$I$121+('Budget - Mon programme'!$E$121*'Tableau d''analyse - Mon program'!B12)","v":2821.6557854354228},{"$f":"F12/'Données de base - Mon programme'!$D$64","v":17.936196023076494}]
[null,5,{"$f":"('Budget - Mon programme'!$E$160+'Budget - Mon programme'!$E$121)*'Budget - Mon programme'!$D$26*B13","v":1755.9375},{"$f":"'Budget - Mon programme'!$I$163-'Budget - Mon programme'!$I$160+('Budget - Mon programme'!$E$160*'Tableau d''analyse - Mon program'!B13)-'Budget - Mon programme'!$I$121+('Budget - Mon programme'!$E$121*'Tableau d''analyse - Mon program'!B13)","v":2862.6378231066556},{"$f":"D13/'Données de base - Mon programme'!$D$64","v":18.196703298588453},{"$f":"'Budget - Mon programme'!$I$172-'Budget - Mon programme'!$I$160+('Budget - Mon programme'!$E$160*'Tableau d''analyse - Mon program'!B13)-'Budget - Mon programme'!$I$121+('Budget - Mon programme'!$E$121*'Tableau d''analyse - Mon program'!B13)","v":2997.2495354354228},{"$f":"F13/'Données de base - Mon programme'!$D$64","v":19.052378917065131}]
[null,10,{"$f":"('Budget - Mon programme'!$E$160+'Budget - Mon programme'!$E$121)*'Budget - Mon programme'!$D$26*B14","v":3511.875},{"$f":"'Budget - Mon programme'!$I$163-'Budget - Mon programme'!$I$160+('Budget - Mon programme'!$E$160*'Tableau d''analyse - Mon program'!B14)-'Budget - Mon programme'!$I$121+('Budget - Mon programme'!$E$121*'Tableau d''analyse - Mon program'!B14)","v":3038.2315731066556},{"$f":"D14/'Données de base - Mon programme'!$D$64","v":19.312886192577089},{"$f":"'Budget - Mon programme'!$I$172-'Budget - Mon programme'!$I$160+('Budget - Mon programme'!$E$160*'Tableau d''analyse - Mon program'!B14)-'Budget - Mon programme'!$I$121+('Budget - Mon programme'!$E$121*'Tableau d''analyse - Mon program'!B14)","v":3172.8432854354228},{"$f":"F14/'Données de base - Mon programme'!$D$64","v":20.168561811053767}]
[null,15,{"$f":"('Budget - Mon programme'!$E$160+'Budget - Mon programme'!$E$121)*'Budget - Mon programme'!$D$26*B15","v":5267.8125},{"$f":"'Budget - Mon programme'!$I$163-'Budget - Mon programme'!$I$160+('Budget - Mon programme'!$E$160*'Tableau d''analyse - Mon program'!B15)-'Budget - Mon programme'!$I$121+('Budget - Mon programme'!$E$121*'Tableau d''analyse - Mon program'!B15)","v":3213.8253231066556},{"$f":"D15/'Données de base - Mon programme'!$D$64","v":20.429069086565725},{"$f":"'Budget - Mon programme'!$I$172-'Budget - Mon programme'!$I$160+('Budget - Mon programme'!$E$160*'Tableau d''analyse - Mon program'!B15)-'Budget - Mon programme'!$I$121+('Budget - Mon programme'!$E$121*'Tableau d''analyse - Mon program'!B15)","v":3348.4370354354228},{"$f":"F15/'Données de base - Mon programme'!$D$64","v":21.284744705042403}]
[null,20,{"$f":"('Budget - Mon programme'!$E$160+'Budget - Mon programme'!$E$121)*'Budget - Mon programme'!$D$26*B16","v":7023.75},{"$f":"'Budget - Mon programme'!$I$163-'Budget - Mon programme'!$I$160+('Budget - Mon programme'!$E$160*'Tableau d''analyse - Mon program'!B16)-'Budget - Mon programme'!$I$121+('Budget - Mon programme'!$E$121*'Tableau d''analyse - Mon program'!B16)","v":3389.4190731066556},{"$f":"D16/'Données de base - Mon programme'!$D$64","v":21.545251980554362},{"$f":"'Budget - Mon programme'!$I$172-'Budget - Mon programme'!$I$160+('Budget - Mon programme'!$E$160*'Tableau d''analyse - Mon program'!B16)-'Budget - Mon programme'!$I$121+('Budget - Mon programme'!$E$121*'Tableau d''analyse - Mon program'!B16)","v":3524.0307854354228},{"$f":"F16/'Données de base - Mon programme'!$D$64","v":22.400927599031039}]
[]
[]
[null,"Salaire du proprio","$/heure","Prix cible",null,"Prix minimum"]
[null,"$/lot",null,"$/bouvillon","$/kg de viande","$/bouvillon","$/kg de viande"]
[null,0,{"$f":"B21/(('Budget - Mon programme'!$E$121+'Budget - Mon programme'!$E$160)*'Budget - Mon programme'!$D$26)","v":0},{"$f":"'Budget - Mon programme'!$I$163-'Budget - Mon programme'!$I$160+('Budget - Mon programme'!$E$160*'Tableau d''analyse - Mon program'!C21)-'Budget - Mon programme'!$I$121+('Budget - Mon programme'!$E$121*'Tableau d''analyse - Mon program'!C21)","v":2687.0440731066556},{"$f":"D21/'Données de base - Mon programme'!$D$64","v":17.080520404599817},{"$f":"'Budget - Mon programme'!$I$172-'Budget - Mon programme'!$I$160+('Budget - Mon programme'!$E$160*'Tableau d''analyse - Mon program'!E21)-'Budget - Mon programme'!$I$121+('Budget - Mon programme'!$E$121*'Tableau d''analyse - Mon program'!E21)","v":3421.5023113944626},{"$f":"F21/'Données de base - Mon programme'!$D$64","v":21.74919296228413}]
[null,5000,{"$f":"B22/(('Budget - Mon programme'!$E$121+'Budget - Mon programme'!$E$160)*'Budget - Mon programme'!$D$26)","v":14.237408791599929},{"$f":"'Budget - Mon programme'!$I$163-'Budget - Mon programme'!$I$160+('Budget - Mon programme'!$E$160*'Tableau d''analyse - Mon program'!C22)-'Budget - Mon programme'!$I$121+('Budget - Mon programme'!$E$121*'Tableau d''analyse - Mon program'!C22)","v":3187.0440731066556},{"$f":"D22/'Données de base - Mon programme'!$D$64","v":20.258830834181268},{"$f":"'Budget - Mon programme'!$I$172-'Budget - Mon programme'!$I$160+('Budget - Mon programme'!$E$160*'Tableau d''analyse - Mon program'!E22)-'Budget - Mon programme'!$I$121+('Budget - Mon programme'!$E$121*'Tableau d''analyse - Mon program'!E22)","v":3533.120600793326},{"$f":"F22/'Données de base - Mon programme'!$D$64","v":22.458708108941025}]
[null,8000,{"$f":"B23/(('Budget - Mon programme'!$E$121+'Budget - Mon programme'!$E$160)*'Budget - Mon programme'!$D$26)","v":22.779854066559885},{"$f":"'Budget - Mon programme'!$I$163-'Budget - Mon programme'!$I$160+('Budget - Mon programme'!$E$160*'Tableau d''analyse - Mon program'!C23)-'Budget - Mon programme'!$I$121+('Budget - Mon programme'!$E$121*'Tableau d''analyse - Mon program'!C23)","v":3487.0440731066556},{"$f":"D23/'Données de base - Mon programme'!$D$64","v":22.16581709193014},{"$f":"'Budget - Mon programme'!$I$172-'Budget - Mon programme'!$I$160+('Budget - Mon programme'!$E$160*'Tableau d''analyse - Mon program'!E23)-'Budget - Mon programme'!$I$121+('Budget - Mon programme'!$E$121*'Tableau d''analyse - Mon program'!E23)","v":3600.0915744326444},{"$f":"F23/'Données de base - Mon programme'!$D$64","v":22.884417196935168}]
[null,12000,{"$f":"B24/(('Budget - Mon programme'!$E$121+'Budget - Mon programme'!$E$160)*'Budget - Mon programme'!$D$26)","v":34.169781099839831},{"$f":"'Budget - Mon programme'!$I$163-'Budget - Mon programme'!$I$160+('Budget - Mon programme'!$E$160*'Tableau d''analyse - Mon program'!C24)-'Budget - Mon programme'!$I$121+('Budget - Mon programme'!$E$121*'Tableau d''analyse - Mon program'!C24)","v":3887.0440731066556},{"$f":"D24/'Données de base - Mon programme'!$D$64","v":24.708465435595301},{"$f":"'Budget - Mon programme'!$I$172-'Budget - Mon programme'!$I$160+('Budget - Mon programme'!$E$160*'Tableau d''analyse - Mon program'!E24)-'Budget - Mon programme'!$I$121+('Budget - Mon programme'!$E$121*'Tableau d''analyse - Mon program'!E24)","v":3689.3862059517355},{"$f":"F24/'Données de base - Mon programme'!$D$64","v":23.452029314260688}]
[null,15000,{"$f":"B25/(('Budget - Mon programme'!$E$121+'Budget - Mon programme'!$E$160)*'Budget - Mon programme'!$D$26)","v":42.712226374799783},{"$f":"'Budget - Mon programme'!$I$163-'Budget - Mon programme'!$I$160+('Budget - Mon programme'!$E$160*'Tableau d''analyse - Mon program'!C25)-'Budget - Mon programme'!$I$121+('Budget - Mon programme'!$E$121*'Tableau d''analyse - Mon program'!C25)","v":4187.0440731066556},{"$f":"D25/'Données de base - Mon programme'!$D$64","v":26.615451693344173},{"$f":"'Budget - Mon programme'!$I$172-'Budget - Mon programme'!$I$160+('Budget - Mon programme'!$E$160*'Tableau d''analyse - Mon program'!E25)-'Budget - Mon programme'!$I$121+('Budget - Mon programme'!$E$121*'Tableau d''analyse - Mon program'!E25)","v":3756.3571795910534},{"$f":"F25/'Données de base - Mon programme'!$D$64","v":23.877738402254824}]
[null,"* Un lot correspond au volume annuel de production."]
[]
[null,"Effet du prix du veau ($/kg)"]
[null,"Prix du veau $/kg","Valeur du veau $","Prix cible",null,"Prix minimum"]
[null,null,null,"$/bouvillon","$/kg de viande","$/bouvillon","$/kg de viande"]
[null,3,{"$f":"('Données de base - Mon programme'!$C$24*'Tableau d''analyse - Mon program'!B31)","v":900},{"$f":"('Données de base - Mon programme'!$C$24*'Tableau d''analyse - Mon program'!B31)+'Budget - Mon programme'!$I$163-'Budget - Mon programme'!$I$24","v":2793.8253231066556},{"$f":"D31/'Données de base - Mon programme'!$D$64","v":17.759288325717307},{"$f":"('Données de base - Mon programme'!$C$24*'Tableau d''analyse - Mon program'!B31)+'Budget - Mon programme'!$I$172-'Budget - Mon programme'!$I$24","v":2928.4370354354232},{"$f":"F31/'Données de base - Mon programme'!$D$64","v":18.614963944193988}]
[null,4,{"$f":"('Données de base - Mon programme'!$C$24*'Tableau d''analyse - Mon program'!B32)","v":1200},{"$f":"('Données de base - Mon programme'!$C$24*'Tableau d''analyse - Mon program'!B32)+'Budget - Mon programme'!$I$163-'Budget - Mon programme'!$I$24","v":3093.8253231066556},{"$f":"D32/'Données de base - Mon programme'!$D$64","v":19.666274583466176},{"$f":"('Données de base - Mon programme'!$C$24*'Tableau d''analyse - Mon program'!B32)+'Budget - Mon programme'!$I$172-'Budget - Mon programme'!$I$24","v":3228.4370354354232},{"$f":"F32/'Données de base - Mon programme'!$D$64","v":20.521950201942857}]
[null,5,{"$f":"('Données de base - Mon programme'!$C$24*'Tableau d''analyse - Mon program'!B33)","v":1500},{"$f":"('Données de base - Mon programme'!$C$24*'Tableau d''analyse - Mon program'!B33)+'Budget - Mon programme'!$I$163-'Budget - Mon programme'!$I$24","v":3393.8253231066556},{"$f":"D33/'Données de base - Mon programme'!$D$64","v":21.573260841215049},{"$f":"('Données de base - Mon programme'!$C$24*'Tableau d''analyse - Mon program'!B33)+'Budget - Mon programme'!$I$172-'Budget - Mon programme'!$I$24","v":3528.4370354354232},{"$f":"F33/'Données de base - Mon programme'!$D$64","v":22.42893645969173}]
[null,6,{"$f":"('Données de base - Mon programme'!$C$24*'Tableau d''analyse - Mon program'!B34)","v":1800},{"$f":"('Données de base - Mon programme'!$C$24*'Tableau d''analyse - Mon program'!B34)+'Budget - Mon programme'!$I$163-'Budget - Mon programme'!$I$24","v":3693.8253231066556},{"$f":"D34/'Données de base - Mon programme'!$D$64","v":23.480247098963918},{"$f":"('Données de base - Mon programme'!$C$24*'Tableau d''analyse - Mon program'!B34)+'Budget - Mon programme'!$I$172-'Budget - Mon programme'!$I$24","v":3828.4370354354232},{"$f":"F34/'Données de base - Mon programme'!$D$64","v":24.335922717440599}]
[null,7,{"$f":"('Données de base - Mon programme'!$C$24*'Tableau d''analyse - Mon program'!B35)","v":2100},{"$f":"('Données de base - Mon programme'!$C$24*'Tableau d''analyse - Mon program'!B35)+'Budget - Mon programme'!$I$163-'Budget - Mon programme'!$I$24","v":3993.8253231066556},{"$f":"D35/'Données de base - Mon programme'!$D$64","v":25.387233356712791},{"$f":"('Données de base - Mon programme'!$C$24*'Tableau d''analyse - Mon program'!B35)+'Budget - Mon programme'!$I$172-'Budget - Mon programme'!$I$24","v":4128.4370354354232},{"$f":"F35/'Données de base - Mon programme'!$D$64","v":26.242908975189472}]
[]
[]
[null,"Effet du coût de la mise en marché (avant le remboursement du capital ou de l’amortissement)"]
[null,"(Inclure la congélation, la livraison, la promotion, le kiosque, le permis, l’entretien et la réparation, le salaire payé et le travail.)"]
[]
[null,"Frais de mise en marché $/lot","Frais par ","Prix cible",null,"Prix minimum"]
[null,null,"bouvillon $","$/bouvillon","$/kg de viande","$/bouvillon","$/kg de viande"]
[null,"Carcasse",0,{"$f":"'Budget - Mon programme'!I163-'Budget - Mon programme'!I160-'Budget - Mon programme'!I158-'Budget - Mon programme'!I144-'Budget - Mon programme'!I143-'Budget - Mon programme'!I140-'Budget - Mon programme'!I139-'Budget - Mon programme'!I138-'Budget - Mon programme'!I137-'Budget - Mon programme'!I136-'Budget - Mon programme'!I135-'Budget - Mon programme'!I134-'Budget - Mon programme'!I132-'Budget - Mon programme'!I133","v":2488.3080751066555},{"$f":"'Budget - Mon programme'!J163-'Budget - Mon programme'!J160-'Budget - Mon programme'!J158-'Budget - Mon programme'!J144-'Budget - Mon programme'!J143-'Budget - Mon programme'!J140-'Budget - Mon programme'!J139-'Budget - Mon programme'!J138-'Budget - Mon programme'!J137-'Budget - Mon programme'!J136-'Budget - Mon programme'!J135-'Budget - Mon programme'!J134-'Budget - Mon programme'!J132-'Budget - Mon programme'!J133","v":15.817231014246465},{"$f":"'Budget - Mon programme'!I172-'Budget - Mon programme'!I169-'Budget - Mon programme'!I160-'Budget - Mon programme'!I158-'Budget - Mon programme'!I144-'Budget - Mon programme'!I143-'Budget - Mon programme'!I140-'Budget - Mon programme'!I139-'Budget - Mon programme'!I138-'Budget - Mon programme'!I137-'Budget - Mon programme'!I136-'Budget - Mon programme'!I135-'Budget - Mon programme'!I134-'Budget - Mon programme'!I132-'Budget - Mon programme'!I133","v":2522.9197874354227},{"$f":"'Budget - Mon programme'!J172-'Budget - Mon programme'!J169-'Budget - Mon programme'!J160-'Budget - Mon programme'!J158-'Budget - Mon programme'!J144-'Budget - Mon programme'!J143-'Budget - Mon programme'!J140-'Budget - Mon programme'!J139-'Budget - Mon programme'!J138-'Budget - Mon programme'!J137-'Budget - Mon programme'!J136-'Budget - Mon programme'!J135-'Budget - Mon programme'!J134-'Budget - Mon programme'!J132-'Budget - Mon programme'!J133","v":16.037244546806853}]
[null,"Vente au détail"]
[null,0,{"$f":"B45/'Budget - Mon programme'!$D$26","v":0},{"$f":"'Budget - Mon programme'!$I$163-'Budget - Mon programme'!$I$160-'Budget - Mon programme'!$I$158-'Budget - Mon programme'!$I$144-'Budget - Mon programme'!$I$143-'Budget - Mon programme'!$I$140-'Budget - Mon programme'!$I$139-'Budget - Mon programme'!$I$138-'Budget - Mon programme'!$I$137-'Budget - Mon programme'!$I$136-'Budget - Mon programme'!$I$135-'Budget - Mon programme'!$I$134+'Tableau d''analyse - Mon program'!C45","v":2751.2253231066557},{"$f":"'Budget - Mon programme'!$J$163-'Budget - Mon programme'!$J$160-'Budget - Mon programme'!J158-'Budget - Mon programme'!$J$144-'Budget - Mon programme'!$J$143-'Budget - Mon programme'!$J$140-'Budget - Mon programme'!$J$139-'Budget - Mon programme'!$J$138-'Budget - Mon programme'!$J$137-'Budget - Mon programme'!$J$136-'Budget - Mon programme'!$J$135-'Budget - Mon programme'!$J$134+('Tableau d''analyse - Mon program'!C45/'Données de base - Mon programme'!$D$64)","v":17.488496277116973},{"$f":"'Budget - Mon programme'!$I$172-'Budget - Mon programme'!$I$169-'Budget - Mon programme'!$I$160-'Budget - Mon programme'!$I$144-'Budget - Mon programme'!$I$143-'Budget - Mon programme'!$I$140-'Budget - Mon programme'!$I$139-'Budget - Mon programme'!$I$138-'Budget - Mon programme'!$I$137-'Budget - Mon programme'!I$136-'Budget - Mon programme'!$I$135-'Budget - Mon programme'!$I$134+'Tableau d''analyse - Mon program'!B45","v":2817.487035435423},{"$f":"'Budget - Mon programme'!$J$172-'Budget - Mon programme'!$J$169-'Budget - Mon programme'!$J$160-'Budget - Mon programme'!$J$144-'Budget - Mon programme'!$J$143-'Budget - Mon programme'!$J$140-'Budget - Mon programme'!$J$139-'Budget - Mon programme'!$J$137-'Budget - Mon programme'!$J$136-'Budget - Mon programme'!$J$135-'Budget - Mon programme'!$J$134+('Tableau d''analyse - Mon program'!B45/('Données de base - Mon programme'!$D$64*10))","v":18.10039548564475}]
[null,2000,{"$f":"B46/'Budget - Mon programme'!$D$26","v":200},{"$f":"'Budget - Mon programme'!$I$163-'Budget - Mon programme'!$I$160-'Budget - Mon programme'!$I$158-'Budget - Mon programme'!$I$144-'Budget - Mon programme'!$I$143-'Budget - Mon programme'!$I$140-'Budget - Mon programme'!$I$139-'Budget - Mon programme'!$I$138-'Budget - Mon programme'!$I$137-'Budget - Mon programme'!$I$136-'Budget - Mon programme'!$I$135-'Budget - Mon programme'!$I$134+'Tableau d''analyse - Mon program'!C46","v":2951.2253231066557},{"$f":"'Budget - Mon programme'!$J$163-'Budget - Mon programme'!$J$160-'Budget - Mon programme'!J159-'Budget - Mon programme'!$J$144-'Budget - Mon programme'!$J$143-'Budget - Mon programme'!$J$140-'Budget - Mon programme'!$J$139-'Budget - Mon programme'!$J$138-'Budget - Mon programme'!$J$137-'Budget - Mon programme'!$J$136-'Budget - Mon programme'!$J$135-'Budget - Mon programme'!$J$134+('Tableau d''analyse - Mon program'!C46/'Données de base - Mon programme'!$D$64)","v":18.96100749914206},{"$f":"'Budget - Mon programme'!$I$172-'Budget - Mon programme'!$I$169-'Budget - Mon programme'!$I$160-'Budget - Mon programme'!$I$144-'Budget - Mon programme'!$I$143-'Budget - Mon programme'!$I$140-'Budget - Mon programme'!$I$139-'Budget - Mon programme'!$I$138-'Budget - Mon programme'!$I$137-'Budget - Mon programme'!I$136-'Budget - Mon programme'!$I$135-'Budget - Mon programme'!$I$134+'Tableau d''analyse - Mon program'!B46","v":4817.4870354354225},{"$f":"'Budget - Mon programme'!$J$172-'Budget - Mon programme'!$J$169-'Budget - Mon programme'!$J$160-'Budget - Mon programme'!$J$144-'Budget - Mon programme'!$J$143-'Budget - Mon programme'!$J$140-'Budget - Mon programme'!$J$139-'Budget - Mon programme'!$J$137-'Budget - Mon programme'!$J$136-'Budget - Mon programme'!$J$135-'Budget - Mon programme'!$J$134+('Tableau d''analyse - Mon program'!B46/('Données de base - Mon programme'!$D$64*10))","v":19.371719657477332}]
[null,4000,{"$f":"B47/'Budget - Mon programme'!$D$26","v":400},{"$f":"'Budget - Mon programme'!$I$163-'Budget - Mon programme'!$I$160-'Budget - Mon programme'!$I$158-'Budget - Mon programme'!$I$144-'Budget - Mon programme'!$I$143-'Budget - Mon programme'!$I$140-'Budget - Mon programme'!$I$139-'Budget - Mon programme'!$I$138-'Budget - Mon programme'!$I$137-'Budget - Mon programme'!$I$136-'Budget - Mon programme'!$I$135-'Budget - Mon programme'!$I$134+'Tableau d''analyse - Mon program'!C47","v":3151.2253231066557},{"$f":"'Budget - Mon programme'!$J$163-'Budget - Mon programme'!$J$160-'Budget - Mon programme'!J160-'Budget - Mon programme'!$J$144-'Budget - Mon programme'!$J$143-'Budget - Mon programme'!$J$140-'Budget - Mon programme'!$J$139-'Budget - Mon programme'!$J$138-'Budget - Mon programme'!$J$137-'Budget - Mon programme'!$J$136-'Budget - Mon programme'!$J$135-'Budget - Mon programme'!$J$134+('Tableau d''analyse - Mon program'!C47/'Données de base - Mon programme'!$D$64)","v":18.802091977662986},{"$f":"'Budget - Mon programme'!$I$172-'Budget - Mon programme'!$I$169-'Budget - Mon programme'!$I$160-'Budget - Mon programme'!$I$144-'Budget - Mon programme'!$I$143-'Budget - Mon programme'!$I$140-'Budget - Mon programme'!$I$139-'Budget - Mon programme'!$I$138-'Budget - Mon programme'!$I$137-'Budget - Mon programme'!I$136-'Budget - Mon programme'!$I$135-'Budget - Mon programme'!$I$134+'Tableau d''analyse - Mon program'!B47","v":6817.4870354354225},{"$f":"'Budget - Mon programme'!$J$172-'Budget - Mon programme'!$J$169-'Budget - Mon programme'!$J$160-'Budget - Mon programme'!$J$144-'Budget - Mon programme'!$J$143-'Budget - Mon programme'!$J$140-'Budget - Mon programme'!$J$139-'Budget - Mon programme'!$J$137-'Budget - Mon programme'!$J$136-'Budget - Mon programme'!$J$135-'Budget - Mon programme'!$J$134+('Tableau d''analyse - Mon program'!B47/('Données de base - Mon programme'!$D$64*10))","v":20.64304382930991}]
[null,5000,{"$f":"B48/'Budget - Mon programme'!$D$26","v":500},{"$f":"'Budget - Mon programme'!$I$163-'Budget - Mon programme'!$I$160-'Budget - Mon programme'!$I$158-'Budget - Mon programme'!$I$144-'Budget - Mon programme'!$I$143-'Budget - Mon programme'!$I$140-'Budget - Mon programme'!$I$139-'Budget - Mon programme'!$I$138-'Budget - Mon programme'!$I$137-'Budget - Mon programme'!$I$136-'Budget - Mon programme'!$I$135-'Budget - Mon programme'!$I$134+'Tableau d''analyse - Mon program'!C48","v":3251.2253231066557},{"$f":"'Budget - Mon programme'!$J$163-'Budget - Mon programme'!$J$160-'Budget - Mon programme'!J161-'Budget - Mon programme'!$J$144-'Budget - Mon programme'!$J$143-'Budget - Mon programme'!$J$140-'Budget - Mon programme'!$J$139-'Budget - Mon programme'!$J$138-'Budget - Mon programme'!$J$137-'Budget - Mon programme'!$J$136-'Budget - Mon programme'!$J$135-'Budget - Mon programme'!$J$134+('Tableau d''analyse - Mon program'!C48/'Données de base - Mon programme'!$D$64)","v":20.867993756890929},{"$f":"'Budget - Mon programme'!$I$172-'Budget - Mon programme'!$I$169-'Budget - Mon programme'!$I$160-'Budget - Mon programme'!$I$144-'Budget - Mon programme'!$I$143-'Budget - Mon programme'!$I$140-'Budget - Mon programme'!$I$139-'Budget - Mon programme'!$I$138-'Budget - Mon programme'!$I$137-'Budget - Mon programme'!I$136-'Budget - Mon programme'!$I$135-'Budget - Mon programme'!$I$134+'Tableau d''analyse - Mon program'!B48","v":7817.4870354354225},{"$f":"'Budget - Mon programme'!$J$172-'Budget - Mon programme'!$J$169-'Budget - Mon programme'!$J$160-'Budget - Mon programme'!$J$144-'Budget - Mon programme'!$J$143-'Budget - Mon programme'!$J$140-'Budget - Mon programme'!$J$139-'Budget - Mon programme'!$J$137-'Budget - Mon programme'!$J$136-'Budget - Mon programme'!$J$135-'Budget - Mon programme'!$J$134+('Tableau d''analyse - Mon program'!B48/('Données de base - Mon programme'!$D$64*10))","v":21.278705915226201}]
[null,10000,{"$f":"B49/'Budget - Mon programme'!$D$26","v":1000},{"$f":"'Budget - Mon programme'!$I$163-'Budget - Mon programme'!$I$160-'Budget - Mon programme'!$I$158-'Budget - Mon programme'!$I$144-'Budget - Mon programme'!$I$143-'Budget - Mon programme'!$I$140-'Budget - Mon programme'!$I$139-'Budget - Mon programme'!$I$138-'Budget - Mon programme'!$I$137-'Budget - Mon programme'!$I$136-'Budget - Mon programme'!$I$135-'Budget - Mon programme'!$I$134+'Tableau d''analyse - Mon program'!C49","v":3751.2253231066557},{"$f":"'Budget - Mon programme'!$J$163-'Budget - Mon programme'!$J$160-'Budget - Mon programme'!J162-'Budget - Mon programme'!$J$144-'Budget - Mon programme'!$J$143-'Budget - Mon programme'!$J$140-'Budget - Mon programme'!$J$139-'Budget - Mon programme'!$J$138-'Budget - Mon programme'!$J$137-'Budget - Mon programme'!$J$136-'Budget - Mon programme'!$J$135-'Budget - Mon programme'!$J$134+('Tableau d''analyse - Mon program'!C49/'Données de base - Mon programme'!$D$64)","v":24.046304186472383},{"$f":"'Budget - Mon programme'!$I$172-'Budget - Mon programme'!$I$169-'Budget - Mon programme'!$I$160-'Budget - Mon programme'!$I$144-'Budget - Mon programme'!$I$143-'Budget - Mon programme'!$I$140-'Budget - Mon programme'!$I$139-'Budget - Mon programme'!$I$138-'Budget - Mon programme'!$I$137-'Budget - Mon programme'!I$136-'Budget - Mon programme'!$I$135-'Budget - Mon programme'!$I$134+'Tableau d''analyse - Mon program'!B49","v":12817.487035435423},{"$f":"'Budget - Mon programme'!$J$172-'Budget - Mon programme'!$J$169-'Budget - Mon programme'!$J$160-'Budget - Mon programme'!$J$144-'Budget - Mon programme'!$J$143-'Budget - Mon programme'!$J$140-'Budget - Mon programme'!$J$139-'Budget - Mon programme'!$J$137-'Budget - Mon programme'!$J$136-'Budget - Mon programme'!$J$135-'Budget - Mon programme'!$J$134+('Tableau d''analyse - Mon program'!B49/('Données de base - Mon programme'!$D$64*10))","v":24.457016344807656}]
[]
[]
[null,"Effet du rendement de la carcasse et en viande sur le prix cible (kg de viande)"]
[null,"Rendement","Rendement en viande %"]
[null,"de la carcasse %",0.55000000000000004,0.59,0.61,0.63,0.65,null,null,"kg carcasse","kg viande"]
[null,0.5,{"$f":"('Budget - Mon programme'!$I$123+'Budget - Mon programme'!$I$128+'Budget - Mon programme'!$I$129+'Budget - Mon programme'!$I$130+'Budget - Mon programme'!$I$131+'Budget - Mon programme'!$I$133+'Budget - Mon programme'!$I$136+'Budget - Mon programme'!$I$137+'Budget - Mon programme'!$I$138+'Budget - Mon programme'!$I$139+'Budget - Mon programme'!$I$140+'Budget - Mon programme'!$I$141+'Budget - Mon programme'!$I$143+'Budget - Mon programme'!$I$144+'Budget - Mon programme'!$I$158+'Budget - Mon programme'!$I$160-'Budget - Mon programme'!$I$151-'Budget - Mon programme'!$I$135-'Budget - Mon programme'!$I$134-'Budget - Mon programme'!$I$132+('Budget - Mon programme'!$F$132*'Tableau d''analyse - Mon program'!$J55)+('Budget - Mon programme'!$F$134*'Tableau d''analyse - Mon program'!K55)+('Budget - Mon programme'!$F$135*'Tableau d''analyse - Mon program'!K55)+('Budget - Mon programme'!$E$148*'Budget - Mon programme'!$D$147*'Tableau d''analyse - Mon program'!K55)+('Budget - Mon programme'!$E$149*'Budget - Mon programme'!$D$147*'Tableau d''analyse - Mon program'!K55)-('Budget - Mon programme'!$E$150*'Budget - Mon programme'!$D$147*'Tableau d''analyse - Mon program'!K55))/K55","v":23.736941899030199},{"$f":"('Budget - Mon programme'!$I$123+'Budget - Mon programme'!$I$128+'Budget - Mon programme'!$I$129+'Budget - Mon programme'!$I$130+'Budget - Mon programme'!$I$131+'Budget - Mon programme'!$I$133+'Budget - Mon programme'!$I$136+'Budget - Mon programme'!$I$137+'Budget - Mon programme'!$I$138+'Budget - Mon programme'!$I$139+'Budget - Mon programme'!$I$140+'Budget - Mon programme'!$I$141+'Budget - Mon programme'!$I$143+'Budget - Mon programme'!$I$144+'Budget - Mon programme'!$I$158+'Budget - Mon programme'!$I$160-'Budget - Mon programme'!$I$151-'Budget - Mon programme'!$I$135-'Budget - Mon programme'!$I$134-'Budget - Mon programme'!$I$132+('Budget - Mon programme'!$F$132*'Tableau d''analyse - Mon program'!$J55)+('Budget - Mon programme'!$F$134*'Tableau d''analyse - Mon program'!L55)+('Budget - Mon programme'!$F$135*'Tableau d''analyse - Mon program'!L55)+('Budget - Mon programme'!$E$148*'Budget - Mon programme'!$D$147*'Tableau d''analyse - Mon program'!L55)+('Budget - Mon programme'!$E$149*'Budget - Mon programme'!$D$147*'Tableau d''analyse - Mon program'!L55)-('Budget - Mon programme'!$E$150*'Budget - Mon programme'!$D$147*'Tableau d''analyse - Mon program'!L55))/L55","v":22.135006855028156},{"$f":"('Budget - Mon programme'!$I$123+'Budget - Mon programme'!$I$128+'Budget - Mon programme'!$I$129+'Budget - Mon programme'!$I$130+'Budget - Mon programme'!$I$131+'Budget - Mon programme'!$I$133+'Budget - Mon programme'!$I$136+'Budget - Mon programme'!$I$137+'Budget - Mon programme'!$I$138+'Budget - Mon programme'!$I$139+'Budget - Mon programme'!$I$140+'Budget - Mon programme'!$I$141+'Budget - Mon programme'!$I$143+'Budget - Mon programme'!$I$144+'Budget - Mon programme'!$I$158+'Budget - Mon programme'!$I$160-'Budget - Mon programme'!$I$151-'Budget - Mon programme'!$I$135-'Budget - Mon programme'!$I$134-'Budget - Mon programme'!$I$132+('Budget - Mon programme'!$F$132*'Tableau d''analyse - Mon program'!$J55)+('Budget - Mon programme'!$F$134*'Tableau d''analyse - Mon program'!M55)+('Budget - Mon programme'!$F$135*'Tableau d''analyse - Mon program'!M55)+('Budget - Mon programme'!$E$148*'Budget - Mon programme'!$D$147*'Tableau d''analyse - Mon program'!M55)+('Budget - Mon programme'!$E$149*'Budget - Mon programme'!$D$147*'Tableau d''analyse - Mon program'!M55)-('Budget - Mon programme'!$E$150*'Budget - Mon programme'!$D$147*'Tableau d''analyse - Mon program'!M55))/M55","v":21.412823023715752},{"$f":"('Budget - Mon programme'!$I$123+'Budget - Mon programme'!$I$128+'Budget - Mon programme'!$I$129+'Budget - Mon programme'!$I$130+'Budget - Mon programme'!$I$131+'Budget - Mon programme'!$I$133+'Budget - Mon programme'!$I$136+'Budget - Mon programme'!$I$137+'Budget - Mon programme'!$I$138+'Budget - Mon programme'!$I$139+'Budget - Mon programme'!$I$140+'Budget - Mon programme'!$I$141+'Budget - Mon programme'!$I$143+'Budget - Mon programme'!$I$144+'Budget - Mon programme'!$I$158+'Budget - Mon programme'!$I$160-'Budget - Mon programme'!$I$151-'Budget - Mon programme'!$I$135-'Budget - Mon programme'!$I$134-'Budget - Mon programme'!$I$132+('Budget - Mon programme'!$F$132*'Tableau d''analyse - Mon program'!$J55)+('Budget - Mon programme'!$F$134*'Tableau d''analyse - Mon program'!N55)+('Budget - Mon programme'!$F$135*'Tableau d''analyse - Mon program'!N55)+('Budget - Mon programme'!$E$148*'Budget - Mon programme'!$D$147*'Tableau d''analyse - Mon program'!N55)+('Budget - Mon programme'!$E$149*'Budget - Mon programme'!$D$147*'Tableau d''analyse - Mon program'!N55)-('Budget - Mon programme'!$E$150*'Budget - Mon programme'!$D$147*'Tableau d''analyse - Mon program'!N55))/N55","v":20.736492134073984},{"$f":"('Budget - Mon programme'!$I$123+'Budget - Mon programme'!$I$128+'Budget - Mon programme'!$I$129+'Budget - Mon programme'!$I$130+'Budget - Mon programme'!$I$131+'Budget - Mon programme'!$I$133+'Budget - Mon programme'!$I$136+'Budget - Mon programme'!$I$137+'Budget - Mon programme'!$I$138+'Budget - Mon programme'!$I$139+'Budget - Mon programme'!$I$140+'Budget - Mon programme'!$I$141+'Budget - Mon programme'!$I$143+'Budget - Mon programme'!$I$144+'Budget - Mon programme'!$I$158+'Budget - Mon programme'!$I$160-'Budget - Mon programme'!$I$151-'Budget - Mon programme'!$I$135-'Budget - Mon programme'!$I$134-'Budget - Mon programme'!$I$132+('Budget - Mon programme'!$F$132*'Tableau d''analyse - Mon program'!$J55)+('Budget - Mon programme'!$F$134*'Tableau d''analyse - Mon program'!O55)+('Budget - Mon programme'!$F$135*'Tableau d''analyse - Mon program'!O55)+('Budget - Mon programme'!$E$148*'Budget - Mon programme'!$D$147*'Tableau d''analyse - Mon program'!O55)+('Budget - Mon programme'!$E$149*'Budget - Mon programme'!$D$147*'Tableau d''analyse - Mon program'!O55)-('Budget - Mon programme'!$E$150*'Budget - Mon programme'!$D$147*'Tableau d''analyse - Mon program'!O55))/O55","v":20.101781606871707},null,null,{"$f":"'Données de base - Mon programme'!$D$61*'Tableau d''analyse - Mon program'!B55","v":231.93600000000001},{"$f":"J55*(1-'Données de base - Mon programme'!$C$63)*'Tableau d''analyse - Mon program'!$C$54*(1-'Données de base - Mon programme'!$C$65)","v":120.01296384},{"$f":"$J55*(1-'Données de base - Mon programme'!$C$63)*'Tableau d''analyse - Mon program'!D$54*(1-'Données de base - Mon programme'!$C$65)","v":128.74117939199999},{"$f":"$J55*(1-'Données de base - Mon programme'!$C$63)*'Tableau d''analyse - Mon program'!E$54*(1-'Données de base - Mon programme'!$C$65)","v":133.10528716799999},{"$f":"$J55*(1-'Données de base - Mon programme'!$C$63)*'Tableau d''analyse - Mon program'!F$54*(1-'Données de base - Mon programme'!$C$65)","v":137.46939494399999},{"$f":"$J55*(1-'Données de base - Mon programme'!$C$63)*'Tableau d''analyse - Mon program'!G$54*(1-'Données de base - Mon programme'!$C$65)","v":141.83350271999998}]
[null,0.52,{"$f":"('Budget - Mon programme'!$I$123+'Budget - Mon programme'!$I$128+'Budget - Mon programme'!$I$129+'Budget - Mon programme'!$I$130+'Budget - Mon programme'!$I$131+'Budget - Mon programme'!$I$133+'Budget - Mon programme'!$I$136+'Budget - Mon programme'!$I$137+'Budget - Mon programme'!$I$138+'Budget - Mon programme'!$I$139+'Budget - Mon programme'!$I$140+'Budget - Mon programme'!$I$141+'Budget - Mon programme'!$I$143+'Budget - Mon programme'!$I$144+'Budget - Mon programme'!$I$158+'Budget - Mon programme'!$I$160-'Budget - Mon programme'!$I$151-'Budget - Mon programme'!$I$135-'Budget - Mon programme'!$I$134-'Budget - Mon programme'!$I$132+('Budget - Mon programme'!$F$132*'Tableau d''analyse - Mon program'!$J56)+('Budget - Mon programme'!$F$134*'Tableau d''analyse - Mon program'!K56)+('Budget - Mon programme'!$F$135*'Tableau d''analyse - Mon program'!K56)+('Budget - Mon programme'!$E$148*'Budget - Mon programme'!$D$147*'Tableau d''analyse - Mon program'!K56)+('Budget - Mon programme'!$E$149*'Budget - Mon programme'!$D$147*'Tableau d''analyse - Mon program'!K56)-('Budget - Mon programme'!$E$150*'Budget - Mon programme'!$D$147*'Tableau d''analyse - Mon program'!K56))/K56","v":22.891332692742868},{"$f":"('Budget - Mon programme'!$I$123+'Budget - Mon programme'!$I$128+'Budget - Mon programme'!$I$129+'Budget - Mon programme'!$I$130+'Budget - Mon programme'!$I$131+'Budget - Mon programme'!$I$133+'Budget - Mon programme'!$I$136+'Budget - Mon programme'!$I$137+'Budget - Mon programme'!$I$138+'Budget - Mon programme'!$I$139+'Budget - Mon programme'!$I$140+'Budget - Mon programme'!$I$141+'Budget - Mon programme'!$I$143+'Budget - Mon programme'!$I$144+'Budget - Mon programme'!$I$158+'Budget - Mon programme'!$I$160-'Budget - Mon programme'!$I$151-'Budget - Mon programme'!$I$135-'Budget - Mon programme'!$I$134-'Budget - Mon programme'!$I$132+('Budget - Mon programme'!$F$132*'Tableau d''analyse - Mon program'!$J56)+('Budget - Mon programme'!$F$134*'Tableau d''analyse - Mon program'!L56)+('Budget - Mon programme'!$F$135*'Tableau d''analyse - Mon program'!L56)+('Budget - Mon programme'!$E$148*'Budget - Mon programme'!$D$147*'Tableau d''analyse - Mon program'!L56)+('Budget - Mon programme'!$E$149*'Budget - Mon programme'!$D$147*'Tableau d''analyse - Mon program'!L56)-('Budget - Mon programme'!$E$150*'Budget - Mon programme'!$D$147*'Tableau d''analyse - Mon program'!L56))/L56","v":21.346727086455221},{"$f":"('Budget - Mon programme'!$I$123+'Budget - Mon programme'!$I$128+'Budget - Mon programme'!$I$129+'Budget - Mon programme'!$I$130+'Budget - Mon programme'!$I$131+'Budget - Mon programme'!$I$133+'Budget - Mon programme'!$I$136+'Budget - Mon programme'!$I$137+'Budget - Mon programme'!$I$138+'Budget - Mon programme'!$I$139+'Budget - Mon programme'!$I$140+'Budget - Mon programme'!$I$141+'Budget - Mon programme'!$I$143+'Budget - Mon programme'!$I$144+'Budget - Mon programme'!$I$158+'Budget - Mon programme'!$I$160-'Budget - Mon programme'!$I$151-'Budget - Mon programme'!$I$135-'Budget - Mon programme'!$I$134-'Budget - Mon programme'!$I$132+('Budget - Mon programme'!$F$132*'Tableau d''analyse - Mon program'!$J56)+('Budget - Mon programme'!$F$134*'Tableau d''analyse - Mon program'!M56)+('Budget - Mon programme'!$F$135*'Tableau d''analyse - Mon program'!M56)+('Budget - Mon programme'!$E$148*'Budget - Mon programme'!$D$147*'Tableau d''analyse - Mon program'!M56)+('Budget - Mon programme'!$E$149*'Budget - Mon programme'!$D$147*'Tableau d''analyse - Mon program'!M56)-('Budget - Mon programme'!$E$150*'Budget - Mon programme'!$D$147*'Tableau d''analyse - Mon program'!M56))/M56","v":20.650388493456685},{"$f":"('Budget - Mon programme'!$I$123+'Budget - Mon programme'!$I$128+'Budget - Mon programme'!$I$129+'Budget - Mon programme'!$I$130+'Budget - Mon programme'!$I$131+'Budget - Mon programme'!$I$133+'Budget - Mon programme'!$I$136+'Budget - Mon programme'!$I$137+'Budget - Mon programme'!$I$138+'Budget - Mon programme'!$I$139+'Budget - Mon programme'!$I$140+'Budget - Mon programme'!$I$141+'Budget - Mon programme'!$I$143+'Budget - Mon programme'!$I$144+'Budget - Mon programme'!$I$158+'Budget - Mon programme'!$I$160-'Budget - Mon programme'!$I$151-'Budget - Mon programme'!$I$135-'Budget - Mon programme'!$I$134-'Budget - Mon programme'!$I$132+('Budget - Mon programme'!$F$132*'Tableau d''analyse - Mon program'!$J56)+('Budget - Mon programme'!$F$134*'Tableau d''analyse - Mon program'!N56)+('Budget - Mon programme'!$F$135*'Tableau d''analyse - Mon program'!N56)+('Budget - Mon programme'!$E$148*'Budget - Mon programme'!$D$147*'Tableau d''analyse - Mon program'!N56)+('Budget - Mon programme'!$E$149*'Budget - Mon programme'!$D$147*'Tableau d''analyse - Mon program'!N56)-('Budget - Mon programme'!$E$150*'Budget - Mon programme'!$D$147*'Tableau d''analyse - Mon program'!N56))/N56","v":19.998261874616787},{"$f":"('Budget - Mon programme'!$I$123+'Budget - Mon programme'!$I$128+'Budget - Mon programme'!$I$129+'Budget - Mon programme'!$I$130+'Budget - Mon programme'!$I$131+'Budget - Mon programme'!$I$133+'Budget - Mon programme'!$I$136+'Budget - Mon programme'!$I$137+'Budget - Mon programme'!$I$138+'Budget - Mon programme'!$I$139+'Budget - Mon programme'!$I$140+'Budget - Mon programme'!$I$141+'Budget - Mon programme'!$I$143+'Budget - Mon programme'!$I$144+'Budget - Mon programme'!$I$158+'Budget - Mon programme'!$I$160-'Budget - Mon programme'!$I$151-'Budget - Mon programme'!$I$135-'Budget - Mon programme'!$I$134-'Budget - Mon programme'!$I$132+('Budget - Mon programme'!$F$132*'Tableau d''analyse - Mon program'!$J56)+('Budget - Mon programme'!$F$134*'Tableau d''analyse - Mon program'!O56)+('Budget - Mon programme'!$F$135*'Tableau d''analyse - Mon program'!O56)+('Budget - Mon programme'!$E$148*'Budget - Mon programme'!$D$147*'Tableau d''analyse - Mon program'!O56)+('Budget - Mon programme'!$E$149*'Budget - Mon programme'!$D$147*'Tableau d''analyse - Mon program'!O56)-('Budget - Mon programme'!$E$150*'Budget - Mon programme'!$D$147*'Tableau d''analyse - Mon program'!O56))/O56","v":19.386266124628584},null,null,{"$f":"'Données de base - Mon programme'!$D$61*'Tableau d''analyse - Mon program'!B56","v":241.21344000000002},{"$f":"J56*(1-'Données de base - Mon programme'!$C$63)*'Tableau d''analyse - Mon program'!$C$54*(1-'Données de base - Mon programme'!$C$65)","v":124.81348239360001},{"$f":"$J56*(1-'Données de base - Mon programme'!$C$63)*'Tableau d''analyse - Mon program'!D$54*(1-'Données de base - Mon programme'!$C$65)","v":133.89082656767999},{"$f":"$J56*(1-'Données de base - Mon programme'!$C$63)*'Tableau d''analyse - Mon program'!E$54*(1-'Données de base - Mon programme'!$C$65)","v":138.42949865472002},{"$f":"$J56*(1-'Données de base - Mon programme'!$C$63)*'Tableau d''analyse - Mon program'!F$54*(1-'Données de base - Mon programme'!$C$65)","v":142.96817074176002},{"$f":"$J56*(1-'Données de base - Mon programme'!$C$63)*'Tableau d''analyse - Mon program'!G$54*(1-'Données de base - Mon programme'!$C$65)","v":147.50684282880002}]
[null,0.54,{"$f":"('Budget - Mon programme'!$I$123+'Budget - Mon programme'!$I$128+'Budget - Mon programme'!$I$129+'Budget - Mon programme'!$I$130+'Budget - Mon programme'!$I$131+'Budget - Mon programme'!$I$133+'Budget - Mon programme'!$I$136+'Budget - Mon programme'!$I$137+'Budget - Mon programme'!$I$138+'Budget - Mon programme'!$I$139+'Budget - Mon programme'!$I$140+'Budget - Mon programme'!$I$141+'Budget - Mon programme'!$I$143+'Budget - Mon programme'!$I$144+'Budget - Mon programme'!$I$158+'Budget - Mon programme'!$I$160-'Budget - Mon programme'!$I$151-'Budget - Mon programme'!$I$135-'Budget - Mon programme'!$I$134-'Budget - Mon programme'!$I$132+('Budget - Mon programme'!$F$132*'Tableau d''analyse - Mon program'!$J57)+('Budget - Mon programme'!$F$134*'Tableau d''analyse - Mon program'!K57)+('Budget - Mon programme'!$F$135*'Tableau d''analyse - Mon program'!K57)+('Budget - Mon programme'!$E$148*'Budget - Mon programme'!$D$147*'Tableau d''analyse - Mon program'!K57)+('Budget - Mon programme'!$E$149*'Budget - Mon programme'!$D$147*'Tableau d''analyse - Mon program'!K57)-('Budget - Mon programme'!$E$150*'Budget - Mon programme'!$D$147*'Tableau d''analyse - Mon program'!K57))/K57","v":22.108361205439788},{"$f":"('Budget - Mon programme'!$I$123+'Budget - Mon programme'!$I$128+'Budget - Mon programme'!$I$129+'Budget - Mon programme'!$I$130+'Budget - Mon programme'!$I$131+'Budget - Mon programme'!$I$133+'Budget - Mon programme'!$I$136+'Budget - Mon programme'!$I$137+'Budget - Mon programme'!$I$138+'Budget - Mon programme'!$I$139+'Budget - Mon programme'!$I$140+'Budget - Mon programme'!$I$141+'Budget - Mon programme'!$I$143+'Budget - Mon programme'!$I$144+'Budget - Mon programme'!$I$158+'Budget - Mon programme'!$I$160-'Budget - Mon programme'!$I$151-'Budget - Mon programme'!$I$135-'Budget - Mon programme'!$I$134-'Budget - Mon programme'!$I$132+('Budget - Mon programme'!$F$132*'Tableau d''analyse - Mon program'!$J57)+('Budget - Mon programme'!$F$134*'Tableau d''analyse - Mon program'!L57)+('Budget - Mon programme'!$F$135*'Tableau d''analyse - Mon program'!L57)+('Budget - Mon programme'!$E$148*'Budget - Mon programme'!$D$147*'Tableau d''analyse - Mon program'!L57)+('Budget - Mon programme'!$E$149*'Budget - Mon programme'!$D$147*'Tableau d''analyse - Mon program'!L57)-('Budget - Mon programme'!$E$150*'Budget - Mon programme'!$D$147*'Tableau d''analyse - Mon program'!L57))/L57","v":20.616838411850654},{"$f":"('Budget - Mon programme'!$I$123+'Budget - Mon programme'!$I$128+'Budget - Mon programme'!$I$129+'Budget - Mon programme'!$I$130+'Budget - Mon programme'!$I$131+'Budget - Mon programme'!$I$133+'Budget - Mon programme'!$I$136+'Budget - Mon programme'!$I$137+'Budget - Mon programme'!$I$138+'Budget - Mon programme'!$I$139+'Budget - Mon programme'!$I$140+'Budget - Mon programme'!$I$141+'Budget - Mon programme'!$I$143+'Budget - Mon programme'!$I$144+'Budget - Mon programme'!$I$158+'Budget - Mon programme'!$I$160-'Budget - Mon programme'!$I$151-'Budget - Mon programme'!$I$135-'Budget - Mon programme'!$I$134-'Budget - Mon programme'!$I$132+('Budget - Mon programme'!$F$132*'Tableau d''analyse - Mon program'!$J57)+('Budget - Mon programme'!$F$134*'Tableau d''analyse - Mon program'!M57)+('Budget - Mon programme'!$F$135*'Tableau d''analyse - Mon program'!M57)+('Budget - Mon programme'!$E$148*'Budget - Mon programme'!$D$147*'Tableau d''analyse - Mon program'!M57)+('Budget - Mon programme'!$E$149*'Budget - Mon programme'!$D$147*'Tableau d''analyse - Mon program'!M57)-('Budget - Mon programme'!$E$150*'Budget - Mon programme'!$D$147*'Tableau d''analyse - Mon program'!M57))/M57","v":19.944430595068663},{"$f":"('Budget - Mon programme'!$I$123+'Budget - Mon programme'!$I$128+'Budget - Mon programme'!$I$129+'Budget - Mon programme'!$I$130+'Budget - Mon programme'!$I$131+'Budget - Mon programme'!$I$133+'Budget - Mon programme'!$I$136+'Budget - Mon programme'!$I$137+'Budget - Mon programme'!$I$138+'Budget - Mon programme'!$I$139+'Budget - Mon programme'!$I$140+'Budget - Mon programme'!$I$141+'Budget - Mon programme'!$I$143+'Budget - Mon programme'!$I$144+'Budget - Mon programme'!$I$158+'Budget - Mon programme'!$I$160-'Budget - Mon programme'!$I$151-'Budget - Mon programme'!$I$135-'Budget - Mon programme'!$I$134-'Budget - Mon programme'!$I$132+('Budget - Mon programme'!$F$132*'Tableau d''analyse - Mon program'!$J57)+('Budget - Mon programme'!$F$134*'Tableau d''analyse - Mon program'!N57)+('Budget - Mon programme'!$F$135*'Tableau d''analyse - Mon program'!N57)+('Budget - Mon programme'!$E$148*'Budget - Mon programme'!$D$147*'Tableau d''analyse - Mon program'!N57)+('Budget - Mon programme'!$E$149*'Budget - Mon programme'!$D$147*'Tableau d''analyse - Mon program'!N57)-('Budget - Mon programme'!$E$150*'Budget - Mon programme'!$D$147*'Tableau d''analyse - Mon program'!N57))/N57","v":19.314715338082355},{"$f":"('Budget - Mon programme'!$I$123+'Budget - Mon programme'!$I$128+'Budget - Mon programme'!$I$129+'Budget - Mon programme'!$I$130+'Budget - Mon programme'!$I$131+'Budget - Mon programme'!$I$133+'Budget - Mon programme'!$I$136+'Budget - Mon programme'!$I$137+'Budget - Mon programme'!$I$138+'Budget - Mon programme'!$I$139+'Budget - Mon programme'!$I$140+'Budget - Mon programme'!$I$141+'Budget - Mon programme'!$I$143+'Budget - Mon programme'!$I$144+'Budget - Mon programme'!$I$158+'Budget - Mon programme'!$I$160-'Budget - Mon programme'!$I$151-'Budget - Mon programme'!$I$135-'Budget - Mon programme'!$I$134-'Budget - Mon programme'!$I$132+('Budget - Mon programme'!$F$132*'Tableau d''analyse - Mon program'!$J57)+('Budget - Mon programme'!$F$134*'Tableau d''analyse - Mon program'!O57)+('Budget - Mon programme'!$F$135*'Tableau d''analyse - Mon program'!O57)+('Budget - Mon programme'!$E$148*'Budget - Mon programme'!$D$147*'Tableau d''analyse - Mon program'!O57)+('Budget - Mon programme'!$E$149*'Budget - Mon programme'!$D$147*'Tableau d''analyse - Mon program'!O57)-('Budget - Mon programme'!$E$150*'Budget - Mon programme'!$D$147*'Tableau d''analyse - Mon program'!O57))/O57","v":18.723751789218287},null,null,{"$f":"'Données de base - Mon programme'!$D$61*'Tableau d''analyse - Mon program'!B57","v":250.49088000000003},{"$f":"J57*(1-'Données de base - Mon programme'!$C$63)*'Tableau d''analyse - Mon program'!$C$54*(1-'Données de base - Mon programme'!$C$65)","v":129.61400094720003},{"$f":"$J57*(1-'Données de base - Mon programme'!$C$63)*'Tableau d''analyse - Mon program'!D$54*(1-'Données de base - Mon programme'!$C$65)","v":139.04047374336},{"$f":"$J57*(1-'Données de base - Mon programme'!$C$63)*'Tableau d''analyse - Mon program'!E$54*(1-'Données de base - Mon programme'!$C$65)","v":143.75371014144002},{"$f":"$J57*(1-'Données de base - Mon programme'!$C$63)*'Tableau d''analyse - Mon program'!F$54*(1-'Données de base - Mon programme'!$C$65)","v":148.46694653952002},{"$f":"$J57*(1-'Données de base - Mon programme'!$C$63)*'Tableau d''analyse - Mon program'!G$54*(1-'Données de base - Mon programme'!$C$65)","v":153.18018293759999}]
[null,0.56000000000000005,{"$f":"('Budget - Mon programme'!$I$123+'Budget - Mon programme'!$I$128+'Budget - Mon programme'!$I$129+'Budget - Mon programme'!$I$130+'Budget - Mon programme'!$I$131+'Budget - Mon programme'!$I$133+'Budget - Mon programme'!$I$136+'Budget - Mon programme'!$I$137+'Budget - Mon programme'!$I$138+'Budget - Mon programme'!$I$139+'Budget - Mon programme'!$I$140+'Budget - Mon programme'!$I$141+'Budget - Mon programme'!$I$143+'Budget - Mon programme'!$I$144+'Budget - Mon programme'!$I$158+'Budget - Mon programme'!$I$160-'Budget - Mon programme'!$I$151-'Budget - Mon programme'!$I$135-'Budget - Mon programme'!$I$134-'Budget - Mon programme'!$I$132+('Budget - Mon programme'!$F$132*'Tableau d''analyse - Mon program'!$J58)+('Budget - Mon programme'!$F$134*'Tableau d''analyse - Mon program'!K58)+('Budget - Mon programme'!$F$135*'Tableau d''analyse - Mon program'!K58)+('Budget - Mon programme'!$E$148*'Budget - Mon programme'!$D$147*'Tableau d''analyse - Mon program'!K58)+('Budget - Mon programme'!$E$149*'Budget - Mon programme'!$D$147*'Tableau d''analyse - Mon program'!K58)-('Budget - Mon programme'!$E$150*'Budget - Mon programme'!$D$147*'Tableau d''analyse - Mon program'!K58))/K58","v":21.381316252944075},{"$f":"('Budget - Mon programme'!$I$123+'Budget - Mon programme'!$I$128+'Budget - Mon programme'!$I$129+'Budget - Mon programme'!$I$130+'Budget - Mon programme'!$I$131+'Budget - Mon programme'!$I$133+'Budget - Mon programme'!$I$136+'Budget - Mon programme'!$I$137+'Budget - Mon programme'!$I$138+'Budget - Mon programme'!$I$139+'Budget - Mon programme'!$I$140+'Budget - Mon programme'!$I$141+'Budget - Mon programme'!$I$143+'Budget - Mon programme'!$I$144+'Budget - Mon programme'!$I$158+'Budget - Mon programme'!$I$160-'Budget - Mon programme'!$I$151-'Budget - Mon programme'!$I$135-'Budget - Mon programme'!$I$134-'Budget - Mon programme'!$I$132+('Budget - Mon programme'!$F$132*'Tableau d''analyse - Mon program'!$J58)+('Budget - Mon programme'!$F$134*'Tableau d''analyse - Mon program'!L58)+('Budget - Mon programme'!$F$135*'Tableau d''analyse - Mon program'!L58)+('Budget - Mon programme'!$E$148*'Budget - Mon programme'!$D$147*'Tableau d''analyse - Mon program'!L58)+('Budget - Mon programme'!$E$149*'Budget - Mon programme'!$D$147*'Tableau d''analyse - Mon program'!L58)-('Budget - Mon programme'!$E$150*'Budget - Mon programme'!$D$147*'Tableau d''analyse - Mon program'!L58))/L58","v":19.939084642574986},{"$f":"('Budget - Mon programme'!$I$123+'Budget - Mon programme'!$I$128+'Budget - Mon programme'!$I$129+'Budget - Mon programme'!$I$130+'Budget - Mon programme'!$I$131+'Budget - Mon programme'!$I$133+'Budget - Mon programme'!$I$136+'Budget - Mon programme'!$I$137+'Budget - Mon programme'!$I$138+'Budget - Mon programme'!$I$139+'Budget - Mon programme'!$I$140+'Budget - Mon programme'!$I$141+'Budget - Mon programme'!$I$143+'Budget - Mon programme'!$I$144+'Budget - Mon programme'!$I$158+'Budget - Mon programme'!$I$160-'Budget - Mon programme'!$I$151-'Budget - Mon programme'!$I$135-'Budget - Mon programme'!$I$134-'Budget - Mon programme'!$I$132+('Budget - Mon programme'!$F$132*'Tableau d''analyse - Mon program'!$J58)+('Budget - Mon programme'!$F$134*'Tableau d''analyse - Mon program'!M58)+('Budget - Mon programme'!$F$135*'Tableau d''analyse - Mon program'!M58)+('Budget - Mon programme'!$E$148*'Budget - Mon programme'!$D$147*'Tableau d''analyse - Mon program'!M58)+('Budget - Mon programme'!$E$149*'Budget - Mon programme'!$D$147*'Tableau d''analyse - Mon program'!M58)-('Budget - Mon programme'!$E$150*'Budget - Mon programme'!$D$147*'Tableau d''analyse - Mon program'!M58))/M58","v":19.288898260851216},{"$f":"('Budget - Mon programme'!$I$123+'Budget - Mon programme'!$I$128+'Budget - Mon programme'!$I$129+'Budget - Mon programme'!$I$130+'Budget - Mon programme'!$I$131+'Budget - Mon programme'!$I$133+'Budget - Mon programme'!$I$136+'Budget - Mon programme'!$I$137+'Budget - Mon programme'!$I$138+'Budget - Mon programme'!$I$139+'Budget - Mon programme'!$I$140+'Budget - Mon programme'!$I$141+'Budget - Mon programme'!$I$143+'Budget - Mon programme'!$I$144+'Budget - Mon programme'!$I$158+'Budget - Mon programme'!$I$160-'Budget - Mon programme'!$I$151-'Budget - Mon programme'!$I$135-'Budget - Mon programme'!$I$134-'Budget - Mon programme'!$I$132+('Budget - Mon programme'!$F$132*'Tableau d''analyse - Mon program'!$J58)+('Budget - Mon programme'!$F$134*'Tableau d''analyse - Mon program'!N58)+('Budget - Mon programme'!$F$135*'Tableau d''analyse - Mon program'!N58)+('Budget - Mon programme'!$E$148*'Budget - Mon programme'!$D$147*'Tableau d''analyse - Mon program'!N58)+('Budget - Mon programme'!$E$149*'Budget - Mon programme'!$D$147*'Tableau d''analyse - Mon program'!N58)-('Budget - Mon programme'!$E$150*'Budget - Mon programme'!$D$147*'Tableau d''analyse - Mon program'!N58))/N58","v":18.679993554157523},{"$f":"('Budget - Mon programme'!$I$123+'Budget - Mon programme'!$I$128+'Budget - Mon programme'!$I$129+'Budget - Mon programme'!$I$130+'Budget - Mon programme'!$I$131+'Budget - Mon programme'!$I$133+'Budget - Mon programme'!$I$136+'Budget - Mon programme'!$I$137+'Budget - Mon programme'!$I$138+'Budget - Mon programme'!$I$139+'Budget - Mon programme'!$I$140+'Budget - Mon programme'!$I$141+'Budget - Mon programme'!$I$143+'Budget - Mon programme'!$I$144+'Budget - Mon programme'!$I$158+'Budget - Mon programme'!$I$160-'Budget - Mon programme'!$I$151-'Budget - Mon programme'!$I$135-'Budget - Mon programme'!$I$134-'Budget - Mon programme'!$I$132+('Budget - Mon programme'!$F$132*'Tableau d''analyse - Mon program'!$J58)+('Budget - Mon programme'!$F$134*'Tableau d''analyse - Mon program'!O58)+('Budget - Mon programme'!$F$135*'Tableau d''analyse - Mon program'!O58)+('Budget - Mon programme'!$E$148*'Budget - Mon programme'!$D$147*'Tableau d''analyse - Mon program'!O58)+('Budget - Mon programme'!$E$149*'Budget - Mon programme'!$D$147*'Tableau d''analyse - Mon program'!O58)-('Budget - Mon programme'!$E$150*'Budget - Mon programme'!$D$147*'Tableau d''analyse - Mon program'!O58))/O58","v":18.108559906337295},null,null,{"$f":"'Données de base - Mon programme'!$D$61*'Tableau d''analyse - Mon program'!B58","v":259.76832000000002},{"$f":"J58*(1-'Données de base - Mon programme'!$C$63)*'Tableau d''analyse - Mon program'!$C$54*(1-'Données de base - Mon programme'!$C$65)","v":134.4145195008},{"$f":"$J58*(1-'Données de base - Mon programme'!$C$63)*'Tableau d''analyse - Mon program'!D$54*(1-'Données de base - Mon programme'!$C$65)","v":144.19012091904},{"$f":"$J58*(1-'Données de base - Mon programme'!$C$63)*'Tableau d''analyse - Mon program'!E$54*(1-'Données de base - Mon programme'!$C$65)","v":149.07792162816},{"$f":"$J58*(1-'Données de base - Mon programme'!$C$63)*'Tableau d''analyse - Mon program'!F$54*(1-'Données de base - Mon programme'!$C$65)","v":153.96572233728},{"$f":"$J58*(1-'Données de base - Mon programme'!$C$63)*'Tableau d''analyse - Mon program'!G$54*(1-'Données de base - Mon programme'!$C$65)","v":158.8535230464}]
[null,0.57999999999999996,{"$f":"('Budget - Mon programme'!$I$123+'Budget - Mon programme'!$I$128+'Budget - Mon programme'!$I$129+'Budget - Mon programme'!$I$130+'Budget - Mon programme'!$I$131+'Budget - Mon programme'!$I$133+'Budget - Mon programme'!$I$136+'Budget - Mon programme'!$I$137+'Budget - Mon programme'!$I$138+'Budget - Mon programme'!$I$139+'Budget - Mon programme'!$I$140+'Budget - Mon programme'!$I$141+'Budget - Mon programme'!$I$143+'Budget - Mon programme'!$I$144+'Budget - Mon programme'!$I$158+'Budget - Mon programme'!$I$160-'Budget - Mon programme'!$I$151-'Budget - Mon programme'!$I$135-'Budget - Mon programme'!$I$134-'Budget - Mon programme'!$I$132+('Budget - Mon programme'!$F$132*'Tableau d''analyse - Mon program'!$J59)+('Budget - Mon programme'!$F$134*'Tableau d''analyse - Mon program'!K59)+('Budget - Mon programme'!$F$135*'Tableau d''analyse - Mon program'!K59)+('Budget - Mon programme'!$E$148*'Budget - Mon programme'!$D$147*'Tableau d''analyse - Mon program'!K59)+('Budget - Mon programme'!$E$149*'Budget - Mon programme'!$D$147*'Tableau d''analyse - Mon program'!K59)-('Budget - Mon programme'!$E$150*'Budget - Mon programme'!$D$147*'Tableau d''analyse - Mon program'!K59))/K59","v":20.704412331654957},{"$f":"('Budget - Mon programme'!$I$123+'Budget - Mon programme'!$I$128+'Budget - Mon programme'!$I$129+'Budget - Mon programme'!$I$130+'Budget - Mon programme'!$I$131+'Budget - Mon programme'!$I$133+'Budget - Mon programme'!$I$136+'Budget - Mon programme'!$I$137+'Budget - Mon programme'!$I$138+'Budget - Mon programme'!$I$139+'Budget - Mon programme'!$I$140+'Budget - Mon programme'!$I$141+'Budget - Mon programme'!$I$143+'Budget - Mon programme'!$I$144+'Budget - Mon programme'!$I$158+'Budget - Mon programme'!$I$160-'Budget - Mon programme'!$I$151-'Budget - Mon programme'!$I$135-'Budget - Mon programme'!$I$134-'Budget - Mon programme'!$I$132+('Budget - Mon programme'!$F$132*'Tableau d''analyse - Mon program'!$J59)+('Budget - Mon programme'!$F$134*'Tableau d''analyse - Mon program'!L59)+('Budget - Mon programme'!$F$135*'Tableau d''analyse - Mon program'!L59)+('Budget - Mon programme'!$E$148*'Budget - Mon programme'!$D$147*'Tableau d''analyse - Mon program'!L59)+('Budget - Mon programme'!$E$149*'Budget - Mon programme'!$D$147*'Tableau d''analyse - Mon program'!L59)-('Budget - Mon programme'!$E$150*'Budget - Mon programme'!$D$147*'Tableau d''analyse - Mon program'!L59))/L59","v":19.308072512559708},{"$f":"('Budget - Mon programme'!$I$123+'Budget - Mon programme'!$I$128+'Budget - Mon programme'!$I$129+'Budget - Mon programme'!$I$130+'Budget - Mon programme'!$I$131+'Budget - Mon programme'!$I$133+'Budget - Mon programme'!$I$136+'Budget - Mon programme'!$I$137+'Budget - Mon programme'!$I$138+'Budget - Mon programme'!$I$139+'Budget - Mon programme'!$I$140+'Budget - Mon programme'!$I$141+'Budget - Mon programme'!$I$143+'Budget - Mon programme'!$I$144+'Budget - Mon programme'!$I$158+'Budget - Mon programme'!$I$160-'Budget - Mon programme'!$I$151-'Budget - Mon programme'!$I$135-'Budget - Mon programme'!$I$134-'Budget - Mon programme'!$I$132+('Budget - Mon programme'!$F$132*'Tableau d''analyse - Mon program'!$J59)+('Budget - Mon programme'!$F$134*'Tableau d''analyse - Mon program'!M59)+('Budget - Mon programme'!$F$135*'Tableau d''analyse - Mon program'!M59)+('Budget - Mon programme'!$E$148*'Budget - Mon programme'!$D$147*'Tableau d''analyse - Mon program'!M59)+('Budget - Mon programme'!$E$149*'Budget - Mon programme'!$D$147*'Tableau d''analyse - Mon program'!M59)-('Budget - Mon programme'!$E$150*'Budget - Mon programme'!$D$147*'Tableau d''analyse - Mon program'!M59))/M59","v":18.678575053131521},{"$f":"('Budget - Mon programme'!$I$123+'Budget - Mon programme'!$I$128+'Budget - Mon programme'!$I$129+'Budget - Mon programme'!$I$130+'Budget - Mon programme'!$I$131+'Budget - Mon programme'!$I$133+'Budget - Mon programme'!$I$136+'Budget - Mon programme'!$I$137+'Budget - Mon programme'!$I$138+'Budget - Mon programme'!$I$139+'Budget - Mon programme'!$I$140+'Budget - Mon programme'!$I$141+'Budget - Mon programme'!$I$143+'Budget - Mon programme'!$I$144+'Budget - Mon programme'!$I$158+'Budget - Mon programme'!$I$160-'Budget - Mon programme'!$I$151-'Budget - Mon programme'!$I$135-'Budget - Mon programme'!$I$134-'Budget - Mon programme'!$I$132+('Budget - Mon programme'!$F$132*'Tableau d''analyse - Mon program'!$J59)+('Budget - Mon programme'!$F$134*'Tableau d''analyse - Mon program'!N59)+('Budget - Mon programme'!$F$135*'Tableau d''analyse - Mon program'!N59)+('Budget - Mon programme'!$E$148*'Budget - Mon programme'!$D$147*'Tableau d''analyse - Mon program'!N59)+('Budget - Mon programme'!$E$149*'Budget - Mon programme'!$D$147*'Tableau d''analyse - Mon program'!N59)-('Budget - Mon programme'!$E$150*'Budget - Mon programme'!$D$147*'Tableau d''analyse - Mon program'!N59))/N59","v":18.089045686365441},{"$f":"('Budget - Mon programme'!$I$123+'Budget - Mon programme'!$I$128+'Budget - Mon programme'!$I$129+'Budget - Mon programme'!$I$130+'Budget - Mon programme'!$I$131+'Budget - Mon programme'!$I$133+'Budget - Mon programme'!$I$136+'Budget - Mon programme'!$I$137+'Budget - Mon programme'!$I$138+'Budget - Mon programme'!$I$139+'Budget - Mon programme'!$I$140+'Budget - Mon programme'!$I$141+'Budget - Mon programme'!$I$143+'Budget - Mon programme'!$I$144+'Budget - Mon programme'!$I$158+'Budget - Mon programme'!$I$160-'Budget - Mon programme'!$I$151-'Budget - Mon programme'!$I$135-'Budget - Mon programme'!$I$134-'Budget - Mon programme'!$I$132+('Budget - Mon programme'!$F$132*'Tableau d''analyse - Mon program'!$J59)+('Budget - Mon programme'!$F$134*'Tableau d''analyse - Mon program'!O59)+('Budget - Mon programme'!$F$135*'Tableau d''analyse - Mon program'!O59)+('Budget - Mon programme'!$E$148*'Budget - Mon programme'!$D$147*'Tableau d''analyse - Mon program'!O59)+('Budget - Mon programme'!$E$149*'Budget - Mon programme'!$D$147*'Tableau d''analyse - Mon program'!O59)-('Budget - Mon programme'!$E$150*'Budget - Mon programme'!$D$147*'Tableau d''analyse - Mon program'!O59))/O59","v":17.535795049861889},null,null,{"$f":"'Données de base - Mon programme'!$D$61*'Tableau d''analyse - Mon program'!B59","v":269.04575999999997},{"$f":"J59*(1-'Données de base - Mon programme'!$C$63)*'Tableau d''analyse - Mon program'!$C$54*(1-'Données de base - Mon programme'!$C$65)","v":139.2150380544},{"$f":"$J59*(1-'Données de base - Mon programme'!$C$63)*'Tableau d''analyse - Mon program'!D$54*(1-'Données de base - Mon programme'!$C$65)","v":149.33976809471997},{"$f":"$J59*(1-'Données de base - Mon programme'!$C$63)*'Tableau d''analyse - Mon program'!E$54*(1-'Données de base - Mon programme'!$C$65)","v":154.40213311487997},{"$f":"$J59*(1-'Données de base - Mon programme'!$C$63)*'Tableau d''analyse - Mon program'!F$54*(1-'Données de base - Mon programme'!$C$65)","v":159.46449813503997},{"$f":"$J59*(1-'Données de base - Mon programme'!$C$63)*'Tableau d''analyse - Mon program'!G$54*(1-'Données de base - Mon programme'!$C$65)","v":164.52686315519998}]

{"sheet":"Feuil1","index":4,"n_rows":90,"n_cols":25,"rows_kept":90,"cut":false,"hidden":true,"merged":[[52,13,52,24],[63,13,63,24],[72,13,72,24],[81,13,81,24],[1,13,1,24],[12,13,12,24],[21,13,21,24],[32,13,32,24],[43,13,43,24],[81,0,81,11],[1,0,1,11],[32,0,32,11],[12,0,12,11],[21,0,21,11],[43,0,43,11],[52,0,52,11],[63,0,63,11],[72,0,72,11]]}
[]
["PÂTURAGE (139-Mix summer, NRC 2000)",null,null,null,null,null,null,null,null,null,null,null,null,"PÂTURAGE (139-Mix summer, NRC 2000)"]
["kg / GMQ",0.5,0.6,0.7,0.8,0.9,1,1.1000000000000001,1.2,1.3,1.4,1.5,null,"kg / GMQ",0.5,0.6,0.7,0.8,0.9,1,1.1000000000000001,1.2,1.3,1.4,1.5]
[300,6.6,null,null,null,null,null,null,null,null,null,null,null,300,6.6]
[350,null,null,7.7,null,null,null,null,null,null,null,null,null,350,null,null,7.7]
[400,null,null,null,8.8000000000000007,null,null,null,null,null,null,null,null,400,null,null,null,8.8000000000000007]
[450,null,null,null,null,null,9.9,null,null,null,null,null,null,450,null,null,null,null,null,9.9]
[500,null,null,null,null,null,null,11,null,null,null,null,null,500,null,null,null,null,null,null,11]
[550,null,null,null,null,null,null,11.7,null,null,null,null,null,550,null,null,null,null,null,null,11.7]
[600,null,null,null,null,null,null,12.3,null,null,null,null,null,600,null,null,null,null,null,null,12.3]
[]
[]
["PÂTURAGE (139-Mix summer, NRC 2000)",null,null,null,null,null,null,null,null,null,null,null,null,"PÂTURAGE (139-Mix summer, NRC 2000)"]
["kg / GMQ",0.5,0.6,0.7,0.8,0.9,1,1.1000000000000001,1.2,1.3,1.4,1.5,null,"kg / GMQ",0.5,0.6,0.7,0.8,0.9,1,1.1000000000000001,1.2,1.3,1.4,1.5]
[300,null,5,null,null,null,null,null,null,null,null,null,null,300,null,5]
[350,null,null,6.6,4.7,null,null,null,null,null,null,null,null,350,null,null,6.6,4.7]
[400,null,null,null,null,6.8,5.2,null,null,null,null,null,null,400,null,null,null,null,6.8,5.2]
[450,null,null,null,null,null,null,7.5,5.8,null,null,null,null,450,null,null,null,null,null,null,7.5,5.8]
[500,null,null,null,null,null,null,null,9.5,6.8,null,null,null,500,null,null,null,null,null,null,null,9.5,6.8]
[550,null,null,null,null,null,null,null,9.6,6.9,null,null,null,550,null,null,null,null,null,null,null,9.6,6.9]
[600,null,null,null,null,null,null,null,9.1,null,null,null,null,600,null,null,null,null,null,null,null,9.1]
["AVOINE (423-Oats, NRC 2000)",null,null,null,null,null,null,null,null,null,null,null,null,"AVOINE (423-Oats, NRC 2000)"]
["kg / GMQ",0.5,0.6,0.7,0.8,0.9,1,1.1000000000000001,1.2,1.3,1.4,1.5,null,"kg / GMQ",0.5,0.6,0.7,0.8,0.9,1,1.1000000000000001,1.2,1.3,1.4,1.5]
[300,null,1.5,null,null,null,null,null,null,null,null,null,null,300,null,1.5]
[350,null,null,1,2.8,null,null,null,null,null,null,null,null,350,null,null,1,2.8]
[400,null,null,null,null,1.9,3.4,null,null,null,null,null,null,400,null,null,null,null,1.9,3.4]
[450,null,null,null,null,null,null,2.2999999999999998,3.9,null,null,null,null,450,null,null,null,null,null,null,2.2999999999999998,3.9]
[500,null,null,null,null,null,null,null,1.4,4,null,null,null,500,null,null,null,null,null,null,null,1.4,4]
[550,null,null,null,null,null,null,null,2,4.5999999999999996,null,null,null,550,null,null,null,null,null,null,null,2,4.5999999999999996]
[600,null,null,null,null,null,null,null,3,null,null,null,null,600,null,null,null,null,null,null,null,3]
[]
[]
["FOURRAGE GRAMINÉES STADE VÉGÉTATIF (124-Mix summer, NRC 2000)",null,null,null,null,null,null,null,null,null,null,null,null,"FOURRAGE GRAMINÉES STADE VÉGÉTATIF (124-Mix summer, NRC 2000)"]
["kg / GMQ",0.5,0.6,0.7,0.8,0.9,1,1.1000000000000001,1.2,1.3,1.4,1.5,null,"kg / GMQ",0.5,0.6,0.7,0.8,0.9,1,1.1000000000000001,1.2,1.3,1.4,1.5]
[300,null,6.7,null,null,null,null,null,null,null,null,null,null,300,null,6.7]
[350,null,null,7.8,null,null,null,null,null,null,null,null,null,350,null,null,7.8]
[400,null,null,null,8.9,null,null,null,null,null,null,null,null,400,null,null,null,8.9]
[450,null,null,null,10,null,null,null,null,null,null,null,null,450,null,null,null,10]
[500,null,null,null,null,11.1,null,null,null,null,null,null,null,500,null,null,null,null,11.1]
[550,null,null,null,null,11.9,null,null,null,null,null,null,null,550,null,null,null,null,11.9]
[600,null,null,null,12.4,null,null,null,null,null,null,null,null,600,null,null,null,12.4]
[]
[]
["FOURRAGE GRAMINÉES STADE VÉGÉTATIF (124-Mix summer, NRC 2000)",null,null,null,null,null,null,null,null,null,null,null,null,"FOURRAGE GRAMINÉES STADE VÉGÉTATIF (124-Mix summer, NRC 2000)"]
["kg / GMQ",0.5,0.6,0.7,0.8,0.9,1,1.1000000000000001,1.2,1.3,1.4,1.5,null,"kg / GMQ",0.5,0.6,0.7,0.8,0.9,1,1.1000000000000001,1.2,1.3,1.4,1.5]
[300,null,null,5.8,null,null,null,null,null,null,null,null,null,300,null,null,5.8]
[350,null,null,null,7.3,4.8,null,null,null,null,null,null,null,350,null,null,null,7.3,4.8]
[400,null,null,null,null,7.5,6.2,null,null,null,null,null,null,400,null,null,null,null,7.5,6.2]
[450,null,null,null,null,9.4,7.9,6.1,null,null,null,null,null,450,null,null,null,null,9.4,7.9,6.1]
[500,null,null,null,null,null,9.6999999999999993,7.9,null,null,null,null,null,500,null,null,null,null,null,9.6999999999999993,7.9]
[550,null,null,null,null,null,10,8.5,null,null,null,null,null,550,null,null,null,null,null,10,8.5]
[600,null,null,null,null,11.6,10,8.1,null,null,null,null,null,600,null,null,null,null,11.6,10,8.1]
["AVOINE (423-Oats, NRC 2000)",null,null,null,null,null,null,null,null,null,null,null,null,"AVOINE (423-Oats, NRC 2000)"]
["kg / GMQ",0.5,0.6,0.7,0.8,0.9,1,1.1000000000000001,1.2,1.3,1.4,1.5,null,"kg / GMQ",0.5,0.6,0.7,0.8,0.9,1,1.1000000000000001,1.2,1.3,1.4,1.5]
[300,null,null,0.9,null,null,null,null,null,null,null,null,null,300,null,null,0.9]
[350,null,null,null,0.5,2.9,null,null,null,null,null,null,null,350,null,null,null,0.5,2.9]
[400,null,null,null,null,1.3,2.6,null,null,null,null,null,null,400,null,null,null,null,1.3,2.6]
[450,null,null,null,null,0.6,2,3.7,null,null,null,null,null,450,null,null,null,null,0.6,2,3.7]
[500,null,null,null,null,null,1.4,3.1,null,null,null,null,null,500,null,null,null,null,null,1.4,3.1]
[550,null,null,null,null,null,1.8,3.3,null,null,null,null,null,550,null,null,null,null,null,1.8,3.3]
[600,null,null,null,null,0.8,2.4,4.2,null,null,null,null,null,600,null,null,null,null,0.8,2.4,4.2]
[]
[]
["ENSILAGE DE MAÏS 50% GRAIN (313-Corn Silage, 50% Grain, NRC 2000)",null,null,null,null,null,null,null,null,null,null,null,null,"ENSILAGE DE MAÏS 50% GRAIN (313-Corn Silage, 50% Grain, NRC 2000)"]
["kg / GMQ",0.5,0.6,0.7,0.8,0.9,1,1.1000000000000001,1.2,1.3,1.4,1.5,null,"kg / GMQ",0.5,0.6,0.7,0.8,0.9,1,1.1000000000000001,1.2,1.3,1.4,1.5]
[300,null,0,null,null,null,null,null,null,null,null,null,null,300,null,0]
[350,null,null,0,2.5,null,null,null,null,null,null,null,null,350,null,null,0,2.5]
[400,null,null,null,0,1.3,3.2,null,null,null,null,null,null,400,null,null,null,0,1.3,3.2]
[450,null,null,null,0,0.9,2.4,3.9,5.8,null,null,null,null,450,null,null,null,0,0.9,2.4,3.9,5.8]
[500,null,null,null,null,0,1.6,3.6,5.5,7.3,null,null,null,500,null,null,null,null,0,1.6,3.6,5.5,7.3]
[550,null,null,null,null,0,2,3.8,6.1,8.1,null,null,null,550,null,null,null,null,0,2,3.8,6.1,8.1]
[600,null,null,null,null,null,2.8,4.8,7.2,9.5,null,null,null,600,null,null,null,null,null,2.8,4.8,7.2,9.5]
["LUZERNE DÉBUT FLORAISON (206-Alfalfa Hay, Early Bloomn-N, NRC 2000)",null,null,null,null,null,null,null,null,null,null,null,null,"LUZERNE DÉBUT FLORAISON (206-Alfalfa Hay, Early Bloomn-N, NRC 2000)"]
["kg / GMQ",0.5,0.6,0.7,0.8,0.9,1,1.1000000000000001,1.2,1.3,1.4,1.5,null,"kg / GMQ",0.5,0.6,0.7,0.8,0.9,1,1.1000000000000001,1.2,1.3,1.4,1.5]
[300,null,null,6.7,3.6,null,null,null,null,null,null,null,null,300,null,null,6.7,3.6]
[350,null,null,7.8,5,5.8,null,null,null,null,null,null,null,350,null,null,7.8,5,5.8]
[400,null,null,null,8.9,7.6,5.8,null,null,null,null,null,null,400,null,null,null,8.9,7.6,5.8]
[450,null,null,null,10,9.1,7.5,6,4,null,null,null,null,450,null,null,null,10,9.1,7.5,6,4]
[500,null,null,null,null,11.1,9.5,7.4,5.4,3.5,null,null,null,500,null,null,null,null,11.1,9.5,7.4,5.4,3.5]
[550,null,null,null,null,12.5,9.8000000000000007,8,5.5,3.4,null,null,null,550,null,null,null,null,12.5,9.8000000000000007,8,5.5,3.4]
[600,null,null,null,12.4,null,9.6,7.5,4.9000000000000004,2.4,null,null,null,600,null,null,null,12.4,null,9.6,7.5,4.9000000000000004,2.4]
["AVOINE (423-Oats, NRC 2000)",null,null,null,null,null,null,null,null,null,null,null,null,"AVOINE (423-Oats, NRC 2000)"]
["kg / GMQ",0.5,0.6,0.7,0.8,0.9,1,1.1000000000000001,1.2,1.3,1.4,1.5,null,"kg / GMQ",0.5,0.6,0.7,0.8,0.9,1,1.1000000000000001,1.2,1.3,1.4,1.5]
[300,null,null,null,3,null,null,null,null,null,null,null,null,300,null,null,null,3]
[350,null,null,null,null,1.9,null,null,null,null,null,null,null,350,null,null,null,null,1.9]
[400,null,null,null,null,null,null,null,null,null,null,null,null,400]
[450,null,null,null,null,null,null,null,null,null,null,null,null,450]
[500,null,null,null,null,null,null,null,null,null,null,null,null,500]
[550,null,null,null,null,null,null,null,null,null,null,null,null,550]
[600,null,null,null,null,null,null,null,null,null,null,null,null,600]

{"sheet":"gain permis","index":5,"n_rows":37,"n_cols":6,"rows_kept":37,"cut":false,"hidden":true,"merged":[]}
[]
[]
[300,0.5,null,null,null,"pat HE"]
[350,0.7,null,null,null,"pat HE"]
[400,0.8,null,null,null,"pat HE"]
[450,1,null,null,null,"pat HE"]
[500,1.1000000000000001,null,null,null,"pat HE"]
[550,1.1000000000000001,null,null,null,"pat HE"]
[600,1.1000000000000001,null,null,null,"pat HE"]
[300,0.6,null,null,null,"pat HE+av"]
[350,0.7,0.8,null,null,"pat HE+av"]
[400,0.9,1,null,null,"pat HE+av"]
[450,1.1000000000000001,1.2,null,null,"pat HE+av"]
[500,1.2,1.3,null,null,"pat HE+av"]
[550,1.2,1.3,null,null,"pat HE+av"]
[600,1.2,null,null,null,"pat HE+av"]
[300,0.6,null,null,null,"Foin HE"]
[350,0.7,null,null,null,"Foin HE"]
[400,0.8,null,null,null,"Foin HE"]
[450,0.8,null,null,null,"Foin HE"]
[500,0.9,null,null,null,"Foin HE"]
[550,0.9,null,null,null,"Foin HE"]
[600,1,null,null,null,"Foin HE"]
[300,0.7,null,null,null,"Foin HE+avoine"]
[350,0.8,0.9,null,null,"Foin HE+avoine"]
[400,0.9,1,null,null,"Foin HE+avoine"]
[450,0.9,1,1.1000000000000001,null,"Foin HE+avoine"]
[500,1,1.1000000000000001,null,null,"Foin HE+avoine"]
[550,1,1.1000000000000001,null,null,"Foin HE+avoine"]
[600,0.9,1,1.1000000000000001,null,"Foin HE+avoine"]
[300,null,null,null,null,"ENS.MAIS"]
[350,0.8,null,null,null,"ENS.MAIS"]
[400,0.9,1,null,null,"ENS.MAIS"]
[450,1,1.1000000000000001,1.2,null,"ENS.MAIS"]
[500,1,1.1000000000000001,1.2,1.3,"ENS.MAIS"]
[550,1,1.1000000000000001,1.2,1.3,"ENS.MAIS"]
[600,1,1.1000000000000001,1.2,1.3,"ENS.MAIS"]

{"sheet":"Données de base","index":6,"n_rows":76,"n_cols":35,"rows_kept":76,"cut":false,"hidden":false,"merged":[[59,3,59,6],[0,1,0,8],[2,1,2,8],[11,1,11,8],[4,2,4,8],[5,2,5,8],[6,2,6,8],[7,2,7,8],[1,1,1,8],[63,6,63,8],[72,4,72,5],[73,4,73,6],[70,4,70,8],[71,7,71,8],[72,7,72,8],[73,7,73,8]]}
[null,"DONNÉES DE BASE POUR ESTIMER LE PRIX DE LA VIANDE DE BOUVILLON"]
[null,"PROGRAMME ALIMENTAIRE INTÉGRÉ"]
[null,"Mise en garde des auteurs :\nCe calculateur a été conçu pour tester différents scénarios en estimant le prix minimum et le prix cible de la viande de bouvillon produite par de petits élevages. L’onglet « Données de base » comprend des données de performance pour des bouvillons mâles de croisement CHxAN (maturité à 650 kg) dans un environnement thermoneutre et pour des rations entièrement composées d’herbe de pâturage, ou de fourrage avec ou sans ensilage de maïs, et avec ou sans avoine. L’outil Beef Cattle Nutrient Requirements Model 2016 version 1.0.37 a été utilisé pour faire les rations de base. Les données alimentaires qui sont indiquées dans les rations ne le sont qu’à titre indicatif. Par conséquent, un nutritionniste devrait adapter les rations utilisées à la ferme aux aliments et aux conditions de l’entreprise. Les quantités de grains sont limitées à 40 % de la ration afin de répondre aux normes biologiques. Cet outil n’a pas été conçu pour vérifier la cohérence des données retenues par l’utilisateur. Comme points de référence, des données ou des commentaires ont été insérés dans différentes cellules afin de faciliter la compréhension et l’utilisation du calculateur. Les données servant à poser les différentes hypothèses retenues doivent être adaptées à chaque situation, et l’utilisation des résultats de ce budget est sous la responsabilité de l’utilisateur.\nÉric Lepage et Véronique Poulin, agronomes, MAPAQ, 2018"]
[]
[null,"Client :","Yvan Duboeuf"]
[null,"Budget adapté par :","M. Jean Untel"]
[null,"Date :","2018-03-01"]
[null,"Scénario :","10 bouvillons"]
[]
[]
[]
[]
[null,null,null,null,null,null,null,null,null,null,null,null,null,null,null,null,null,null,null,null,null,null,"phase 1","phase 2","phase 3","phase 4"]
[null,null,null,null,null,null,null,null,null,null,null,null,null,null,null,null,null,2,null,"mâle",null,"durée",{"$f":"C26-C25","v":61}]
[null,"DONNÉES TECHNIQUES"]
[]
[null,"A. ANIMAUX"]
[]
[null,"Sexe",null,null,null,null,null,null,null,null,null,null,null,null,null,null,300,1]
[null,"Poids d’abattage visé",625,"kg             ou",{"$f":"C20*2.2","v":1375}," lb",null,null,null,null,null,null,null,null,null,null,350,2]
[null,"Alimentation",null,null,null,null,null,null,null,null,null,null,null,null,null,null,400,3]
[null,"Phase 1",null,null,null,null,null,null,null,null,null,null,null,null,null,null,450,4]
[null,"Âge (en mois)",9,null,null,null,null,null,null,null,null,null,null,null,null,null,500,5]
[null,"Poids au début de l’engraissement",325,"kg             ou",{"$f":"C24*2.2","v":715.00000000000011}," lb",null,null,null,null,null,null,null,null,null,null,550,6]
[null,"Date de début","2017-11-01",null,null,null,null,null,null,null,null,null,null,null,null,null,600,7]
[null,"Date de fin ","2018-01-01"]
[null,"Durée de la phase ",{"$f":"C26-C25","v":61},"jours",null,null,null,null,null,null,null,"gmq",null,null,null,null,null,"Pâturage H.E.",4,4,4,2,null,"nombre de jour au pâuurage",null,null,null,"pâturage","logement","totale="]
[null,"Type d’alimentation",null,null,{"$f":"IF(AND(S27=6,C24<350),\"N.B. ration disponible à partir de 350 kg\",\"\")","v":""},null,null,null,null,null,null,2,{"$f":"IF($S$27=2,VLOOKUP($C$24,'gain permis'!$A$3:$E$9,2,TRUE),IF($S$27=3,VLOOKUP($C$24,'gain permis'!$A$10:$E$16,2,TRUE),IF($S$27=4,VLOOKUP($C$24,'gain permis'!$A$17:$E$23,2,TRUE),IF($S$27=5,VLOOKUP($C$24,'gain permis'!$A$24:$E$30,2,TRUE),IF($S$27=6,VLOOKUP($C$24,'gain permis'!$A$31:$E$37,2,TRUE),\"\")))))","v":0.6},null,null,null,null,"Pâturage H.E.+ avoine",null,null,null,null,null,{"$f":"IF(OR(S27=2,S27=3),C27,0)","v":0},{"$f":"IF(OR(T27=2,T27=3),C34,0)","v":0},{"$f":"IF(OR(U27=2,U27=3),C42,0)","v":0},{"$f":"IF(OR(V27=2,V27=3),C50,0)","v":0},{"$f":"SUM(X28:AA28)","v":0},{"$f":"(C27+C34+C42+C50)-AB28","v":348},{"$f":"AB28+AC28","v":348}]
[null,"GMQ permis",null,"kg/j          ou",{"$f":"IF(L28=2,M28*2.2,IF(L28=3,M29*2.2,IF(L28=4,M30*2.2,IF(L28=5,M31*2.2,IF(L28=6,M32*2.2,\"\")))))","v":1.32}," lb/j",null,null,null,null,null,{"$f":"E29/2.2","v":0.6},{"$f":"IF($S$27=2,VLOOKUP($C$24,'gain permis'!$A$3:$E$9,3,TRUE),IF($S$27=3,VLOOKUP($C$24,'gain permis'!$A$10:$E$16,3,TRUE),IF($S$27=4,VLOOKUP($C$24,'gain permis'!$A$17:$E$23,3,TRUE),IF($S$27=5,VLOOKUP($C$24,'gain permis'!$A$24:$E$30,3,TRUE),IF($S$27=6,VLOOKUP($C$24,'gain permis'!$A$31:$E$37,3,TRUE),\"\")))))","v":0},{"$f":"VLOOKUP(L29,$Q$35:$R$45,2,TRUE)","v":3},null,null,null,"Fourrage H.E.",null,null,null,null,null,{"$f":"IF(X28=0,0,Budget!D32/M75)","v":0},{"$f":"IF(Y28=0,0,Budget!D42/M75)","v":0},{"$f":"IF(Z28=0,0,Budget!D52/$M$75)","v":0},{"$f":"IF(AA28=0,0,Budget!D63/$M$75)","v":0},{"$f":"IF(AB28=0,\"\",((X28*X29)+(Y28*Y29)+(Z28*Z29)+(AA28*AA29))/(X28+Y28+Z28+AA28))","v":""}]
[null,"Poids à la fin",{"$f":"IF(L28=2,C24+C27*M28,IF(L28=3,C24+C27*M29,IF(L28=4,C24+C27*M30,IF(L28=5,C24+C27*M31,\"\"))))","v":361.6}," kg           ou",{"$f":"C30*2.2","v":795.5200000000001}," lb",{"$f":"IF(C30>C20,\" poids d'abattage dépassée, ajuster votre date\",\"\")","v":""},null,null,null,null,null,{"$f":"IF($S$27=2,VLOOKUP($C$24,'gain permis'!$A$3:$E$9,4,TRUE),IF($S$27=3,VLOOKUP($C$24,'gain permis'!$A$10:$E$16,4,TRUE),IF($S$27=4,VLOOKUP($C$24,'gain permis'!$A$17:$E$23,4,TRUE),IF($S$27=5,VLOOKUP($C$24,'gain permis'!$A$24:$E$30,4,TRUE),IF($S$27=6,VLOOKUP($C$24,'gain permis'!$A$31:$E$37,4,TRUE),\"\")))))","v":0},null,null,null,null,"Fourrage H.E. + avoine"]
[null,"Phase 2",null,null,null,null,null,null,null,null,null,null,{"$f":"IF($S$27=2,VLOOKUP($C$24,'gain permis'!$A$3:$E$9,5,TRUE),IF($S$27=3,VLOOKUP($C$24,'gain permis'!$A$10:$E$16,5,TRUE),IF($S$27=4,VLOOKUP($C$24,'gain permis'!$A$17:$E$23,5,TRUE),IF($S$27=5,VLOOKUP($C$24,'gain permis'!$A$24:$E$30,5,TRUE),IF($S$27=6,VLOOKUP($C$24,'gain permis'!$A$31:$E$37,5,TRUE),\"\")))))","v":0},null,null,null,null,"Ensilage maïs+Fourrage H.E.(<40%grain)"]
[null,"Date de début ",{"$f":"C26","v":"2018-01-01"}]
[null,"Date de fin ","2018-05-15",null,null,null,null,null,null,null,null,null,null,null,null,null,null,null,null,null,null,null,null,null,null,null,null,null,null,null,2,null,null,null,1]
[null,"Durée de la phase ",{"$f":"IF(OR(C32=0,C33=0),0,C33-C32)","v":134},"jours",null,null,null,null,null,null,null,null,null,null,null,null,null,2]
[null,"Type d'alimentation",null,null,null,null,null,null,null,null,null,2,{"$f":"IF($T$27=2,VLOOKUP($C$36,'gain permis'!$A$3:$E$9,2,TRUE),IF($T$27=3,VLOOKUP($C$36,'gain permis'!$A$10:$E$16,2,TRUE),IF($T$27=4,VLOOKUP($C$36,'gain permis'!$A$17:$E$23,2,TRUE),IF($T$27=5,VLOOKUP($C$36,'gain permis'!$A$24:$E$30,2,TRUE),IF($T$27=6,VLOOKUP($C$36,'gain permis'!$A$31:$E$37,2,TRUE),\"\")))))","v":0.7},null,null,null,0.5,{"$f":"R34","v":2}]
[null,"Poids au début de l'engraissement",{"$f":"C30","v":361.6}," kg           ou",{"$f":"C36*2.2","v":795.5200000000001}," lb",null,null,null,null,null,{"$f":"E37/2.2","v":0.7},{"$f":"IF($T$27=2,VLOOKUP($C$36,'gain permis'!$A$3:$E$9,3,TRUE),IF($T$27=3,VLOOKUP($C$36,'gain permis'!$A$10:$E$16,3,TRUE),IF($T$27=4,VLOOKUP($C$36,'gain permis'!$A$17:$E$23,3,TRUE),IF($T$27=5,VLOOKUP($C$36,'gain permis'!$A$24:$E$30,3,TRUE),IF($T$27=6,VLOOKUP($C$36,'gain permis'!$A$31:$E$37,3,TRUE),\"\")))))","v":0},{"$f":"VLOOKUP(L36,$Q$35:$R$45,2,TRUE)","v":4},null,null,0.6,{"$f":"R35+1","v":3}]
[null,"GMQ visé",null,"kg/j          ou",{"$f":"IF(L35=2,M35*2.2,IF(L35=3,M36*2.2,IF(L35=4,M37*2.2,IF(L35=5,M38*2.2,IF(L35=6,M39*2.2,\"\")))))","v":1.54}," lb/j",null,null,null,null,null,null,{"$f":"IF($T$27=2,VLOOKUP($C$36,'gain permis'!$A$3:$E$9,4,TRUE),IF($T$27=3,VLOOKUP($C$36,'gain permis'!$A$10:$E$16,4,TRUE),IF($T$27=4,VLOOKUP($C$36,'gain permis'!$A$17:$E$23,4,TRUE),IF($T$27=5,VLOOKUP($C$36,'gain permis'!$A$24:$E$30,4,TRUE),IF($T$27=6,VLOOKUP($C$36,'gain permis'!$A$31:$E$37,4,TRUE),\"\")))))","v":0},null,null,null,0.7,{"$f":"R36+1","v":4}]
[null,"Poids à la fin",{"$f":"IF(C34=0,C36,IF(L35=2,C36+C34*M35,IF(L35=3,C36+C34*M36,IF(L35=4,C36+C34*M37,IF(L35=5,C36+C34*M38,\"\")))))","v":455.40000000000003}," kg           ou",{"$f":"C38*2.2","v":1001.8800000000001}," lb",{"$f":"IF(C38>C20,\" poids d'abattage dépassée, ajuster votre date\",\"\")","v":""},null,null,null,null,null,{"$f":"IF($T$27=2,VLOOKUP($C$36,'gain permis'!$A$3:$E$9,5,TRUE),IF($T$27=3,VLOOKUP($C$36,'gain permis'!$A$10:$E$16,5,TRUE),IF($T$27=4,VLOOKUP($C$36,'gain permis'!$A$17:$E$23,5,TRUE),IF($T$27=5,VLOOKUP($C$36,'gain permis'!$A$24:$E$30,5,TRUE),IF($T$27=6,VLOOKUP($C$36,'gain permis'!$A$31:$E$37,5,TRUE),\"\")))))","v":0},null,null,null,0.8,5]
[null,"Phase 3",null,null,null,null,null,null,null,null,null,null,null,null,null,null,0.9,6]
[null,"Date de début ",{"$f":"C33","v":"2018-05-15"},null,null,null,null,null,null,null,null,null,null,null,null,null,1,7]
[null,"Date de fin ","2018-10-15",null,null,null,null,null,null,null,null,null,null,null,null,null,1.1000000000000001,8]
[null,"Durée de la phase ",{"$f":"IF(OR(C40=0,C41=0),0,C41-C40)","v":153},null,null,null,null,null,null,null,null,null,null,null,null,null,1.2,9]
[null,"Type d'alimentation",null,null,null,null,null,null,null,null,null,2,{"$f":"IF($U$27=2,VLOOKUP($C$44,'gain permis'!$A$3:$E$9,2,TRUE),IF($U$27=3,VLOOKUP($C$44,'gain permis'!$A$10:$E$16,2,TRUE),IF($U$27=4,VLOOKUP($C$44,'gain permis'!$A$17:$E$23,2,TRUE),IF($U$27=5,VLOOKUP($C$44,'gain permis'!$A$24:$E$30,2,TRUE),IF($U$27=6,VLOOKUP($C$44,'gain permis'!$A$31:$E$37,2,TRUE),\"\")))))","v":0.8},null,null,null,1.3,10]
[null,"Poids au début de l’engraissement",{"$f":"C38","v":455.40000000000003}," kg           ou",{"$f":"C44*2.2","v":1001.8800000000001}," lb",null,null,null,null,null,{"$f":"E45/2.2","v":0.8},{"$f":"IF($U$27=2,VLOOKUP($C$44,'gain permis'!$A$3:$E$9,3,TRUE),IF($U$27=3,VLOOKUP($C$44,'gain permis'!$A$10:$E$16,3,TRUE),IF($U$27=4,VLOOKUP($C$44,'gain permis'!$A$17:$E$23,3,TRUE),IF($U$27=5,VLOOKUP($C$44,'gain permis'!$A$24:$E$30,3,TRUE),IF($U$27=6,VLOOKUP($C$44,'gain permis'!$A$31:$E$37,3,TRUE),\"\")))))","v":0},{"$f":"VLOOKUP(L44,$Q$35:$R$45,2,TRUE)","v":5},null,null,1.4,11]
[null,"GMQ visé",null,"kg/j          ou",{"$f":"IF(L43=1,\"\",IF(L43=2,M43*2.2,IF(L43=3,M44*2.2,IF(L43=4,M45*2.2,IF(L43=5,M46*2.2,IF(L43=6,M47*2.2,\"\"))))))","v":1.7600000000000002}," lb/j",null,null,null,null,null,null,{"$f":"IF($U$27=2,VLOOKUP($C$44,'gain permis'!$A$3:$E$9,4,TRUE),IF($U$27=3,VLOOKUP($C$44,'gain permis'!$A$10:$E$16,4,TRUE),IF($U$27=4,VLOOKUP($C$44,'gain permis'!$A$17:$E$23,4,TRUE),IF($U$27=5,VLOOKUP($C$44,'gain permis'!$A$24:$E$30,4,TRUE),IF($U$27=6,VLOOKUP($C$44,'gain permis'!$A$31:$E$37,4,TRUE),\"\")))))","v":0},null,null,null,1.5,12]
[null,"Poids à la fin",{"$f":"IF(C42=0,C44,IF(L43=1,C44,IF(L43=2,C44+C42*M43,IF(L43=3,C44+C42*M44,IF(L43=4,C44+C42*M45,IF(L43=5,C44+C42*M46,\"\"))))))","v":577.80000000000007}," kg           ou",{"$f":"C46*2.2","v":1271.1600000000003}," lb",{"$f":"IF(C46>C20,\" poids d'abattage dépassé, ajuster votre date\",\"\")","v":""},null,null,null,null,null,{"$f":"IF($U$27=2,VLOOKUP($C$44,'gain permis'!$A$3:$E$9,5,TRUE),IF($U$27=3,VLOOKUP($C$44,'gain permis'!$A$10:$E$16,5,TRUE),IF($U$27=4,VLOOKUP($C$44,'gain permis'!$A$17:$E$23,5,TRUE),IF($U$27=5,VLOOKUP($C$44,'gain permis'!$A$24:$E$30,5,TRUE),IF($U$27=6,VLOOKUP($C$44,'gain permis'!$A$31:$E$37,5,TRUE),\"\")))))","v":0}]
[null,"Phase 4"]
[null,"Date de début ",{"$f":"C41","v":"2018-10-15"}]
[null,"Date de fin ",null,{"$f":"IF(AND(C46>C20,C50<>0),\"svp inscrire la même date que celle du début\",\"\")","v":""}]
[null,"Durée de la phase ",{"$f":"IF(OR(C48=0,C49=0),0,C49-C48)","v":0}]
[null,"Type d'alimentation",null,null,null,null,null,null,null,null,null,2,{"$f":"IF($V$27=2,VLOOKUP($C$52,'gain permis'!$A$3:$E$9,2,TRUE),IF($V$27=3,VLOOKUP($C$52,'gain permis'!$A$10:$E$16,2,TRUE),IF($V$27=4,VLOOKUP($C$52,'gain permis'!$A$17:$E$23,2,TRUE),IF($V$27=5,VLOOKUP($C$52,'gain permis'!$A$24:$E$30,2,TRUE),IF($V$27=6,VLOOKUP($C$52,'gain permis'!$A$31:$E$37,2,TRUE),\"\")))))","v":1.1000000000000001}]
[null,"Poids au début de l’engraissement",{"$f":"C46","v":577.80000000000007}," kg           ou",{"$f":"C52*2.2","v":1271.1600000000003}," lb",null,null,null,null,null,{"$f":"E53/2.2","v":1.1000000000000001},{"$f":"IF($V$27=2,VLOOKUP($C$52,'gain permis'!$A$3:$E$9,3,TRUE),IF($V$27=3,VLOOKUP($C$52,'gain permis'!$A$10:$E$16,3,TRUE),IF($V$27=4,VLOOKUP($C$52,'gain permis'!$A$17:$E$23,3,TRUE),IF($V$27=5,VLOOKUP($C$52,'gain permis'!$A$24:$E$30,3,TRUE),IF($V$27=6,VLOOKUP($C$52,'gain permis'!$A$31:$E$37,3,TRUE),\"\")))))","v":0},{"$f":"VLOOKUP(L52,$Q$35:$R$45,2,TRUE)","v":8}]
[null,"GMQ visé",null,"kg/j          ou",{"$f":"IF(L51=2,M51*2.2,IF(L51=3,M52*2.2,IF(L51=4,M53*2.2,IF(L51=5,M54*2.2,IF(L51=6,M55*2.2,\"\")))))","v":2.4200000000000004}," lb/j",null,null,null,null,null,null,{"$f":"IF($V$27=2,VLOOKUP($C$52,'gain permis'!$A$3:$E$9,4,TRUE),IF($V$27=3,VLOOKUP($C$52,'gain permis'!$A$10:$E$16,4,TRUE),IF($V$27=4,VLOOKUP($C$52,'gain permis'!$A$17:$E$23,4,TRUE),IF($V$27=5,VLOOKUP($C$52,'gain permis'!$A$24:$E$30,4,TRUE),IF($V$27=6,VLOOKUP($C$52,'gain permis'!$A$31:$E$37,4,TRUE),\"\")))))","v":0}]
[null,"Poids à la fin",{"$f":"IF(C50=0,C52,IF(L51=1,C52,IF(L51=2,C52+C50*M51,IF(L51=3,C52+C50*M52,IF(L51=4,C52+C50*M53,IF(L51=5,C52+C50*M54,\"\"))))))","v":577.80000000000007}," kg           ou",{"$f":"IF(C54=\"\",\"\",C54*2.2)","v":1271.1600000000003}," lb",{"$f":"IF(C54>C20,\" poids d'abattage dépassée, ajuster votre date\",\"\")","v":""},null,null,null,null,null,{"$f":"IF($V$27=2,VLOOKUP($C$52,'gain permis'!$A$3:$E$9,5,TRUE),IF($V$27=3,VLOOKUP($C$52,'gain permis'!$A$10:$E$16,5,TRUE),IF($V$27=4,VLOOKUP($C$52,'gain permis'!$A$17:$E$23,5,TRUE),IF($V$27=5,VLOOKUP($C$52,'gain permis'!$A$24:$E$30,5,TRUE),IF($V$27=6,VLOOKUP($C$52,'gain permis'!$A$31:$E$37,5,TRUE),\"\")))))","v":0}]
[]
[]
[null,"Abattage"]
[null,"Âge à l’abattage (en mois)",{"$f":"C23+(C27+C34+C42+C50)/30","v":20.6}]
[null,"GMQ de l’engraissement",{"$f":"(C54-C24)/(C27+C34+C42+C50)","v":0.72643678160919556}," kg/j          ou",{"$f":"C59*2.2","v":1.5981609195402304}," lb/j"]
[null,"Poids à la ferme (en kg)",{"$f":"C54","v":577.80000000000007},"Poids après la perte ",null,null,null,null,null,null,null,1]
[null,"Freinte pré-abattage",0.04,{"$f":"C60*(1-C61)","v":554.68799999999999},"kg       ou",{"$f":"D61*2.2","v":1220.3136000000002},"lb"]
[null,"Rendement de la carcasse",0.54,{"$f":"D61*C62","v":299.53152},"kg       ou",{"$f":"D62*2.2","v":658.96934400000009},"lb"]
[null,"Perte lors du ressuyage, maturation",0.04,{"$f":"D62*(1-C63)","v":287.55025919999997},"kg       ou",{"$f":"D63*2.2","v":632.61057024000002},"lb",null,null,null,null,3]
[null,"Perte à la découpe",0.3458,{"$f":"D63*(1-C64)","v":188.11537956863998},"kg       ou",{"$f":"D64*2.2","v":413.85383505100799},"lb  = poids en viande maigre"]
[null,"Perte due à des problèmes de qualité",0.02,null,null,null,null,null,null,null,null,2]
[]
[null,"B- CHAMPS",{"$f":"IF(AE33=5,\"SVP utilisez la feuille BUDGET PERSONNALISÉ pour la suite\",\"\")","v":""}]
[]
[null,"Hectares disponibles",8]
[null,"Prairie, tonne m.s./ha",3500]
[null,"Maïs-ensilage, tonne m.s./ha",12,null,"Estimateur du rendement des pâturages"]
[null,null,null,null,"% de la productivité des prairies",null,null,0.9,null,null,null,3,"en bande",4,"à forfait, $/tête/saison",null,{"$f":"IF(N72=2,(C75/C73)*0.2,\"\")","v":""},"\"$/t"]
[null,"Pâturage, tonne m.s./ha",3.8250000000000002,null,"Mode de paissance",null,null,{"$f":"IF(L72=2,0.85,IF(L72=3,0.75,IF(L72=4,\"non recommandé\",\"\")))","v":0.75},null,null,null,null,"en rotation",null,"à forfait,$/tête/jour",null,{"$f":"C75/M75","v":1.2698412698412698E-4},"\"$/t"]
[null,"Pâturage: forfait ou à la ferme",null,null,"Rendement, tonnes m.s./ha",null,null,{"$f":"IF(L72=4,\"\",C70*H72*H73)","v":2362.5},null,null,null,null,"en continu",null,"à la ferme",null,{"$f":"IF(N72=4,C75*0.2,\"\")","v":0.4},"\"$/t"]
[null,{"$f":"IF(N72=2,\"Coût du pâturage à forfait, $/tête/saison\",IF(N72=3,\"Coût du pâturage à forfait, $/tête/j\",IF(N72=4,\"Coût de production à la ferme, $/t m.s.\",\"\")))","v":"Coût de production à la ferme, $/t m.s."},2,null,null,null,null,null,null,null,null,null,{"$f":"H74*1000/C76","v":15750},"kg/j"]
[null,"Durée",150]

{"sheet":"Budget","index":7,"n_rows":185,"n_cols":62,"rows_kept":185,"cut":false,"hidden":false,"merged":[[168,5,168,6],[167,5,167,6],[16,4,16,5],[0,1,0,9],[2,3,2,9],[3,3,3,9],[4,3,4,9],[5,3,5,9],[1,1,1,9],[29,1,30,1],[39,1,40,1],[49,1,50,1],[60,1,61,1]]}
[null,"BUDGET POUR ESTIMER LES PRIX CIBLE ET MINIMUM DE LA VIANDE DE BOUVILLON"]
[null,"PROGRAMME ALIMENTAIRE INTÉGRÉ"]
[null,"Client :",null,{"$f":"'Données de base'!C5","v":"Yvan Duboeuf"}]
[null,"Budget adapté par :",null,{"$f":"'Données de base'!C6","v":"M. Jean Untel"}]
[null,"Date :",null,{"$f":"'Données de base'!C7","v":"2018-03-01"}]
[null,"Scénario :",null,{"$f":"'Données de base'!C8","v":"10 bouvillons"}]
[]
[null,"ÉLEVAGE"]
[null,"A. Valeur estimée du veau ",null,null,null,null,null,null,null,null,null,null,null,null,null,null,null,null,null,null,null,null,null,null,null,null,null,null,null,null,null,null,null,null,null,null,null,null,null,null,null,null,null,null,null,null,null,null,null,null,null,null,null,null,null,null,null,null,null,null,null,"type"]
[]
[null,null,null,null,null,null,null,null,"$/bouvillon","($/kg de viande)"]
[]
[null,"Coût de production du veau à la ferme",null,2.5,"/livre   ou",{"$f":"D13*2.2","v":5.5},"/kg=",{"$f":"'Données de base'!C24*Budget!F13","v":1787.5}]
[]
[null,"Poids à l’encan",null,0.05,"perte de poids","pour un poids de vente",{"$f":"'Données de base'!C24*(1-D15)","v":308.75},"kg"]
[]
[null,"Bouvillon (sexe et poids)",null,{"$f":"IF('Données de base'!R14=2,\"Mâle\",\"\")","v":"Mâle"},{"$f":"CONCATENATE(G15*2.2,\" lb ou \",G15,\" kg\")","v":"679,25 lb ou 308,75 kg"}]
[null,{"$f":" CONCATENATE(\"Prix au \",TEXT('Données de base'!C25,\"AAAA/MM/JJ\"))","v":"Prix au 2017/11/01"},null,2.25,"/livre"]
[null,"Prix de vente à l’encan",null,{"$f":"D18*2.2","v":4.95},"/kg",null,{"$f":"D19*G15","v":1528.3125}]
[null,"    Frais de transport",null,30,"/animal",null,{"$f":"D20","v":30}]
[null,"    Frais de vente",null,22,"/animal",null,{"$f":"D21","v":22}]
[null,"Valeur nette estimée du veau ",null,null,null,null,{"$f":"G19-G20-G21","v":1476.3125}]
[null,null,null,null,null,null,null,null,null,null,null,null,1,"valeur à l'encan"]
[null,"Valeur estimée du veau pour les calculs ",null,"option:",null,null,null,null,{"$f":"IF(L24=1,G22,H13)","v":1787.5},{"$f":"I24/'Données de base'!$D$64","v":9.5021470551681961},null,2,2,"coût de production"]
[]
[null,"Nombre de bouvillons par lot (volume de la production annuelle)",null,10]
[]
[null,"B. Alimentation"]
[null,{"$f":"CONCATENATE(\"   PHASE 1 : Durée de \",'Données de base'!C27,\" jours\",\" et GMQ de \",'Données de base'!E29/2.2, \" kg/jour avec un poids moyen de \",O32,\" kg\")","v":"   PHASE 1 : Durée de 61 jours et GMQ de 0,6 kg/jour avec un poids moyen de 343,3 kg"}]
[null,"Aliments","MS","Quantité","Perte","Prix",null,"Quantité"]
[null,null,"%","(MS kg/j)","(%)","($/t TQS)",null,"(t TQS)","$/bouvillon","($/kg de viande)",null,null,{"$f":"VLOOKUP('Données de base'!C24,'gain permis'!$A$3:$A$9,1)","v":300}]
[null,{"$f":"IF(OR('Données de base'!$S$27=2,'Données de base'!$S$27=3),\"Pâturage jeune Haute Énergie\",IF(OR('Données de base'!S$27=4,'Données de base'!$S$27=5),\"Fourrage jeune Haute Énergie\",IF('Données de base'!$S$27=6,\"Maïs ensilage\",\"\")))","v":"Fourrage jeune Haute Énergie"},0.55000000000000004,{"$f":"P32","v":7.6670333333333334},4.4999999999999998E-2,100,null,{"$f":"IF(D32=\"\",0,'Données de base'!$C$27*((D32/C32)/(1-E32))/1000)","v":0.89041224813580833},{"$f":"H32*F32","v":89.04122481358084},{"$f":"I32/'Données de base'!$D$64","v":0.4733330417627617},null,null,{"$f":"IF('Données de base'!$S$27=2,VLOOKUP('Données de base'!$C$24,Feuil1!$A$3:$L$10,'Données de base'!$N$29,TRUE),IF('Données de base'!$S$27=3,VLOOKUP('Données de base'!$C$24,Feuil1!$A$14:$L$21,'Données de base'!$N$29,TRUE),IF('Données de base'!$S$27=4,VLOOKUP('Données de base'!$C$24,Feuil1!$A$34:$L$41,'Données de base'!$N$29,TRUE),IF('Données de base'!$S$27=5,VLOOKUP('Données de base'!$C$24,Feuil1!$A$45:$L$52,'Données de base'!$N$29,TRUE),IF('Données de base'!$S$27=6,VLOOKUP('Données de base'!$C$24,Feuil1!A65:L72,'Données de base'!$N$29,TRUE),\"\")))))","v":6.7},{"$f":"IF(M32=\"\",0,M32/$M$31)","v":2.2333333333333334E-2},{"$f":"AVERAGE('Données de base'!$C$24,'Données de base'!$C$30)","v":343.3},{"$f":"N32*O32","v":7.6670333333333334},null,{"$f":"N32+N33+N34","v":2.2333333333333334E-2}]
[null,{"$f":"IF(OR('Données de base'!$S$27=2,'Données de base'!$S$27=4),\"\",IF(OR('Données de base'!S$27=3,'Données de base'!$S$27=5),\"Avoine\",IF('Données de base'!$S$27=6,\"Luzerne début floraison\",\"\")))","v":""},0.86,{"$f":"P33","v":0},2.5000000000000001E-2,180,null,{"$f":"IF(D33=\"\",0,'Données de base'!$C$27*((D33/C33)/(1-E33))/1000)","v":0},{"$f":"H33*F33","v":0},{"$f":"I33/'Données de base'!$D$64","v":0},null,null,{"$f":"IF('Données de base'!$S$27=3,VLOOKUP('Données de base'!$C$24,Feuil1!$A$23:$L$30,'Données de base'!$N$29,TRUE),IF('Données de base'!$S$27=5,VLOOKUP('Données de base'!$C$24,Feuil1!$A$54:$L$61,'Données de base'!$N$29,TRUE),IF('Données de base'!$S$27=6,VLOOKUP('Données de base'!$C$24,Feuil1!$A$74:$L$81,'Données de base'!$N$29,TRUE),\"\")))","v":""},{"$f":"IF(M33=\"\",0,M33/$M$31)","v":0},{"$f":"AVERAGE('Données de base'!$C$24,'Données de base'!$C$30)","v":343.3},{"$f":"O33*N33","v":0}]
[null,{"$f":"IF(OR('Données de base'!$S$27=2,'Données de base'!S$27=3,'Données de base'!$S$27=4,'Données de base'!$S$27=5),\"\",IF('Données de base'!$S$27=6,\"Avoine\",\"\"))","v":""},0.87,{"$f":"P34","v":0},0,null,null,{"$f":"IF(D34=\"\",0,'Données de base'!$C$27*((D34/C34)/(1-E34))/1000)","v":0},{"$f":"H34*F34","v":0},{"$f":"I34/'Données de base'!$D$64","v":0},null,null,null,0]
[null,"Minéraux (kg)",0.98,{"$f":"IF('Données de base'!C27=0,\"\",0.005*O32*0.023)","v":3.9479500000000001E-2},2.5000000000000001E-2,1500,null,{"$f":"IF(D35=\"\",0,'Données de base'!$C$27*((D35/C35)/(1-E35))/1000)","v":2.520407639979069E-3},{"$f":"H35*F35","v":3.7806114599686036},{"$f":"I35/'Données de base'!$D$64","v":2.0097301287315135E-2}]
[null,"Sel (kg)",0.98,null,2.5000000000000001E-2,null,null,{"$f":"IF(D36=\"\",0,'Données de base'!$C$27*((D36/C36)/(1-E36))/1000)","v":0},{"$f":"H36*F36","v":0},{"$f":"I36/'Données de base'!$D$64","v":0}]
[null,"Coût total des aliments pour la période",null,null,null,null,null,null,{"$f":"SUM(I32:I36)","v":92.821836273549437},{"$f":"SUM(J32:J36)","v":0.49343034305007683}]
[]
[null,{"$f":"CONCATENATE(\"   PHASE 2 : Durée de \",'Données de base'!C34,\" jours\",\" et GMQ de \",'Données de base'!E37/2.2, \" kg/jour avec un poids moyen de \",O42,\" kg\")","v":"   PHASE 2 : Durée de 134 jours et GMQ de 0,7 kg/jour avec un poids moyen de 408,5 kg"}]
[null,"Aliments","MS","Quantité","Perte","Prix",null,"Quantité"]
[null,null,"%","(MS kg/j)","(%)","($/t TQS)",null,"(t TQS)","$/bouvillon","($/kg de viande)",null,null,{"$f":"VLOOKUP('Données de base'!C36,'gain permis'!$A$3:$A$9,1)","v":350}]
[null,{"$f":"IF(OR('Données de base'!$T$27=2,'Données de base'!$T$27=3),\"Pâturage jeune Haute Énergie\",IF(OR('Données de base'!T$27=4,'Données de base'!$T$27=5),\"Fourrage jeune Haute Énergie\",IF('Données de base'!$T$27=6,\"Maïs ensilage\",\"\")))","v":"Fourrage jeune Haute Énergie"},0.55000000000000004,{"$f":"P42","v":9.1037142857142843},4.4999999999999998E-2,100,null,{"$f":"IF(D42=\"\",0,'Données de base'!$C$34*((D42/C42)/(1-E42))/1000)","v":2.3225087373359621},{"$f":"H42*F42","v":232.25087373359622},{"$f":"I42/'Données de base'!$D$64","v":1.2346192760324095},null,null,{"$f":"IF('Données de base'!$T$27=2,VLOOKUP('Données de base'!$C$36,Feuil1!$A$3:$L$10,'Données de base'!$N$36,TRUE),IF('Données de base'!$T$27=3,VLOOKUP('Données de base'!$C$36,Feuil1!$A$14:$L$21,'Données de base'!$N$36,TRUE),IF('Données de base'!$T$27=4,VLOOKUP('Données de base'!$C$36,Feuil1!$A$34:$L$41,'Données de base'!$N$36,TRUE),IF('Données de base'!$T$27=5,VLOOKUP('Données de base'!$C$36,Feuil1!$A$45:$L$52,'Données de base'!$N$36,TRUE),IF('Données de base'!$T$27=6,VLOOKUP('Données de base'!$C$36,Feuil1!$A$65:$L$72,'Données de base'!$N$36,TRUE),\"\")))))","v":7.8},{"$f":"IF(M42=\"\",0,M42/$M$41)","v":2.2285714285714284E-2},{"$f":"AVERAGE('Données de base'!$C$36,'Données de base'!$C$38)","v":408.5},{"$f":"N42*O42","v":9.1037142857142843},null,{"$f":"N42+N43+N44","v":2.2285714285714284E-2}]
[null,{"$f":"IF(OR('Données de base'!$T$27=2,'Données de base'!$T$27=4),\"\",IF(OR('Données de base'!T$27=3,'Données de base'!T$27=5),\"Avoine\",IF('Données de base'!$T$27=6,\"Luzerne début floraison\",\"\")))","v":""},0.86,{"$f":"P43","v":0},2.5000000000000001E-2,180,null,{"$f":"IF(D43=\"\",0,'Données de base'!$C$34*((D43/C43)/(1-E43))/1000)","v":0},{"$f":"H43*F43","v":0},{"$f":"I43/'Données de base'!$D$64","v":0},null,null,{"$f":"IF('Données de base'!$T$27=3,VLOOKUP('Données de base'!$C$36,Feuil1!$A$23:$L$30,'Données de base'!$N$36,TRUE),IF('Données de base'!$T$27=5,VLOOKUP('Données de base'!$C$36,Feuil1!$A$54:$L$61,'Données de base'!$N$36,TRUE),IF('Données de base'!$T$27=6,VLOOKUP('Données de base'!$C$36,Feuil1!$A$74:$L$81,'Données de base'!$N$36,TRUE),\"\")))","v":""},{"$f":"IF(M43=\"\",0,M43/$M$41)","v":0},{"$f":"O42","v":408.5},{"$f":"O43*N43","v":0}]
[null,{"$f":"IF(OR('Données de base'!$T$27=2,'Données de base'!T$27=3,'Données de base'!$T$27=4,'Données de base'!$T$27=5),\"\",IF('Données de base'!$T$27=6,\"Avoine\",\"\"))","v":""},0.87,{"$f":"IF('Données de base'!$T$27=6,VLOOKUP('Données de base'!$C$36,Feuil1!$A$83:$L$90,'Données de base'!$N$36,TRUE),\"\")","v":""},0,null,null,{"$f":"IF(D44=\"\",0,'Données de base'!$C$34*((D44/C44)/(1-E44))/1000)","v":0},{"$f":"H44*F44","v":0},{"$f":"I44/'Données de base'!$D$64","v":0},null,null,null,0,{"$f":"O42","v":408.5},{"$f":"O44*N44","v":0}]
[null,"Minéraux (kg)",0.98,{"$f":"IF('Données de base'!C34=0,\"\",0.005*O42*0.023)","v":4.6977499999999998E-2},2.5000000000000001E-2,1500,null,{"$f":"IF(D45=\"\",0,'Données de base'!$C$34*((D45/C45)/(1-E45))/1000)","v":6.5881580324437475E-3},{"$f":"H45*F45","v":9.8822370486656208},{"$f":"I45/'Données de base'!$D$64","v":5.253285016528788E-2}]
[null,"Sel (kg)",0.98,null,2.5000000000000001E-2,null,null,{"$f":"IF(D46=\"\",0,'Données de base'!$C$34*((D46/C46)/(1-E46))/1000)","v":0},{"$f":"H46*F46","v":0},{"$f":"I46/'Données de base'!$D$64","v":0}]
[null,"Coût total des aliments pour la période",null,null,null,null,null,null,{"$f":"SUM(I42:I46)","v":242.13311078226184},{"$f":"SUM(J42:J46)","v":1.2871521261976975}]
[]
[null,{"$f":"CONCATENATE(\"   PHASE 3 : Durée de \",'Données de base'!C42,\" jours\",\" et GMQ de \",'Données de base'!E45/2.2, \" kg/jour avec un poids moyen de \",O52,\" kg\")","v":"   PHASE 3 : Durée de 153 jours et GMQ de 0,8 kg/jour avec un poids moyen de 516,6 kg"}]
[null,"Aliments","MS","Quantité","Perte","Prix",null,"Quantité"]
[null,null,"%","(MS kg/j)","(%)","($/t TQS)",null,"(t TQS)","$/bouvillon","($/kg de viande)",null,null,{"$f":"VLOOKUP('Données de base'!C44,'gain permis'!$A$3:$A$9,1)","v":450}]
[null,{"$f":"IF(OR('Données de base'!$U$27=2,'Données de base'!$U$27=3),\"Pâturage jeune Haute Énergie\",IF(OR('Données de base'!U$27=4,'Données de base'!$U$27=5),\"Fourrage jeune Haute Énergie\",IF('Données de base'!$U$27=6,\"Maïs ensilage\",\"\")))","v":"Fourrage jeune Haute Énergie"},0.2,{"$f":"P52","v":11.48},0,18,null,{"$f":"IF(D52=\"\",0,'Données de base'!$C$42*(D52/C52/(1-E52))/1000)","v":8.7821999999999996},{"$f":"H52*F52","v":158.0796},{"$f":"I52/'Données de base'!$D$64","v":0.84033320594247074},null,null,{"$f":"IF('Données de base'!$U$27=2,VLOOKUP('Données de base'!$C$44,Feuil1!$A$3:$L$10,'Données de base'!$N$44,TRUE),IF('Données de base'!$U$27=3,VLOOKUP('Données de base'!$C$44,Feuil1!$A$14:$L$21,'Données de base'!$N$44,TRUE),IF('Données de base'!$U$27=4,VLOOKUP('Données de base'!$C$44,Feuil1!$A$34:$L$41,'Données de base'!$N$44,TRUE),IF('Données de base'!$U$27=5,VLOOKUP('Données de base'!$C$44,Feuil1!$A$45:$L$52,'Données de base'!$N$44,TRUE),IF('Données de base'!$U$27=6,VLOOKUP('Données de base'!$C$44,Feuil1!$A$65:$L$72,'Données de base'!$N$44,TRUE),\"\")))))","v":10},{"$f":"IF(M52=\"\",0,M52/$M$51)","v":2.2222222222222223E-2},{"$f":"AVERAGE('Données de base'!$C$44,'Données de base'!$C$46)","v":516.6},{"$f":"N52*O52","v":11.48},null,{"$f":"N52+N53+N54","v":2.2222222222222223E-2}]
[null,{"$f":"IF(OR('Données de base'!$U$27=2,'Données de base'!$U$27=4),\"\",IF(OR('Données de base'!U$27=3,'Données de base'!$U$27=5),\"Avoine\",IF('Données de base'!$U$27=6,\"Luzerne début floraison\",\"\")))","v":""},0.5,{"$f":"P53","v":0},0.05,null,null,{"$f":"IF(D53=\"\",0,'Données de base'!$C$42*(D53/C53/(1-E53))/1000)","v":0},{"$f":"H53*F53","v":0},{"$f":"I53/'Données de base'!$D$64","v":0},null,null,{"$f":"IF('Données de base'!$U$27=3,VLOOKUP('Données de base'!$C$44,Feuil1!$A$23:$L$30,'Données de base'!$N$44,TRUE),IF('Données de base'!$U$27=5,VLOOKUP('Données de base'!$C$44,Feuil1!$A$54:$L$61,'Données de base'!$N$44,TRUE),IF('Données de base'!$U$27=6,VLOOKUP('Données de base'!$C$44,Feuil1!$A$74:$L$81,'Données de base'!$N$44,TRUE),\"\")))","v":""},{"$f":"IF(M53=\"\",0,M53/$M$51)","v":0},{"$f":"O52","v":516.6},{"$f":"O53*N53","v":0}]
[null,{"$f":"IF(OR('Données de base'!$U$27=2,'Données de base'!U$27=3,'Données de base'!$U$27=4,'Données de base'!$U$27=5),\"\",IF('Données de base'!$U$27=6,\"Avoine\",\"\"))","v":""},0.87,{"$f":"IF('Données de base'!$U$27=6,VLOOKUP('Données de base'!$C$44,Feuil1!$A$83:$L$90,'Données de base'!$N$44,TRUE),\"\")","v":""},2.5000000000000001E-2,null,null,{"$f":"IF(D54=\"\",0,'Données de base'!$C$42*(D54/C54/(1-E54))/1000)","v":0},{"$f":"H54*F54","v":0},{"$f":"I54/'Données de base'!$D$64","v":0},null,null,null,0,{"$f":"O52","v":516.6},{"$f":"O54*N54","v":0}]
[null,"Minéraux (kg)",0.98,{"$f":"IF('Données de base'!C44=0,\"\",0.005*O52*0.023)","v":5.9409000000000003E-2},2.5000000000000001E-2,1500,null,{"$f":"IF(D55=\"\",0,'Données de base'!$C$42*(D55/C55/(1-E55))/1000)","v":9.5129010989010998E-3},{"$f":"H55*F55","v":14.26935164835165},{"$f":"I55/'Données de base'!$D$64","v":7.5854253283661036E-2}]
[null,"Sel (kg)",0.98,null,2.5000000000000001E-2,null,null,{"$f":"IF(D56=\"\",0,'Données de base'!$C$42*(D56/C56/(1-E56))/1000)","v":0},{"$f":"H56*F56","v":0},{"$f":"I56/'Données de base'!$D$64","v":0}]
[null,"Coût total des aliments pour la période",null,null,null,null,null,null,{"$f":"SUM(I52:I56)","v":172.34895164835166},{"$f":"SUM(J52:J56)","v":0.91618745922613176}]
[]
[]
[null,{"$f":"CONCATENATE(\"   PHASE 4 : Durée de \",'Données de base'!C50,\" jours\",\" et GMQ de \",'Données de base'!E53/2.2, \" kg/jour avec un poids moyen de \",O63,\" kg\")","v":"   PHASE 4 : Durée de 0 jours et GMQ de 1,1 kg/jour avec un poids moyen de 577,8 kg"}]
[null,"Aliments","MS","Quantité","Perte","Prix",null,"Quantité"]
[null,null,"%","(MS kg/j)","(%)","($/t TQS)",null,"(t TQS)","$/bouvillon","($/kg de viande)",null,null,{"$f":"VLOOKUP('Données de base'!C52,'gain permis'!$A$3:$A$9,1)","v":550}]
[null,{"$f":"IF(OR('Données de base'!$V$27=2,'Données de base'!$V$27=3),\"Pâturage jeune Haute Énergie\",IF(OR('Données de base'!V$27=4,'Données de base'!$V$27=5),\"Fourrage jeune Haute Énergie\",IF('Données de base'!$V$27=6,\"Maïs ensilage\",\"\")))","v":"Pâturage jeune Haute Énergie"},0.2,{"$f":"P63","v":12.29138181818182},0,18,null,{"$f":"IF(D63=\"\",0,'Données de base'!$C$50*(D63/C63/(1-E63))/1000)","v":0},{"$f":"H63*F63","v":0},{"$f":"I63/'Données de base'!$D$64","v":0},null,null,{"$f":"IF('Données de base'!$V$27=2,VLOOKUP('Données de base'!$C$52,Feuil1!$A$3:$L$10,'Données de base'!$N$52,TRUE),IF('Données de base'!$V$27=3,VLOOKUP('Données de base'!$C$52,Feuil1!$A$14:$L$21,'Données de base'!$N$52,TRUE),IF('Données de base'!$V$27=4,VLOOKUP('Données de base'!$C$52,Feuil1!$A$34:$L$41,'Données de base'!$N$52,TRUE),IF('Données de base'!$V$27=5,VLOOKUP('Données de base'!$C$52,Feuil1!$A$45:$L$52,'Données de base'!$N$52,TRUE),IF('Données de base'!$V$27=6,VLOOKUP('Données de base'!$C$52,Feuil1!$A$65:$L$72,'Données de base'!$N$52,TRUE),\"\")))))","v":11.7},{"$f":"IF(M63=\"\",0,M63/$M$62)","v":2.1272727272727273E-2},{"$f":"AVERAGE('Données de base'!$C$52,'Données de base'!$C$54)","v":577.80000000000007},{"$f":"N63*O63","v":12.29138181818182},null,{"$f":"N63+N64+N65","v":2.1272727272727273E-2}]
[null,{"$f":"IF(OR('Données de base'!$V$27=2,'Données de base'!$V$27=4),\"\",IF(OR('Données de base'!V$27=3,'Données de base'!$V$27=5),\"Avoine\",IF('Données de base'!$V$27=6,\"Luzerne début floraison\",\"\")))","v":""},0.5,{"$f":"P64","v":0},0.05,null,null,{"$f":"IF(D64=\"\",0,'Données de base'!$C$50*(D64/C64/(1-E64))/1000)","v":0},{"$f":"H64*F64","v":0},{"$f":"I64/'Données de base'!$D$64","v":0},null,null,{"$f":"IF('Données de base'!$V$27=3,VLOOKUP('Données de base'!$C$52,Feuil1!$A$23:$L$30,'Données de base'!$N$52,TRUE),IF('Données de base'!$V$27=5,VLOOKUP('Données de base'!$C$52,Feuil1!$A$54:$L$61,'Données de base'!$N$52,TRUE),IF('Données de base'!$V$27=6,VLOOKUP('Données de base'!$C$52,Feuil1!$A$74:$L$81,'Données de base'!$N$52,TRUE),\"\")))","v":""},{"$f":"IF(M64=\"\",0,M64/$M$62)","v":0},{"$f":"O63","v":577.80000000000007},{"$f":"O64*N64","v":0}]
[null,{"$f":"IF(OR('Données de base'!$V$27=2,'Données de base'!V$27=3,'Données de base'!$V$27=4,'Données de base'!$V$27=5),\"\",IF('Données de base'!$V$27=6,\"Avoine\",\"\"))","v":""},0.87,{"$f":"IF('Données de base'!$V$27=6,VLOOKUP('Données de base'!$C$52,Feuil1!$A$83:$L$90,'Données de base'!$N$52,TRUE),\"\")","v":""},2.5000000000000001E-2,null,null,{"$f":"IF(D65=\"\",0,'Données de base'!$C$50*(D65/C65/(1-E65))/1000)","v":0},{"$f":"H65*F65","v":0},{"$f":"I65/'Données de base'!$D$64","v":0},null,null,null,0,{"$f":"O63","v":577.80000000000007},{"$f":"O65*N65","v":0}]
[null,"Minéraux (kg)",0.98,{"$f":"IF('Données de base'!C50=0,\"\",0.005*O63*0.023)","v":""},2.5000000000000001E-2,1500,null,{"$f":"IF(D66=\"\",0,'Données de base'!$C$50*(D66/C66/(1-E66))/1000)","v":0},{"$f":"H66*F66","v":0},{"$f":"I66/'Données de base'!$D$64","v":0}]
[null,"Sel (kg)",0.98,null,2.5000000000000001E-2,null,null,{"$f":"IF(D67=\"\",0,'Données de base'!$C$50*(D67/C67/(1-E67))/1000)","v":0},{"$f":"H67*F67","v":0},{"$f":"I67/'Données de base'!$D$64","v":0}]
[null,"Coût total des aliments pour la période",null,null,null,null,null,null,{"$f":"SUM(I63:I67)","v":0},{"$f":"SUM(J63:J67)","v":0}]
[]
[null,"Coût total des aliments ",null,null,null,null,null,null,{"$f":"I68+I57+I47+I37","v":507.30389870416292},{"$f":"I70/'Données de base'!D64","v":2.696769928473906}]
[]
[null,"C. Autres coûts"]
[]
[null,"Médicaments, vermifuge et vétérinaire",null,1,null,null,10,null,{"$f":"D74*G74","v":10},{"$f":"I74/'Données de base'!$D$64","v":5.3158864644297608E-2}]
[null,"Litière (kg/j)",null,1.75,"kg/j",{"$f":"CONCATENATE('Données de base'!AC28,\" j\")","v":"348 j"},130,"/ t",{"$f":"G75*(D75*'Données de base'!AC28)/1000","v":79.17},{"$f":"I75/'Données de base'!$D$64","v":0.42085873138890417}]
[null,"Autres frais liés aux animaux",null,1,null,null,5,null,{"$f":"G76*D76","v":5},{"$f":"I76/'Données de base'!$D$64","v":2.6579432322148804E-2}]
[null,"Fumier ($/tête)",null,0.02,"m3/tête/jour",{"$f":"F75","v":"348 j"},1.88,"$/m3",{"$f":"'Données de base'!AC28*D77*G77","v":13.0848},{"$f":"I77/'Données de base'!$D$64","v":6.9557311209770531E-2}]
[null,"Rejets",null,0.02,"par élevage",null,{"$f":"I24+(I70+I74+I75+I76+I77)/2","v":2094.7793493520812},null,{"$f":"(G78*D78)","v":41.895586987041625},{"$f":"I78/'Données de base'!$D$64","v":0.22271218378375418}]
[null,"Perte par mortalité",null,1.4E-2,"par élevage",null,{"$f":"(G78)","v":2094.7793493520812},null,{"$f":"D79*G79","v":29.326910890929138},{"$f":"I79/'Données de base'!$D$64","v":0.15589852864862794}]
[null,"Frais pour l’élimination des animaux morts",null,{"$f":"D79","v":1.4E-2},null,null,80,null,{"$f":"G80*D80","v":1.1200000000000001},{"$f":"I80/'Données de base'!$D$64","v":5.9537928401613323E-3}]
[null,"Assurance animaux ",null,{"$f":"G79+I79+I80","v":2125.2262602430101},null,null,5.5,"/1000 $",{"$f":"G81*D81/1000","v":11.688744431336556},{"$f":"I81/'Données de base'!$D$64","v":6.2136038308720734E-2}]
[null,"Logement - réparation, taxes, assurances (30 ans)                          ","m2/tête",4.5,265,"$/m2",2.8000000000000001E-2,"/1000$/élevage",{"$f":"D82*E82*G82*(('Données de base'!AB28+'Données de base'!AC28)/365)","v":31.834849315068492},{"$f":"I82/'Données de base'!$D$64","v":0.16923044457113362}]
[null,"Main-d’œuvre pour la phase 1 (heure/jour/lot)",null,1.25,{"$f":"'Données de base'!C27","v":61},15,"/ h         payé",0.25,{"$f":"(D83*E83*F83*H83)/$D$26","v":28.59375},{"$f":"I83/'Données de base'!$D$64","v":0.15200112859228845}]
[null,"Main-d’œuvre pour la phase 2 (heure/jour/lot)",null,1.25,{"$f":"'Données de base'!C34","v":134},15,"/ h         payé",0.25,{"$f":"(D84*E84*F84*H84)/$D$26","v":62.8125},{"$f":"I84/'Données de base'!$D$64","v":0.33390411854699431}]
[null,"Main-d’œuvre pour la phase 3 (heure/jour/lot)",null,0.75,{"$f":"'Données de base'!C42","v":153},15,"/ h         payé",0,0,{"$f":"I85/'Données de base'!$D$64","v":0}]
[null,"Main-d’œuvre pour la phase 4 (heure/jour/lot)",null,0.75,{"$f":"'Données de base'!C50","v":0},15,"/ h         payé",0,0,{"$f":"I86/'Données de base'!$D$64","v":0}]
[null,"Intérêt sur emprunt à moyen ou long terme ",null,5,"%          emprunt ",2000,"/2     montant=",{"$f":"D87*F87/100/2","v":50},{"$f":"H87/D26","v":5},{"$f":"I87/'Données de base'!$D$64","v":2.6579432322148804E-2}]
[null,"Intérêt sur l’ouverture de crédit",null,1,{"$f":"G79+I79+I80+I81+I82+I83+I84+I85+I86","v":2260.156103989415},null,4.2000000000000003E-2,{"$f":" CONCATENATE('Données de base'!AD28,\"/365 j\")","v":"348/365 j"},{"$f":"D88*E88*G88","v":94.926556367555435},{"$f":"I88/'Données de base'!$D$64","v":0.50461879610921667}]
[null,"Total des coûts ",null,null,null,null,null,null,{"$f":"SUM(I74:I88)","v":414.45369799193122},{"$f":"SUM(J74:J88)","v":2.2031888032881675}]
[]
[null,"Total des frais variables",null,null,null,null,null,null,{"$f":"I24+I70+I89","v":2709.257596696094},{"$f":"I91/'Données de base'!D64","v":14.402105786930269}]
[]
[]
[null,"D. Frais généraux"]
[null,null,null,null,null,null,null,null,"$/bouvillon","($/kg de viande)"]
[null,"Téléphone et électricité",null,100,null,{"$f":"$D$26","v":10},"têtes",null,{"$f":"D96/F96","v":10},{"$f":"I96/'Données de base'!$D$64","v":5.3158864644297608E-2}]
[null,"Frais professionnels (comptable, UPA, consultant, association, etc.)",null,400,null,{"$f":"$D$26","v":10},"têtes",null,{"$f":"D97/F97","v":40},{"$f":"I97/'Données de base'!$D$64","v":0.21263545857719043}]
[null,"Divers (fournitures de bureau ou autres)",null,100,null,{"$f":"$D$26","v":10},"têtes",null,{"$f":"D98/F98","v":10},{"$f":"I98/'Données de base'!$D$64","v":5.3158864644297608E-2}]
[null,null,null,null,null,{"$f":"$D$26","v":10},"têtes",null,{"$f":"D99/F99","v":0},{"$f":"I99/'Données de base'!$D$64","v":0}]
[null,null,null,null,null,null,null,null,{"$f":"SUM(I96:I99)","v":60},{"$f":"I100/'Données de base'!$D$64","v":0.31895318786578564}]
[]
[null,"E. Revenus à déduire"]
[null,null,null,null,null,null,null,null,null,null,null,null,null,null,null,{"$f":"I123/#REF!","v":{"$error":"#REF!"}},{"$f":"P103/2.2","v":{"$error":"#REF!"}}]
[null,"Moins :",null,null,null,null,null,null,"$/bouvillon","($/kg de viande)"]
[null,"Revenus nets des rejets",null,{"$f":"D78","v":0.02},{"$f":"('Données de base'!C60+'Données de base'!C24)/2","v":451.40000000000003},"kg poids moyen",4,"/kg",{"$f":"(D105*E105*G105)-(D105*(G20+G21))","v":35.072000000000003},{"$f":"I105/'Données de base'!$D$64","v":0.18643877008048057}]
[null,"Compensation nette de l’ASRA pour les rejets",null,{"$f":"D105","v":0.02},{"$f":"IF('Données de base'!$C$24>340,$E$105-'Données de base'!C24,$E$105-340)","v":111.40000000000003},"kg gain animal rejeté",{"$f":"0.3302-0.0731","v":0.2571},"/kg",{"$f":"IF((E107*D26)<(1500/2.2),\"\",(D106*E106*G106))","v":0.57281880000000018},{"$f":"I106/'Données de base'!$D$64","v":3.045039705490899E-3}]
[null,"Compensation nette de l’ASRA pour les bouvillons",null,{"$f":"1-D106","v":0.98},{"$f":"IF('Données de base'!$C$24>340,'Données de base'!$C$60-'Données de base'!C24,'Données de base'!$C$60-340)","v":237.80000000000007},"kg gain bouvillon",0.25700000000000001,"/kg",{"$f":"IF((E107*D26)<(1500/2.2),\"\",(D107*E107*G107))","v":59.892308000000021},{"$f":"I107/'Données de base'!$D$64","v":0.31838070942065838}]
[null,null,null,null,null,null,",",null,{"$f":"SUM(I105:I107)","v":95.537126800000024},{"$f":"I108/'Données de base'!D64","v":0.50786451920662989}]
[]
[]
[null,"Valeur du bouvillon avant l’amortissement et la rémunération du travail de l’exploitant :",null,null,null,null,null,null,{"$f":"I91+I100-I108","v":2673.7204698960941},{"$f":"I111/'Données de base'!D64","v":14.213194455589425}]
[]
[null,"F. Amortissement des bâtiments et des équipements d’élevage",null,null,null,null,null,null,"$/bouvillon","($/kg de viande)"]
[]
[null,"Logement: bâtiment ou enclos d’hivernage",null,{"$f":"E82*D82","v":1192.5},"valeur de remplacement",0.03,{"$f":"'Données de base'!AD28","v":348},"/365 j",{"$f":"D115*F115*G115/365","v":34.10876712328767},{"$f":"I115/'Données de base'!D64","v":0.18131833346907175}]
[null,"Équipement",null,3000,"valeur de remplacement",0.06,{"$f":"G115","v":348},"/365 j",{"$f":"(D116*F116*G116/365)/D26","v":17.161643835616438},{"$f":"I116/'Données de base'!D64","v":9.1229350173117868E-2}]
[null,null,null,null,null,null,null,null,{"$f":"SUM(I115:I116)","v":51.270410958904108},{"$f":"I117/'Données de base'!D64","v":0.27254768364218962}]
[]
[null,"G. Travail de l’exploitant ",null,null,null,null,null,null,null,null,null,null,null,null,null,"prix - base carcasse"]
[null,null,null,null,null,null,null,null,"$/bouvillon","($/kg de viande)",null,null,null,null,null,"$/kg","$/lb"]
[null,"Travail non rémunéré (heures)",null,null,{"$f":"((D83*E83*(1-H83))+(D84*E84*(1-H84))+(D85*E85*(1-H85))+(D86*E86*(1-H86)))/D26","v":29.756250000000001},"heures non payées",15,"/h",{"$f":"E121*G121","v":446.34375},{"$f":"I121/'Données de base'!D64","v":2.3727126991078209},null,null,null,null,null,{"$f":"#REF!/#REF!","v":{"$error":"#REF!"}},{"$f":"P121/2.2","v":{"$error":"#REF!"}}]
[]
[null,"Prix cible du bouvillon avant la mise en marché (avant la rémunération de l’avoir du propriétaire)",null,null,null,null,null,null,{"$f":"I111+I121+I117","v":3171.3346308549981},{"$f":"I123/'Données de base'!D64","v":16.858454838339437}]
[]
[]
[null,"H. Frais de transformation et de mise en marché"]
[null,null,null,null,null,null,null,null,"$/bouvillon","($/kg de viande)"]
[null,"Transport vers l’abattoir",null,null,50,"/voyage",1,"animal/voyage",{"$f":"E128/G128","v":50},{"$f":"I128/'Données de base'!$D$64","v":0.26579432322148805}]
[null,"Frais d’abattage",null,null,100,"/animal",null,null,{"$f":"E129","v":100},{"$f":"I129/'Données de base'!$D$64","v":0.5315886464429761}]
[null,"Frais de réfrigération (vieillissement)",null,null,null,"/jour/carcasse",14,"jours",{"$f":"E130*G130","v":0},{"$f":"I130/'Données de base'!$D$64","v":0}]
[null,"Frais de vente (communication, transport)",null,null,null,null,{"$f":"D26","v":10},null,{"$f":"E131/G131","v":0},{"$f":"I131/'Données de base'!$D$64","v":0},null,{"$f":"(#REF!-(D150*(1-G150)*(E150-E149-E148)))/(#REF!*(1-#REF!))","v":{"$error":"#REF!"}},null,null,null,{"$f":"I163/#REF!","v":{"$error":"#REF!"}},{"$f":"P131/2.2","v":{"$error":"#REF!"}}]
[null,"Frais de découpe, d’emballage et d’étiquetage",null,"kg de carcasse",{"$f":"'Données de base'!D62","v":299.53152},0.85,"$/kg de carcasse",null,{"$f":"E132*F132","v":254.60179199999999},{"$f":"I132/'Données de base'!$D$64","v":1.3534342199123612}]
[null,"Transport de la viande (retour)",null,null,null,50,{"$f":"G128","v":1},"animal/voyage",{"$f":"F133/G133","v":50},{"$f":"I133/'Données de base'!$D$64","v":0.26579432322148805}]
[null,"Frais de congélation",null,null,{"$f":"'Données de base'!D64","v":188.11537956863998},0,"/kg de viande",null,{"$f":"E134*F134","v":0},{"$f":"I134/'Données de base'!$D$64","v":0}]
[null,"Frais de livraison et autres",null,null,{"$f":"'Données de base'!D64","v":188.11537956863998},0,"/kg de viande",null,{"$f":"F135*E135","v":0},{"$f":"I135/'Données de base'!$D$64","v":0}]
[null,"Frais de promotion",null,null,null,0,{"$f":"D26","v":10},"animal/an",{"$f":"F136/G136","v":0},{"$f":"I136/'Données de base'!$D$64","v":0}]
[null,"Frais de location d'un kiosque ou autre",null,null,null,0,{"$f":"D26","v":10},"animal/an",{"$f":"F137/G137","v":0},{"$f":"I137/'Données de base'!$D$64","v":0}]
[null,"Frais de permis",null,null,null,300,{"$f":"D26","v":10},"animal/an",30,{"$f":"I138/'Données de base'!$D$64","v":0.15947659393289282}]
[null,"Réparation, taxes, assurances des équipements",null,5.1900000000000002E-2,"%/an              valeur",5000,{"$f":"D26","v":10},"animal/an",{"$f":"(F139*D139)/G139","v":25.95},{"$f":"I139/'Données de base'!$D$64","v":0.13794725375195227}]
[null,"Réparation, taxes, assurances des bâtiments",null,0.04,"%/an              valeur",0,{"$f":"D26","v":10},"animal/an",{"$f":"(F140*D140)/G140","v":0},{"$f":"I140/'Données de base'!$D$64","v":0}]
[null,"Intérêt sur emprunt à moyen ou long terme ",null,5,"%          emprunt ",5000,"/2     montant=",{"$f":"D141*F141/100/2","v":125},{"$f":"H141/D26","v":12.5},{"$f":"I141/'Données de base'!$D$64","v":6.6448580805372012E-2}]
[null,"Main-d’œuvre :    ",null,250,"heures"]
[null,"Salaire payé (lot, heures)",null,0.4,{"$f":"D142*D143","v":100},15,"/ h ",null,{"$f":"E143*F143/D26","v":150},{"$f":"I143/'Données de base'!$D$64","v":0.79738296966446409}]
[null,"Propriétaire (lot, heures)",null,{"$f":"(1-D143)","v":0.6},{"$f":"D142*D144","v":150},null,null,null,{"$f":"E144*F144/D26","v":0},{"$f":"I144/'Données de base'!$D$64","v":0}]
[null,null,null,null,null,null,null,null,{"$f":"SUM(I128:I144)","v":673.05179199999998},{"$f":"I145/'Données de base'!$D$64","v":3.5778669109529946}]
[]
[null,"Frais dus à des problèmes de qualité",null,{"$f":"'Données de base'!C65","v":0.02},null,{"$f":"I123+I145","v":3844.3864228549983},null,null,{"$f":"F147*D147","v":76.887728457099968},{"$f":"I147/'Données de base'!$D$64","v":0.40872643498584865}]
[null,"Récupération, transport, etc. (kg)",null,{"$f":"'Données de base'!D64*Budget!D147","v":3.7623075913727995},0.22,"/kg",null,null,{"$f":"D148*E148","v":0.82770767010201585},{"$f":"I148/'Données de base'!$D$64","v":4.3999999999999994E-3}]
[null,"Création de produits transformés (kg)",null,{"$f":"D148","v":3.7623075913727995},5.2,"/kg",null,null,{"$f":"D149*E149","v":19.563999475138559},{"$f":"I149/'Données de base'!$D$64","v":0.10400000000000001}]
[null,"Moins la vente de produits transformés (kg)",null,{"$f":"D148","v":3.7623075913727995},11,"/kg avec un pourcentage de perte de",0.1,null,{"$f":"D150*E150*(1-G150)","v":37.246845154590716},{"$f":"I150/'Données de base'!$D$64","v":0.19800000000000001}]
[null,null,null,null,null,null,null,null,{"$f":"I147+I148+I149-I150","v":60.032590447749826},{"$f":"I151/'Données de base'!$D$64","v":0.31912643498584864}]
[]
[null,"Frais de mise en marché avant l’amortissement et la rémunération du travail du propriétaire",null,null,null,null,null,null,{"$f":"I145+I151","v":733.08438244774982},{"$f":"I153/'Données de base'!$D$64","v":3.8969933459388431}]
[]
[null,"Amortissement du bâtiment et des équipements liés à la mise en marché"]
[null,"  Bâtiment",null,0.03,"%/an              valeur",{"$f":"F140","v":0},{"$f":"D26","v":10},"animal/an",{"$f":"(F156*D156)/G156","v":0},{"$f":"I156/'Données de base'!$D$64","v":0}]
[null,"  Équipement",null,6.3299999999999995E-2,"%/an              valeur",{"$f":"F139","v":5000},{"$f":"D26","v":10},"animal/an",{"$f":"(F157*D157)/G157","v":31.65},{"$f":"I157/'Données de base'!$D$64","v":0.16824780659920191}]
[null,null,null,null,null,null,null,null,{"$f":"I156+I157","v":31.65},{"$f":"I158/'Données de base'!$D$64","v":0.16824780659920191}]
[null,"Travail de l’exploitant "]
[null,"Travail non rémunéré (heures)",null,null,{"$f":"E144/D26","v":15},"heures non payées",15,"/h",{"$f":"(E160*G160)","v":225},{"$f":"I160/'Données de base'!$D$64","v":1.1960744544966961}]
[]
[]
[null,"Prix cible du bouvillon en découpe avant la rémunération de l’avoir du propriétaire",null,null,null,null,null,null,{"$f":"I123+I153+I158+I160","v":4161.0690133027474},{"$f":"I163/'Données de base'!D64","v":22.119770445374176}]
[null,"(Le prix cible tient compte de l’amortissement ainsi que de la rémunération du travail et de l'avoir du propriétaire)"]
[]
[]
[null,"I. Remboursement en capital annuel"]
[null,"  Emprunts pour l'élevage",null,null,10000,"Pourcentage attribué à l’atelier bouvillon viande = ",null,0.1,{"$f":"(E168*H168)/D26","v":100},{"$f":"I168/'Données de base'!$D$64","v":0.5315886464429761}]
[null,"  Emprunt pour la transformation et la mise en marché",null,null,1000,"Pourcentage attribué à l'atelier bouvillon viande = ",null,1,{"$f":"(E169*H169)/D26","v":100},{"$f":"I169/'Données de base'!$D$64","v":0.5315886464429761}]
[null,null,null,null,null,null,null,null,{"$f":"I168+I169","v":200},{"$f":"I170/'Données de base'!$D$64","v":1.0631772928859522}]
[]
[null,"Prix minimum du bouvillon en découpe ",null,null,null,null,null,null,{"$f":"I163-I158-I117+I170","v":4278.1486023438438},{"$f":"I172/'Données de base'!D64","v":22.742152248018737}]
[null,"(Le prix minimum inclut les annuités, mais il exclut l’amortissement et la rémunération de l’avoir du propriétaire)"]
[]
[]
[]
[]
[null,null,null,null,null,null,null,null,null,null,null,null,null,null,null,null,null,null,null,null,"Veau",{"$f":"J24/$J$172","v":0.41782092352301481}]
[null,null,null,null,null,null,null,null,null,null,null,null,null,null,null,null,null,null,null,null,"Alimentation",{"$f":"J70/$J$172","v":0.11858024249700662}]
[null,null,null,null,null,null,null,null,null,null,null,null,null,null,null,null,null,null,null,null,"Autres coûts variables + fixes + intérêts Court Terme - revenus ASRA",{"$f":"(J74+J75+J76+J77++J78+J79+J80+J81+J82+J88+J100-J108)/$J$172","v":6.6035649401508412E-2}]
[null,null,null,null,null,null,null,null,null,null,null,null,null,null,null,null,null,null,null,null,"Travail de production",{"$f":"(J83+J84+J85+J86+J121)/J172","v":0.12569689601370698}]
[null,null,null,null,null,null,null,null,null,null,null,null,null,null,null,null,null,null,null,null,"Mise en marché",{"$f":"(SUM(J128:J140))/$J$172","v":0.1193394244698015}]
[null,null,null,null,null,null,null,null,null,null,null,null,null,null,null,null,null,null,null,null,"Travail de mise en marché",{"$f":"(J143+J160)/$J$172","v":8.7654739200632492E-2}]
[null,null,null,null,null,null,null,null,null,null,null,null,null,null,null,null,null,null,null,null,"Problème de qualité",{"$f":"J151/$J$172","v":1.4032376157962378E-2}]
[null,null,null,null,null,null,null,null,null,null,null,null,null,null,null,null,null,null,null,null,"Annuité (capital + intérêts)",{"$f":"(J87+J141+J170)/J172","v":5.083974873636684E-2}]

{"sheet":"PÂTURAGE INTENSIF","index":8,"n_rows":50,"n_cols":10,"rows_kept":50,"cut":false,"hidden":true,"merged":[]}
["           BUDGET  PÂTURAGE  INTENSIF  AVEC AVOINE  2007 l' HECTARE"]
[]
[null,"NOM DE LA FERME: ",null,null,null,null,null,"2007-12-03"]
[null,"Adapté par:"]
[null,"Réalisé par G. Beauregard et D. Ruel, agronomes"]
[]
["ITEM",null,"QTÉ","PRIX","UNITÉ","COÛTS","DÉBOURS","LE"]
[null,null,null,null,null,"TOTAUX",null,"VÔTRE"]
["A-  PRODUITS"]
["Herbe  89 %  m.s.  (  t  )",null,5,130,1,780,{"$f":"+F10","v":780},{"$f":"C10*D10/E10","v":650}]
["B- DÉBOURS"]
["1- APPROVISIONNEMENTS:"]
["Semence avoine cert. ( kg )",null,91,19.5,40,44.36,{"$f":"+F13","v":44.36},{"$f":"C13*D13/E13","v":44.362499999999997}]
["Mil Hokuo",null,7,127.5,25,35.700000000000003,{"$f":"+F14","v":35.700000000000003},{"$f":"C14*D14/E14","v":35.700000000000003}]
["Trèfle Ladino",null,2,175,25,14,{"$f":"+F15","v":14},{"$f":"C15*D15/E15","v":14}]
["Fertilisants :"]
["     Etablissement ",null,null,null,null,204.3,{"$f":"+F17","v":204.3},204.3]
["     Entretien 1 ère an",null,null,null,null,122.34,122.34,122.34]
["     Entretien 2 ème an",null,null,null,null,122.34,122.34,122.34]
["     Entretien 3 ème an",null,null,null,null,162.65,162.65,162.65]
["     Entretien 4 ème an",null,null,null,null,162.65,162.65,162.65]
["Pierre  à  chaux",null,2.5,30,1,75,75,{"$f":"C22*D22/E22","v":75}]
["Pesticide TROPOTOX",null,3.5,147.25,10,51.54,51.54,{"$f":"C23*D23/E23","v":51.537500000000001}]
["  Total pour la rotation en pâturage",null,null,{"$f":"I27-1","v":7}," ans",{"$f":"SUM(F13:F23)","v":994.88},994.88,{"$f":"SUM(H13:H23)","v":994.88}]
["     Par année",null,null,null,null,{"$f":"F24/$I$27","v":124.36},124.36,{"$f":"H24/$I$27","v":124.36}]
[]
["2-  OPÉRATIONS CULTURALES",null,null,null,null,"À  FORFAIT","Coûts variables",null,8,"Nombre d'années de rotation"]
["      Labour  ( loam )   ",null,null,"1 année sur",{"$f":"+$I$27","v":8},{"$f":"I28/$I$27","v":8.8849999999999998},5,{"$f":"J28/$I$27","v":3.1274999999999999},71.08,25.02]
["      Hersage  lourd  (loam)",null,null,"1 année sur",{"$f":"+$I$27","v":8},{"$f":"I29/$I$27","v":2.1037499999999998},1.19,{"$f":"J29/$I$27","v":0.74250000000000005},16.829999999999998,5.94]
["      Cultivateur  (loam",null,null,"1 année sur",{"$f":"+$I$27","v":8},{"$f":"I30/$I$27","v":1.6725000000000001},0.88,{"$f":"J30/$I$27","v":0.55125000000000002},13.38,4.41]
["      Épandage engrais   ",null,null,2," fois",{"$f":"I31*2","v":7.62},1.46,{"$f":"J31*D31","v":1.46},3.81,0.73]
["      Semoir à céréales  ",null,null,"1 année sur",{"$f":"+$I$27","v":8},{"$f":"I32/$I$27","v":3.49125},1.2,{"$f":"J32/$I$27","v":0.74875000000000003},27.93,5.99]
["      Pulvérisation   1 fois  ",null,null,"1 année sur",{"$f":"+$I$27","v":8},{"$f":"I33/$I$27","v":1.4712499999999999},0.47,{"$f":"J33/$I$27","v":0.29749999999999999},11.77,2.38]
["      Fauchage    ",null,null,1," fois",{"$f":"+I34*D34","v":27.41},8.43,{"$f":"J34*D34","v":8.43},27.41,8.43]
["      Épandage des bouses  ",null,null,1," fois",{"$f":"+I35*D35","v":16.36},5.19,{"$f":"J35*D35","v":5.19},16.36,5.19]
["        Total",null,null,null,null,{"$f":"SUM(F28:F35)","v":69.013750000000002},{"$f":"SUM(G28:G35)","v":23.82},{"$f":"SUM(H28:H35)","v":20.547500000000003}]
["3-  AUTRES FRAIS"]
["   Assur-récol. collec. 90 %",null,{"$f":"C10*89/85","v":5.2352941176470589},110,2.0400000000000001E-2,12.69,{"$f":"+F38","v":12.69},{"$f":"C38*0.9*D38*E38","v":10.5732}]
["        Entretien des clôtures électriques",null,null,null,null,{"$f":"49.93*1.02","v":50.928600000000003},2.5,{"$f":"2.45*1.02","v":2.4990000000000001},7.5]
["        Location de la terre",null,null,null,null,{"$f":"4000*0.03","v":120},0,0]
["        Entretien de la terre et taxes foncières ",null,null,null,null,{"$f":"4000*0.67/100","v":26.8},{"$f":"+H41","v":37},{"$f":"4000*0.925/100","v":37}]
["        Intérêts marge crédit",null,{"$f":"H25+H36+SUM(H38:H41)","v":194.97970000000001},7.4999999999999997E-2,9,15.47,{"$f":"+F42","v":15.47},{"$f":"C42*D42*E42/12","v":10.967608125}]
["            Total",null,null,null,"mois",{"$f":"SUM(F38:F42)","v":225.88860000000003},{"$f":"SUM(G38:G42)","v":67.66},{"$f":"SUM(H38:H42)","v":61.039808125}]
[]
["           TOTAL  DÉBOURS",null,null,null,null,{"$f":"F25+F36+F43","v":419.26235000000003},{"$f":"G25+G36+G43","v":215.84},{"$f":"H25+H36+H43","v":205.94730812500001}]
["C- MARGE SUR DÉBOURS    ( A - B )",null,null,null,null,{"$f":"F10-F45","v":360.73764999999997},{"$f":"G10-G45","v":564.16},{"$f":"H10-H45","v":444.05269187499999}]
["D- COÛT MOYEN",null,null,{"$f":"(F47+H47)/2","v":62.520965812500009},"$ / tonne",{"$f":"F45/C10","v":83.852470000000011},null,{"$f":"H45/C10","v":41.189461625}]
[]
["Déboursés basés sur les frais variables pour les autres frais et les frais à forfait ",null,null,null,null,null,null,{"$f":"F45-F43+H43","v":254.41355812500001}]
["pour tenir compte du temps et de la rémunération de la machinerie"]

{"sheet":"Tableau sensibilité","index":9,"n_rows":58,"n_cols":15,"rows_kept":58,"cut":false,"hidden":false,"merged":[[1,1,1,6],[0,1,0,6],[51,2,51,6],[39,1,40,1],[9,3,9,4],[18,3,18,4],[9,5,9,6],[39,3,39,4],[39,5,39,6],[18,5,18,6],[28,5,28,6],[28,3,28,4],[18,2,19,2],[28,2,29,2],[28,1,29,1]]}
[null,"TABLEAU D’ANALYSE DE SENSIBILITÉ"]
[null,"PROGRAMME ALIMENTAIRE INTÉGRÉ"]
[]
[null,"Client :",null,{"$f":"'Données de base'!C5","v":"Yvan Duboeuf"}]
[null,"Budget adapté par :",null,{"$f":"'Données de base'!C6","v":"M. Jean Untel"}]
[null,"Date :",null,{"$f":"'Données de base'!C7","v":"2018-03-01"}]
[null,"Scénario :",null,{"$f":"'Données de base'!C8","v":"10 bouvillons"}]
[]
[null,"Effet du taux de rémunération du travail du propriétaire ($/h)"]
[null,null,"Salaire du propriétaire","Prix cible",null,"Prix minimum"]
[null,"$/heure","$/lot","$/bouvillon","$/kg de viande","$/bouvillon","$/kg de viande"]
[null,0,{"$f":"(Budget!$E$160+Budget!$E$121)*Budget!$D$26*B12","v":0},{"$f":"Budget!$I$163-Budget!$I$160+(Budget!$E$160*'Tableau sensibilité'!B12)-Budget!$I$121+(Budget!$E$121*'Tableau sensibilité'!B12)","v":3489.7252633027474},{"$f":"D12/'Données de base'!$D$64","v":18.550983291769658},{"$f":"Budget!$I$172-Budget!$I$160+(Budget!$E$160*'Tableau sensibilité'!B12)-Budget!$I$121+(Budget!$E$121*'Tableau sensibilité'!B12)","v":3606.8048523438438},{"$f":"F12/'Données de base'!$D$64","v":19.173365094414219}]
[null,5,{"$f":"(Budget!$E$160+Budget!$E$121)*Budget!$D$26*B13","v":2237.8125},{"$f":"Budget!$I$163-Budget!$I$160+(Budget!$E$160*'Tableau sensibilité'!B13)-Budget!$I$121+(Budget!$E$121*'Tableau sensibilité'!B13)","v":3713.5065133027474},{"$f":"D13/'Données de base'!$D$64","v":19.74057900963783},{"$f":"Budget!$I$172-Budget!$I$160+(Budget!$E$160*'Tableau sensibilité'!B13)-Budget!$I$121+(Budget!$E$121*'Tableau sensibilité'!B13)","v":3830.5861023438438},{"$f":"F13/'Données de base'!$D$64","v":20.362960812282392}]
[null,10,{"$f":"(Budget!$E$160+Budget!$E$121)*Budget!$D$26*B14","v":4475.625},{"$f":"Budget!$I$163-Budget!$I$160+(Budget!$E$160*'Tableau sensibilité'!B14)-Budget!$I$121+(Budget!$E$121*'Tableau sensibilité'!B14)","v":3937.2877633027474},{"$f":"D14/'Données de base'!$D$64","v":20.930174727506003},{"$f":"Budget!$I$172-Budget!$I$160+(Budget!$E$160*'Tableau sensibilité'!B14)-Budget!$I$121+(Budget!$E$121*'Tableau sensibilité'!B14)","v":4054.3673523438438},{"$f":"F14/'Données de base'!$D$64","v":21.552556530150564}]
[null,15,{"$f":"(Budget!$E$160+Budget!$E$121)*Budget!$D$26*B15","v":6713.4375},{"$f":"Budget!$I$163-Budget!$I$160+(Budget!$E$160*'Tableau sensibilité'!B15)-Budget!$I$121+(Budget!$E$121*'Tableau sensibilité'!B15)","v":4161.0690133027474},{"$f":"D15/'Données de base'!$D$64","v":22.119770445374176},{"$f":"Budget!$I$172-Budget!$I$160+(Budget!$E$160*'Tableau sensibilité'!B15)-Budget!$I$121+(Budget!$E$121*'Tableau sensibilité'!B15)","v":4278.1486023438438},{"$f":"F15/'Données de base'!$D$64","v":22.742152248018737}]
[null,20,{"$f":"(Budget!$E$160+Budget!$E$121)*Budget!$D$26*B16","v":8951.25},{"$f":"Budget!$I$163-Budget!$I$160+(Budget!$E$160*'Tableau sensibilité'!B16)-Budget!$I$121+(Budget!$E$121*'Tableau sensibilité'!B16)","v":4384.8502633027474},{"$f":"D16/'Données de base'!$D$64","v":23.309366163242345},{"$f":"Budget!$I$172-Budget!$I$160+(Budget!$E$160*'Tableau sensibilité'!B16)-Budget!$I$121+(Budget!$E$121*'Tableau sensibilité'!B16)","v":4501.9298523438438},{"$f":"F16/'Données de base'!$D$64","v":23.93174796588691}]
[]
[]
[null,"Salaire du propriétaire","$/heure","Prix cible",null,"Prix minimum"]
[null,"$/lot",null,"$/bouvillon","$/kg de viande","$/bouvillon","$/kg de viande"]
[null,0,{"$f":"B21/((Budget!$E$121+Budget!$E$160)*Budget!$D$26)","v":0},{"$f":"Budget!$I$163-Budget!$I$160+(Budget!$E$160*'Tableau sensibilité'!C21)-Budget!$I$121+(Budget!$E$121*'Tableau sensibilité'!C21)","v":3489.7252633027474},{"$f":"D21/'Données de base'!$D$64","v":18.550983291769658},{"$f":"Budget!$I$172-Budget!$I$160+(Budget!$E$160*'Tableau sensibilité'!E21)-Budget!$I$121+(Budget!$E$121*'Tableau sensibilité'!E21)","v":4437.0772982961089},{"$f":"F21/'Données de base'!$D$64","v":23.586999151640857}]
[null,5000,{"$f":"B22/((Budget!$E$121+Budget!$E$160)*Budget!$D$26)","v":11.171624074849881},{"$f":"Budget!$I$163-Budget!$I$160+(Budget!$E$160*'Tableau sensibilité'!C22)-Budget!$I$121+(Budget!$E$121*'Tableau sensibilité'!C22)","v":3989.7252633027474},{"$f":"D22/'Données de base'!$D$64","v":21.208926523984537},{"$f":"Budget!$I$172-Budget!$I$160+(Budget!$E$160*'Tableau sensibilité'!E22)-Budget!$I$121+(Budget!$E$121*'Tableau sensibilité'!E22)","v":4556.0368700829267},{"$f":"F22/'Données de base'!$D$64","v":24.219374729116762}]
[null,8000,{"$f":"B23/((Budget!$E$121+Budget!$E$160)*Budget!$D$26)","v":17.874598519759811},{"$f":"Budget!$I$163-Budget!$I$160+(Budget!$E$160*'Tableau sensibilité'!C23)-Budget!$I$121+(Budget!$E$121*'Tableau sensibilité'!C23)","v":4289.7252633027474},{"$f":"D23/'Données de base'!$D$64","v":22.803692463313464},{"$f":"Budget!$I$172-Budget!$I$160+(Budget!$E$160*'Tableau sensibilité'!E23)-Budget!$I$121+(Budget!$E$121*'Tableau sensibilité'!E23)","v":4627.4126131550165},{"$f":"F23/'Données de base'!$D$64","v":24.598800075602298}]
[null,12000,{"$f":"B24/((Budget!$E$121+Budget!$E$160)*Budget!$D$26)","v":26.811897779639715},{"$f":"Budget!$I$163-Budget!$I$160+(Budget!$E$160*'Tableau sensibilité'!C24)-Budget!$I$121+(Budget!$E$121*'Tableau sensibilité'!C24)","v":4689.7252633027474},{"$f":"D24/'Données de base'!$D$64","v":24.930047049085371},{"$f":"Budget!$I$172-Budget!$I$160+(Budget!$E$160*'Tableau sensibilité'!E24)-Budget!$I$121+(Budget!$E$121*'Tableau sensibilité'!E24)","v":4722.5802705844708},{"$f":"F24/'Données de base'!$D$64","v":25.104700537583025}]
[null,15000,{"$f":"B25/((Budget!$E$121+Budget!$E$160)*Budget!$D$26)","v":33.514872224549642},{"$f":"Budget!$I$163-Budget!$I$160+(Budget!$E$160*'Tableau sensibilité'!C25)-Budget!$I$121+(Budget!$E$121*'Tableau sensibilité'!C25)","v":4989.7252633027474},{"$f":"D25/'Données de base'!$D$64","v":26.524812988414297},{"$f":"Budget!$I$172-Budget!$I$160+(Budget!$E$160*'Tableau sensibilité'!E25)-Budget!$I$121+(Budget!$E$121*'Tableau sensibilité'!E25)","v":4793.9560136565615},{"$f":"F25/'Données de base'!$D$64","v":25.484125884068568}]
[null,"*Un lot correspond au volume annuel de production."]
[]
[null,"Effet du prix du veau ($/kg)"]
[null,"Prix du veau $/kg","Valeur du veau $","Prix cible",null,"Prix minimum"]
[null,null,null,"$/bouvillon","$/kg de viande","$/bouvillon","$/kg de viande"]
[null,3,{"$f":"('Données de base'!$C$24*'Tableau sensibilité'!B31)","v":975},{"$f":"('Données de base'!$C$24*'Tableau sensibilité'!B31)+Budget!$I$163-Budget!$I$24","v":3348.5690133027474},{"$f":"D31/'Données de base'!$D$64","v":17.800612693024995},{"$f":"('Données de base'!$C$24*'Tableau sensibilité'!B31)+Budget!$I$172-Budget!$I$24","v":3465.6486023438438},{"$f":"F31/'Données de base'!$D$64","v":18.422994495669556}]
[null,4,{"$f":"('Données de base'!$C$24*'Tableau sensibilité'!B32)","v":1300},{"$f":"('Données de base'!$C$24*'Tableau sensibilité'!B32)+Budget!$I$163-Budget!$I$24","v":3673.5690133027474},{"$f":"D32/'Données de base'!$D$64","v":19.528275793964667},{"$f":"('Données de base'!$C$24*'Tableau sensibilité'!B32)+Budget!$I$172-Budget!$I$24","v":3790.6486023438438},{"$f":"F32/'Données de base'!$D$64","v":20.150657596609229}]
[null,5,{"$f":"('Données de base'!$C$24*'Tableau sensibilité'!B33)","v":1625},{"$f":"('Données de base'!$C$24*'Tableau sensibilité'!B33)+Budget!$I$163-Budget!$I$24","v":3998.5690133027474},{"$f":"D33/'Données de base'!$D$64","v":21.25593889490434},{"$f":"('Données de base'!$C$24*'Tableau sensibilité'!B33)+Budget!$I$172-Budget!$I$24","v":4115.6486023438438},{"$f":"F33/'Données de base'!$D$64","v":21.878320697548901}]
[null,6,{"$f":"('Données de base'!$C$24*'Tableau sensibilité'!B34)","v":1950},{"$f":"('Données de base'!$C$24*'Tableau sensibilité'!B34)+Budget!$I$163-Budget!$I$24","v":4323.5690133027474},{"$f":"D34/'Données de base'!$D$64","v":22.983601995844012},{"$f":"('Données de base'!$C$24*'Tableau sensibilité'!B34)+Budget!$I$172-Budget!$I$24","v":4440.6486023438438},{"$f":"F34/'Données de base'!$D$64","v":23.605983798488573}]
[null,7,{"$f":"('Données de base'!$C$24*'Tableau sensibilité'!B35)","v":2275},{"$f":"('Données de base'!$C$24*'Tableau sensibilité'!B35)+Budget!$I$163-Budget!$I$24","v":4648.5690133027474},{"$f":"D35/'Données de base'!$D$64","v":24.711265096783684},{"$f":"('Données de base'!$C$24*'Tableau sensibilité'!B35)+Budget!$I$172-Budget!$I$24","v":4765.6486023438438},{"$f":"F35/'Données de base'!$D$64","v":25.333646899428246}]
[]
[]
[null,"Effet du coût de la mise en marché (avant le remboursement du capital ou l’amortissement)"]
[null,"(Inclure la congélation,la livraison, la promotion, le kiosque, le permis, l’entretien et la réparation, le salaire payé et le travail.)"]
[null,"Frais de mise en marché $/lot","Frais par ","Prix cible",null,"Prix minimum"]
[null,null,"bouvillon $","$/bouvillon","$/kg de viande","$/bouvillon","$/kg de viande"]
[null,"Carcasse",0,{"$f":"Budget!I163-Budget!I160-Budget!I158-Budget!I144-Budget!I143-Budget!I140-Budget!I139-Budget!I138-Budget!I137-Budget!I136-Budget!I135-Budget!I134-Budget!I132-Budget!I133","v":3393.8672213027476},{"$f":"Budget!J163-Budget!J160-Budget!J158-Budget!J144-Budget!J143-Budget!J140-Budget!J139-Budget!J138-Budget!J137-Budget!J136-Budget!J135-Budget!J134-Budget!J132-Budget!J133","v":18.041412823795117},{"$f":"Budget!I172-Budget!I169-Budget!I160-Budget!I158-Budget!I144-Budget!I143-Budget!I140-Budget!I139-Budget!I138-Budget!I137-Budget!I136-Budget!I135-Budget!I134-Budget!I132-Budget!I133","v":3410.9468103438439},{"$f":"Budget!J172-Budget!J169-Budget!J160-Budget!J158-Budget!J144-Budget!J143-Budget!J140-Budget!J139-Budget!J138-Budget!J137-Budget!J136-Budget!J135-Budget!J134-Budget!J132-Budget!J133","v":18.132205979996701}]
[null,"Vente au détail"]
[null,0,{"$f":"B44/Budget!$D$26","v":0},{"$f":"Budget!$I$163-Budget!$I$160-Budget!$I$158-Budget!$I$144-Budget!$I$143-Budget!$I$140-Budget!$I$139-Budget!$I$138-Budget!$I$137-Budget!$I$136-Budget!$I$135-Budget!$I$134+'Tableau sensibilité'!C44","v":3698.4690133027475},{"$f":"Budget!$J$163-Budget!$J$160-Budget!J158-Budget!$J$144-Budget!$J$143-Budget!$J$140-Budget!$J$139-Budget!$J$138-Budget!$J$137-Budget!$J$136-Budget!$J$135-Budget!$J$134+('Tableau sensibilité'!C44/'Données de base'!$D$64)","v":19.660641366928967},{"$f":"Budget!$I$172-Budget!$I$169-Budget!$I$160-Budget!$I$144-Budget!$I$143-Budget!$I$140-Budget!$I$139-Budget!$I$138-Budget!$I$137-Budget!I$136-Budget!$I$135-Budget!$I$134+'Tableau sensibilité'!B44","v":3747.198602343844},{"$f":"Budget!$J$172-Budget!$J$169-Budget!$J$160-Budget!$J$144-Budget!$J$143-Budget!$J$140-Budget!$J$139-Budget!$J$137-Budget!$J$136-Budget!$J$135-Budget!$J$134+('Tableau sensibilité'!B44/('Données de base'!$D$64*10))","v":20.079158923662646}]
[null,2000,{"$f":"B45/Budget!$D$26","v":200},{"$f":"Budget!$I$163-Budget!$I$160-Budget!$I$158-Budget!$I$144-Budget!$I$143-Budget!$I$140-Budget!$I$139-Budget!$I$138-Budget!$I$137-Budget!$I$136-Budget!$I$135-Budget!$I$134+'Tableau sensibilité'!C45","v":3898.4690133027475},{"$f":"Budget!$J$163-Budget!$J$160-Budget!J159-Budget!$J$144-Budget!$J$143-Budget!$J$140-Budget!$J$139-Budget!$J$138-Budget!$J$137-Budget!$J$136-Budget!$J$135-Budget!$J$134+('Tableau sensibilité'!C45/'Données de base'!$D$64)","v":20.892066466414121},{"$f":"Budget!$I$172-Budget!$I$169-Budget!$I$160-Budget!$I$144-Budget!$I$143-Budget!$I$140-Budget!$I$139-Budget!$I$138-Budget!$I$137-Budget!I$136-Budget!$I$135-Budget!$I$134+'Tableau sensibilité'!B45","v":5747.198602343844},{"$f":"Budget!$J$172-Budget!$J$169-Budget!$J$160-Budget!$J$144-Budget!$J$143-Budget!$J$140-Budget!$J$139-Budget!$J$137-Budget!$J$136-Budget!$J$135-Budget!$J$134+('Tableau sensibilité'!B45/('Données de base'!$D$64*10))","v":21.1423362165486}]
[null,4000,{"$f":"B46/Budget!$D$26","v":400},{"$f":"Budget!$I$163-Budget!$I$160-Budget!$I$158-Budget!$I$144-Budget!$I$143-Budget!$I$140-Budget!$I$139-Budget!$I$138-Budget!$I$137-Budget!$I$136-Budget!$I$135-Budget!$I$134+'Tableau sensibilité'!C46","v":4098.469013302747},{"$f":"Budget!$J$163-Budget!$J$160-Budget!J160-Budget!$J$144-Budget!$J$143-Budget!$J$140-Budget!$J$139-Budget!$J$138-Budget!$J$137-Budget!$J$136-Budget!$J$135-Budget!$J$134+('Tableau sensibilité'!C46/'Données de base'!$D$64)","v":20.759169304803375},{"$f":"Budget!$I$172-Budget!$I$169-Budget!$I$160-Budget!$I$144-Budget!$I$143-Budget!$I$140-Budget!$I$139-Budget!$I$138-Budget!$I$137-Budget!I$136-Budget!$I$135-Budget!$I$134+'Tableau sensibilité'!B46","v":7747.198602343844},{"$f":"Budget!$J$172-Budget!$J$169-Budget!$J$160-Budget!$J$144-Budget!$J$143-Budget!$J$140-Budget!$J$139-Budget!$J$137-Budget!$J$136-Budget!$J$135-Budget!$J$134+('Tableau sensibilité'!B46/('Données de base'!$D$64*10))","v":22.205513509434549}]
[null,5000,{"$f":"B47/Budget!$D$26","v":500},{"$f":"Budget!$I$163-Budget!$I$160-Budget!$I$158-Budget!$I$144-Budget!$I$143-Budget!$I$140-Budget!$I$139-Budget!$I$138-Budget!$I$137-Budget!$I$136-Budget!$I$135-Budget!$I$134+'Tableau sensibilité'!C47","v":4198.469013302747},{"$f":"Budget!$J$163-Budget!$J$160-Budget!J161-Budget!$J$144-Budget!$J$143-Budget!$J$140-Budget!$J$139-Budget!$J$138-Budget!$J$137-Budget!$J$136-Budget!$J$135-Budget!$J$134+('Tableau sensibilité'!C47/'Données de base'!$D$64)","v":22.486832405743048},{"$f":"Budget!$I$172-Budget!$I$169-Budget!$I$160-Budget!$I$144-Budget!$I$143-Budget!$I$140-Budget!$I$139-Budget!$I$138-Budget!$I$137-Budget!I$136-Budget!$I$135-Budget!$I$134+'Tableau sensibilité'!B47","v":8747.198602343844},{"$f":"Budget!$J$172-Budget!$J$169-Budget!$J$160-Budget!$J$144-Budget!$J$143-Budget!$J$140-Budget!$J$139-Budget!$J$137-Budget!$J$136-Budget!$J$135-Budget!$J$134+('Tableau sensibilité'!B47/('Données de base'!$D$64*10))","v":22.737102155877526}]
[null,10000,{"$f":"B48/Budget!$D$26","v":1000},{"$f":"Budget!$I$163-Budget!$I$160-Budget!$I$158-Budget!$I$144-Budget!$I$143-Budget!$I$140-Budget!$I$139-Budget!$I$138-Budget!$I$137-Budget!$I$136-Budget!$I$135-Budget!$I$134+'Tableau sensibilité'!C48","v":4698.469013302747},{"$f":"Budget!$J$163-Budget!$J$160-Budget!J162-Budget!$J$144-Budget!$J$143-Budget!$J$140-Budget!$J$139-Budget!$J$138-Budget!$J$137-Budget!$J$136-Budget!$J$135-Budget!$J$134+('Tableau sensibilité'!C48/'Données de base'!$D$64)","v":25.144775637957927},{"$f":"Budget!$I$172-Budget!$I$169-Budget!$I$160-Budget!$I$144-Budget!$I$143-Budget!$I$140-Budget!$I$139-Budget!$I$138-Budget!$I$137-Budget!I$136-Budget!$I$135-Budget!$I$134+'Tableau sensibilité'!B48","v":13747.198602343844},{"$f":"Budget!$J$172-Budget!$J$169-Budget!$J$160-Budget!$J$144-Budget!$J$143-Budget!$J$140-Budget!$J$139-Budget!$J$137-Budget!$J$136-Budget!$J$135-Budget!$J$134+('Tableau sensibilité'!B48/('Données de base'!$D$64*10))","v":25.395045388092406}]
[]
[]
[null,"Effet du rendement de la carcasse et en viande sur le prix cible (kg de viande)"]
[null,"Rendement de la ","Rendement en viande"]
[null,"carcasse",0.55000000000000004,0.59,0.61,0.63,0.65,null,null,"kg carcasse","kg viande"]
[null,0.5,{"$f":"(Budget!$I$123+Budget!$I$128+Budget!$I$129+Budget!$I$130+Budget!$I$131+Budget!$I$133+Budget!$I$136+Budget!$I$137+Budget!$I$138+Budget!$I$139+Budget!$I$140+Budget!$I$141+Budget!$I$143+Budget!$I$144+Budget!$I$158+Budget!$I$160-Budget!$I$151-Budget!$I$135-Budget!$I$134-Budget!$I$132+(Budget!$F$132*'Tableau sensibilité'!$J54)+(Budget!$F$134*'Tableau sensibilité'!K54)+(Budget!$F$135*'Tableau sensibilité'!K54)+(Budget!$E$148*Budget!$D$147*'Tableau sensibilité'!K54)+(Budget!$E$149*Budget!$D$147*'Tableau sensibilité'!K54)-(Budget!$E$150*Budget!$D$147*'Tableau sensibilité'!K54))/K54","v":26.141428141597835},{"$f":"(Budget!$I$123+Budget!$I$128+Budget!$I$129+Budget!$I$130+Budget!$I$131+Budget!$I$133+Budget!$I$136+Budget!$I$137+Budget!$I$138+Budget!$I$139+Budget!$I$140+Budget!$I$141+Budget!$I$143+Budget!$I$144+Budget!$I$158+Budget!$I$160-Budget!$I$151-Budget!$I$135-Budget!$I$134-Budget!$I$132+(Budget!$F$132*'Tableau sensibilité'!$J54)+(Budget!$F$134*'Tableau sensibilité'!L54)+(Budget!$F$135*'Tableau sensibilité'!L54)+(Budget!$E$148*Budget!$D$147*'Tableau sensibilité'!L54)+(Budget!$E$149*Budget!$D$147*'Tableau sensibilité'!L54)-(Budget!$E$150*Budget!$D$147*'Tableau sensibilité'!L54))/L54","v":24.361561826913235},{"$f":"(Budget!$I$123+Budget!$I$128+Budget!$I$129+Budget!$I$130+Budget!$I$131+Budget!$I$133+Budget!$I$136+Budget!$I$137+Budget!$I$138+Budget!$I$139+Budget!$I$140+Budget!$I$141+Budget!$I$143+Budget!$I$144+Budget!$I$158+Budget!$I$160-Budget!$I$151-Budget!$I$135-Budget!$I$134-Budget!$I$132+(Budget!$F$132*'Tableau sensibilité'!$J54)+(Budget!$F$134*'Tableau sensibilité'!M54)+(Budget!$F$135*'Tableau sensibilité'!M54)+(Budget!$E$148*Budget!$D$147*'Tableau sensibilité'!M54)+(Budget!$E$149*Budget!$D$147*'Tableau sensibilité'!M54)-(Budget!$E$150*Budget!$D$147*'Tableau sensibilité'!M54))/M54","v":23.559163078489849},{"$f":"(Budget!$I$123+Budget!$I$128+Budget!$I$129+Budget!$I$130+Budget!$I$131+Budget!$I$133+Budget!$I$136+Budget!$I$137+Budget!$I$138+Budget!$I$139+Budget!$I$140+Budget!$I$141+Budget!$I$143+Budget!$I$144+Budget!$I$158+Budget!$I$160-Budget!$I$151-Budget!$I$135-Budget!$I$134-Budget!$I$132+(Budget!$F$132*'Tableau sensibilité'!$J54)+(Budget!$F$134*'Tableau sensibilité'!N54)+(Budget!$F$135*'Tableau sensibilité'!N54)+(Budget!$E$148*Budget!$D$147*'Tableau sensibilité'!N54)+(Budget!$E$149*Budget!$D$147*'Tableau sensibilité'!N54)-(Budget!$E$150*Budget!$D$147*'Tableau sensibilité'!N54))/N54","v":22.807710282347315},{"$f":"(Budget!$I$123+Budget!$I$128+Budget!$I$129+Budget!$I$130+Budget!$I$131+Budget!$I$133+Budget!$I$136+Budget!$I$137+Budget!$I$138+Budget!$I$139+Budget!$I$140+Budget!$I$141+Budget!$I$143+Budget!$I$144+Budget!$I$158+Budget!$I$160-Budget!$I$151-Budget!$I$135-Budget!$I$134-Budget!$I$132+(Budget!$F$132*'Tableau sensibilité'!$J54)+(Budget!$F$134*'Tableau sensibilité'!O54)+(Budget!$F$135*'Tableau sensibilité'!O54)+(Budget!$E$148*Budget!$D$147*'Tableau sensibilité'!O54)+(Budget!$E$149*Budget!$D$147*'Tableau sensibilité'!O54)-(Budget!$E$150*Budget!$D$147*'Tableau sensibilité'!O54))/O54","v":22.10250073519817},null,null,{"$f":"'Données de base'!$D$61*'Tableau sensibilité'!B54","v":277.34399999999999},{"$f":"J54*(1-'Données de base'!$C$63)*'Tableau sensibilité'!$C$53*(1-'Données de base'!$C$65)","v":143.50887935999998},{"$f":"$J54*(1-'Données de base'!$C$63)*'Tableau sensibilité'!D$53*(1-'Données de base'!$C$65)","v":153.94588876799997},{"$f":"$J54*(1-'Données de base'!$C$63)*'Tableau sensibilité'!E$53*(1-'Données de base'!$C$65)","v":159.16439347199997},{"$f":"$J54*(1-'Données de base'!$C$63)*'Tableau sensibilité'!F$53*(1-'Données de base'!$C$65)","v":164.382898176},{"$f":"$J54*(1-'Données de base'!$C$63)*'Tableau sensibilité'!G$53*(1-'Données de base'!$C$65)","v":169.60140287999997}]
[null,0.52,{"$f":"(Budget!$I$123+Budget!$I$128+Budget!$I$129+Budget!$I$130+Budget!$I$131+Budget!$I$133+Budget!$I$136+Budget!$I$137+Budget!$I$138+Budget!$I$139+Budget!$I$140+Budget!$I$141+Budget!$I$143+Budget!$I$144+Budget!$I$158+Budget!$I$160-Budget!$I$151-Budget!$I$135-Budget!$I$134-Budget!$I$132+(Budget!$F$132*'Tableau sensibilité'!$J55)+(Budget!$F$134*'Tableau sensibilité'!K55)+(Budget!$F$135*'Tableau sensibilité'!K55)+(Budget!$E$148*Budget!$D$147*'Tableau sensibilité'!K55)+(Budget!$E$149*Budget!$D$147*'Tableau sensibilité'!K55)-(Budget!$E$150*Budget!$D$147*'Tableau sensibilité'!K55))/K55","v":25.194877156750206},{"$f":"(Budget!$I$123+Budget!$I$128+Budget!$I$129+Budget!$I$130+Budget!$I$131+Budget!$I$133+Budget!$I$136+Budget!$I$137+Budget!$I$138+Budget!$I$139+Budget!$I$140+Budget!$I$141+Budget!$I$143+Budget!$I$144+Budget!$I$158+Budget!$I$160-Budget!$I$151-Budget!$I$135-Budget!$I$134-Budget!$I$132+(Budget!$F$132*'Tableau sensibilité'!$J55)+(Budget!$F$134*'Tableau sensibilité'!L55)+(Budget!$F$135*'Tableau sensibilité'!L55)+(Budget!$E$148*Budget!$D$147*'Tableau sensibilité'!L55)+(Budget!$E$149*Budget!$D$147*'Tableau sensibilité'!L55)-(Budget!$E$150*Budget!$D$147*'Tableau sensibilité'!L55))/L55","v":23.479183790190874},{"$f":"(Budget!$I$123+Budget!$I$128+Budget!$I$129+Budget!$I$130+Budget!$I$131+Budget!$I$133+Budget!$I$136+Budget!$I$137+Budget!$I$138+Budget!$I$139+Budget!$I$140+Budget!$I$141+Budget!$I$143+Budget!$I$144+Budget!$I$158+Budget!$I$160-Budget!$I$151-Budget!$I$135-Budget!$I$134-Budget!$I$132+(Budget!$F$132*'Tableau sensibilité'!$J55)+(Budget!$F$134*'Tableau sensibilité'!M55)+(Budget!$F$135*'Tableau sensibilité'!M55)+(Budget!$E$148*Budget!$D$147*'Tableau sensibilité'!M55)+(Budget!$E$149*Budget!$D$147*'Tableau sensibilité'!M55)-(Budget!$E$150*Budget!$D$147*'Tableau sensibilité'!M55))/M55","v":22.70571546920101},{"$f":"(Budget!$I$123+Budget!$I$128+Budget!$I$129+Budget!$I$130+Budget!$I$131+Budget!$I$133+Budget!$I$136+Budget!$I$137+Budget!$I$138+Budget!$I$139+Budget!$I$140+Budget!$I$141+Budget!$I$143+Budget!$I$144+Budget!$I$158+Budget!$I$160-Budget!$I$151-Budget!$I$135-Budget!$I$134-Budget!$I$132+(Budget!$F$132*'Tableau sensibilité'!$J55)+(Budget!$F$134*'Tableau sensibilité'!N55)+(Budget!$F$135*'Tableau sensibilité'!N55)+(Budget!$E$148*Budget!$D$147*'Tableau sensibilité'!N55)+(Budget!$E$149*Budget!$D$147*'Tableau sensibilité'!N55)-(Budget!$E$150*Budget!$D$147*'Tableau sensibilité'!N55))/N55","v":21.98135624795653},{"$f":"(Budget!$I$123+Budget!$I$128+Budget!$I$129+Budget!$I$130+Budget!$I$131+Budget!$I$133+Budget!$I$136+Budget!$I$137+Budget!$I$138+Budget!$I$139+Budget!$I$140+Budget!$I$141+Budget!$I$143+Budget!$I$144+Budget!$I$158+Budget!$I$160-Budget!$I$151-Budget!$I$135-Budget!$I$134-Budget!$I$132+(Budget!$F$132*'Tableau sensibilité'!$J55)+(Budget!$F$134*'Tableau sensibilité'!O55)+(Budget!$F$135*'Tableau sensibilité'!O55)+(Budget!$E$148*Budget!$D$147*'Tableau sensibilité'!O55)+(Budget!$E$149*Budget!$D$147*'Tableau sensibilité'!O55)-(Budget!$E$150*Budget!$D$147*'Tableau sensibilité'!O55))/O55","v":21.301572978788634},null,null,{"$f":"'Données de base'!$D$61*'Tableau sensibilité'!B55","v":288.43776000000003},{"$f":"J55*(1-'Données de base'!$C$63)*'Tableau sensibilité'!$C$53*(1-'Données de base'!$C$65)","v":149.24923453440002},{"$f":"$J55*(1-'Données de base'!$C$63)*'Tableau sensibilité'!D$53*(1-'Données de base'!$C$65)","v":160.10372431872},{"$f":"$J55*(1-'Données de base'!$C$63)*'Tableau sensibilité'!E$53*(1-'Données de base'!$C$65)","v":165.53096921087999},{"$f":"$J55*(1-'Données de base'!$C$63)*'Tableau sensibilité'!F$53*(1-'Données de base'!$C$65)","v":170.95821410304001},{"$f":"$J55*(1-'Données de base'!$C$63)*'Tableau sensibilité'!G$53*(1-'Données de base'!$C$65)","v":176.3854589952}]
[null,0.54,{"$f":"(Budget!$I$123+Budget!$I$128+Budget!$I$129+Budget!$I$130+Budget!$I$131+Budget!$I$133+Budget!$I$136+Budget!$I$137+Budget!$I$138+Budget!$I$139+Budget!$I$140+Budget!$I$141+Budget!$I$143+Budget!$I$144+Budget!$I$158+Budget!$I$160-Budget!$I$151-Budget!$I$135-Budget!$I$134-Budget!$I$132+(Budget!$F$132*'Tableau sensibilité'!$J56)+(Budget!$F$134*'Tableau sensibilité'!K56)+(Budget!$F$135*'Tableau sensibilité'!K56)+(Budget!$E$148*Budget!$D$147*'Tableau sensibilité'!K56)+(Budget!$E$149*Budget!$D$147*'Tableau sensibilité'!K56)-(Budget!$E$150*Budget!$D$147*'Tableau sensibilité'!K56))/K56","v":24.31844105966908},{"$f":"(Budget!$I$123+Budget!$I$128+Budget!$I$129+Budget!$I$130+Budget!$I$131+Budget!$I$133+Budget!$I$136+Budget!$I$137+Budget!$I$138+Budget!$I$139+Budget!$I$140+Budget!$I$141+Budget!$I$143+Budget!$I$144+Budget!$I$158+Budget!$I$160-Budget!$I$151-Budget!$I$135-Budget!$I$134-Budget!$I$132+(Budget!$F$132*'Tableau sensibilité'!$J56)+(Budget!$F$134*'Tableau sensibilité'!L56)+(Budget!$F$135*'Tableau sensibilité'!L56)+(Budget!$E$148*Budget!$D$147*'Tableau sensibilité'!L56)+(Budget!$E$149*Budget!$D$147*'Tableau sensibilité'!L56)-(Budget!$E$150*Budget!$D$147*'Tableau sensibilité'!L56))/L56","v":22.662167089522026},{"$f":"(Budget!$I$123+Budget!$I$128+Budget!$I$129+Budget!$I$130+Budget!$I$131+Budget!$I$133+Budget!$I$136+Budget!$I$137+Budget!$I$138+Budget!$I$139+Budget!$I$140+Budget!$I$141+Budget!$I$143+Budget!$I$144+Budget!$I$158+Budget!$I$160-Budget!$I$151-Budget!$I$135-Budget!$I$134-Budget!$I$132+(Budget!$F$132*'Tableau sensibilité'!$J56)+(Budget!$F$134*'Tableau sensibilité'!M56)+(Budget!$F$135*'Tableau sensibilité'!M56)+(Budget!$E$148*Budget!$D$147*'Tableau sensibilité'!M56)+(Budget!$E$149*Budget!$D$147*'Tableau sensibilité'!M56)-(Budget!$E$150*Budget!$D$147*'Tableau sensibilité'!M56))/M56","v":21.915486201340975},{"$f":"(Budget!$I$123+Budget!$I$128+Budget!$I$129+Budget!$I$130+Budget!$I$131+Budget!$I$133+Budget!$I$136+Budget!$I$137+Budget!$I$138+Budget!$I$139+Budget!$I$140+Budget!$I$141+Budget!$I$143+Budget!$I$144+Budget!$I$158+Budget!$I$160-Budget!$I$151-Budget!$I$135-Budget!$I$134-Budget!$I$132+(Budget!$F$132*'Tableau sensibilité'!$J56)+(Budget!$F$134*'Tableau sensibilité'!N56)+(Budget!$F$135*'Tableau sensibilité'!N56)+(Budget!$E$148*Budget!$D$147*'Tableau sensibilité'!N56)+(Budget!$E$149*Budget!$D$147*'Tableau sensibilité'!N56)-(Budget!$E$150*Budget!$D$147*'Tableau sensibilité'!N56))/N56","v":21.216213623520623},{"$f":"(Budget!$I$123+Budget!$I$128+Budget!$I$129+Budget!$I$130+Budget!$I$131+Budget!$I$133+Budget!$I$136+Budget!$I$137+Budget!$I$138+Budget!$I$139+Budget!$I$140+Budget!$I$141+Budget!$I$143+Budget!$I$144+Budget!$I$158+Budget!$I$160-Budget!$I$151-Budget!$I$135-Budget!$I$134-Budget!$I$132+(Budget!$F$132*'Tableau sensibilité'!$J56)+(Budget!$F$134*'Tableau sensibilité'!O56)+(Budget!$F$135*'Tableau sensibilité'!O56)+(Budget!$E$148*Budget!$D$147*'Tableau sensibilité'!O56)+(Budget!$E$149*Budget!$D$147*'Tableau sensibilité'!O56)-(Budget!$E$150*Budget!$D$147*'Tableau sensibilité'!O56))/O56","v":20.559973204335375},null,null,{"$f":"'Données de base'!$D$61*'Tableau sensibilité'!B56","v":299.53152},{"$f":"J56*(1-'Données de base'!$C$63)*'Tableau sensibilité'!$C$53*(1-'Données de base'!$C$65)","v":154.9895897088},{"$f":"$J56*(1-'Données de base'!$C$63)*'Tableau sensibilité'!D$53*(1-'Données de base'!$C$65)","v":166.26155986943996},{"$f":"$J56*(1-'Données de base'!$C$63)*'Tableau sensibilité'!E$53*(1-'Données de base'!$C$65)","v":171.89754494975998},{"$f":"$J56*(1-'Données de base'!$C$63)*'Tableau sensibilité'!F$53*(1-'Données de base'!$C$65)","v":177.53353003007999},{"$f":"$J56*(1-'Données de base'!$C$63)*'Tableau sensibilité'!G$53*(1-'Données de base'!$C$65)","v":183.16951511039997}]
[null,0.56000000000000005,{"$f":"(Budget!$I$123+Budget!$I$128+Budget!$I$129+Budget!$I$130+Budget!$I$131+Budget!$I$133+Budget!$I$136+Budget!$I$137+Budget!$I$138+Budget!$I$139+Budget!$I$140+Budget!$I$141+Budget!$I$143+Budget!$I$144+Budget!$I$158+Budget!$I$160-Budget!$I$151-Budget!$I$135-Budget!$I$134-Budget!$I$132+(Budget!$F$132*'Tableau sensibilité'!$J57)+(Budget!$F$134*'Tableau sensibilité'!K57)+(Budget!$F$135*'Tableau sensibilité'!K57)+(Budget!$E$148*Budget!$D$147*'Tableau sensibilité'!K57)+(Budget!$E$149*Budget!$D$147*'Tableau sensibilité'!K57)-(Budget!$E$150*Budget!$D$147*'Tableau sensibilité'!K57))/K57","v":23.504607540950886},{"$f":"(Budget!$I$123+Budget!$I$128+Budget!$I$129+Budget!$I$130+Budget!$I$131+Budget!$I$133+Budget!$I$136+Budget!$I$137+Budget!$I$138+Budget!$I$139+Budget!$I$140+Budget!$I$141+Budget!$I$143+Budget!$I$144+Budget!$I$158+Budget!$I$160-Budget!$I$151-Budget!$I$135-Budget!$I$134-Budget!$I$132+(Budget!$F$132*'Tableau sensibilité'!$J57)+(Budget!$F$134*'Tableau sensibilité'!L57)+(Budget!$F$135*'Tableau sensibilité'!L57)+(Budget!$E$148*Budget!$D$147*'Tableau sensibilité'!L57)+(Budget!$E$149*Budget!$D$147*'Tableau sensibilité'!L57)-(Budget!$E$150*Budget!$D$147*'Tableau sensibilité'!L57))/L57","v":21.903508724615232},{"$f":"(Budget!$I$123+Budget!$I$128+Budget!$I$129+Budget!$I$130+Budget!$I$131+Budget!$I$133+Budget!$I$136+Budget!$I$137+Budget!$I$138+Budget!$I$139+Budget!$I$140+Budget!$I$141+Budget!$I$143+Budget!$I$144+Budget!$I$158+Budget!$I$160-Budget!$I$151-Budget!$I$135-Budget!$I$134-Budget!$I$132+(Budget!$F$132*'Tableau sensibilité'!$J57)+(Budget!$F$134*'Tableau sensibilité'!M57)+(Budget!$F$135*'Tableau sensibilité'!M57)+(Budget!$E$148*Budget!$D$147*'Tableau sensibilité'!M57)+(Budget!$E$149*Budget!$D$147*'Tableau sensibilité'!M57)-(Budget!$E$150*Budget!$D$147*'Tableau sensibilité'!M57))/M57","v":21.181701881185223},{"$f":"(Budget!$I$123+Budget!$I$128+Budget!$I$129+Budget!$I$130+Budget!$I$131+Budget!$I$133+Budget!$I$136+Budget!$I$137+Budget!$I$138+Budget!$I$139+Budget!$I$140+Budget!$I$141+Budget!$I$143+Budget!$I$144+Budget!$I$158+Budget!$I$160-Budget!$I$151-Budget!$I$135-Budget!$I$134-Budget!$I$132+(Budget!$F$132*'Tableau sensibilité'!$J57)+(Budget!$F$134*'Tableau sensibilité'!N57)+(Budget!$F$135*'Tableau sensibilité'!N57)+(Budget!$E$148*Budget!$D$147*'Tableau sensibilité'!N57)+(Budget!$E$149*Budget!$D$147*'Tableau sensibilité'!N57)-(Budget!$E$150*Budget!$D$147*'Tableau sensibilité'!N57))/N57","v":20.505724043687284},{"$f":"(Budget!$I$123+Budget!$I$128+Budget!$I$129+Budget!$I$130+Budget!$I$131+Budget!$I$133+Budget!$I$136+Budget!$I$137+Budget!$I$138+Budget!$I$139+Budget!$I$140+Budget!$I$141+Budget!$I$143+Budget!$I$144+Budget!$I$158+Budget!$I$160-Budget!$I$151-Budget!$I$135-Budget!$I$134-Budget!$I$132+(Budget!$F$132*'Tableau sensibilité'!$J57)+(Budget!$F$134*'Tableau sensibilité'!O57)+(Budget!$F$135*'Tableau sensibilité'!O57)+(Budget!$E$148*Budget!$D$147*'Tableau sensibilité'!O57)+(Budget!$E$149*Budget!$D$147*'Tableau sensibilité'!O57)-(Budget!$E$150*Budget!$D$147*'Tableau sensibilité'!O57))/O57","v":19.87134484234306},null,null,{"$f":"'Données de base'!$D$61*'Tableau sensibilité'!B57","v":310.62528000000003},{"$f":"J57*(1-'Données de base'!$C$63)*'Tableau sensibilité'!$C$53*(1-'Données de base'!$C$65)","v":160.72994488320001},{"$f":"$J57*(1-'Données de base'!$C$63)*'Tableau sensibilité'!D$53*(1-'Données de base'!$C$65)","v":172.41939542015999},{"$f":"$J57*(1-'Données de base'!$C$63)*'Tableau sensibilité'!E$53*(1-'Données de base'!$C$65)","v":178.26412068863999},{"$f":"$J57*(1-'Données de base'!$C$63)*'Tableau sensibilité'!F$53*(1-'Données de base'!$C$65)","v":184.10884595712},{"$f":"$J57*(1-'Données de base'!$C$63)*'Tableau sensibilité'!G$53*(1-'Données de base'!$C$65)","v":189.9535712256}]
[null,0.57999999999999996,{"$f":"(Budget!$I$123+Budget!$I$128+Budget!$I$129+Budget!$I$130+Budget!$I$131+Budget!$I$133+Budget!$I$136+Budget!$I$137+Budget!$I$138+Budget!$I$139+Budget!$I$140+Budget!$I$141+Budget!$I$143+Budget!$I$144+Budget!$I$158+Budget!$I$160-Budget!$I$151-Budget!$I$135-Budget!$I$134-Budget!$I$132+(Budget!$F$132*'Tableau sensibilité'!$J58)+(Budget!$F$134*'Tableau sensibilité'!K58)+(Budget!$F$135*'Tableau sensibilité'!K58)+(Budget!$E$148*Budget!$D$147*'Tableau sensibilité'!K58)+(Budget!$E$149*Budget!$D$147*'Tableau sensibilité'!K58)-(Budget!$E$150*Budget!$D$147*'Tableau sensibilité'!K58))/K58","v":22.746900471799471},{"$f":"(Budget!$I$123+Budget!$I$128+Budget!$I$129+Budget!$I$130+Budget!$I$131+Budget!$I$133+Budget!$I$136+Budget!$I$137+Budget!$I$138+Budget!$I$139+Budget!$I$140+Budget!$I$141+Budget!$I$143+Budget!$I$144+Budget!$I$158+Budget!$I$160-Budget!$I$151-Budget!$I$135-Budget!$I$134-Budget!$I$132+(Budget!$F$132*'Tableau sensibilité'!$J58)+(Budget!$F$134*'Tableau sensibilité'!L58)+(Budget!$F$135*'Tableau sensibilité'!L58)+(Budget!$E$148*Budget!$D$147*'Tableau sensibilité'!L58)+(Budget!$E$149*Budget!$D$147*'Tableau sensibilité'!L58)-(Budget!$E$150*Budget!$D$147*'Tableau sensibilité'!L58))/L58","v":21.197171626253748},{"$f":"(Budget!$I$123+Budget!$I$128+Budget!$I$129+Budget!$I$130+Budget!$I$131+Budget!$I$133+Budget!$I$136+Budget!$I$137+Budget!$I$138+Budget!$I$139+Budget!$I$140+Budget!$I$141+Budget!$I$143+Budget!$I$144+Budget!$I$158+Budget!$I$160-Budget!$I$151-Budget!$I$135-Budget!$I$134-Budget!$I$132+(Budget!$F$132*'Tableau sensibilité'!$J58)+(Budget!$F$134*'Tableau sensibilité'!M58)+(Budget!$F$135*'Tableau sensibilité'!M58)+(Budget!$E$148*Budget!$D$147*'Tableau sensibilité'!M58)+(Budget!$E$149*Budget!$D$147*'Tableau sensibilité'!M58)-(Budget!$E$150*Budget!$D$147*'Tableau sensibilité'!M58))/M58","v":20.498523376212638},{"$f":"(Budget!$I$123+Budget!$I$128+Budget!$I$129+Budget!$I$130+Budget!$I$131+Budget!$I$133+Budget!$I$136+Budget!$I$137+Budget!$I$138+Budget!$I$139+Budget!$I$140+Budget!$I$141+Budget!$I$143+Budget!$I$144+Budget!$I$158+Budget!$I$160-Budget!$I$151-Budget!$I$135-Budget!$I$134-Budget!$I$132+(Budget!$F$132*'Tableau sensibilité'!$J58)+(Budget!$F$134*'Tableau sensibilité'!N58)+(Budget!$F$135*'Tableau sensibilité'!N58)+(Budget!$E$148*Budget!$D$147*'Tableau sensibilité'!N58)+(Budget!$E$149*Budget!$D$147*'Tableau sensibilité'!N58)-(Budget!$E$150*Budget!$D$147*'Tableau sensibilité'!N58))/N58","v":19.844233745221761},{"$f":"(Budget!$I$123+Budget!$I$128+Budget!$I$129+Budget!$I$130+Budget!$I$131+Budget!$I$133+Budget!$I$136+Budget!$I$137+Budget!$I$138+Budget!$I$139+Budget!$I$140+Budget!$I$141+Budget!$I$143+Budget!$I$144+Budget!$I$158+Budget!$I$160-Budget!$I$151-Budget!$I$135-Budget!$I$134-Budget!$I$132+(Budget!$F$132*'Tableau sensibilité'!$J58)+(Budget!$F$134*'Tableau sensibilité'!O58)+(Budget!$F$135*'Tableau sensibilité'!O58)+(Budget!$E$148*Budget!$D$147*'Tableau sensibilité'!O58)+(Budget!$E$149*Budget!$D$147*'Tableau sensibilité'!O58)-(Budget!$E$150*Budget!$D$147*'Tableau sensibilité'!O58))/O58","v":19.230208091522627},null,null,{"$f":"'Données de base'!$D$61*'Tableau sensibilité'!B58","v":321.71903999999995},{"$f":"J58*(1-'Données de base'!$C$63)*'Tableau sensibilité'!$C$53*(1-'Données de base'!$C$65)","v":166.47030005759996},{"$f":"$J58*(1-'Données de base'!$C$63)*'Tableau sensibilité'!D$53*(1-'Données de base'!$C$65)","v":178.57723097087992},{"$f":"$J58*(1-'Données de base'!$C$63)*'Tableau sensibilité'!E$53*(1-'Données de base'!$C$65)","v":184.63069642751995},{"$f":"$J58*(1-'Données de base'!$C$63)*'Tableau sensibilité'!F$53*(1-'Données de base'!$C$65)","v":190.68416188415995},{"$f":"$J58*(1-'Données de base'!$C$63)*'Tableau sensibilité'!G$53*(1-'Données de base'!$C$65)","v":196.73762734079997}]